"SERVICE_CODE","ORGANISATION_UNIT","EXPENDITURE_CATEGORY","EXPENDITURE_DESCRIPTION","EXPENDITURE_CODE","NARRATIVE","DATE","TRANSATION_CODE","NET_AMOUNT","SUPPLIER_CODE","SUPPLIER_NAME","FROM_DATE","TO_DATE","FINANCIAL_PERIOD_YEAR"
,"LEE VALLEY RIDING CENTRE","EMPLOYEES","CRB CHECKS","1330","ADMIN FEE",31/3/2021 00:00:00,"246467",54,"DD0119","DUE DILIGENCE CHECKING LIMITED",1/3/2021 00:00:00,31/3/2021 00:00:00,"P12-2021"
,"LEE VALLEY RIDING CENTRE","EMPLOYEES","CRB CHECKS","1330","DBS CHECKS",31/3/2021 00:00:00,"246467",120,"DD0119","DUE DILIGENCE CHECKING LIMITED",1/3/2021 00:00:00,31/3/2021 00:00:00,"P12-2021"
,"LEE VALLEY ICE CENTRE","EMPLOYEES","CRB CHECKS","1330","DBS CHECKS",31/3/2021 00:00:00,"246467",23,"DD0119","DUE DILIGENCE CHECKING LIMITED",1/3/2021 00:00:00,31/3/2021 00:00:00,"P12-2021"
,"LEE VALLEY ICE CENTRE","EMPLOYEES","CRB CHECKS","1330","ADMIN FEE",31/3/2021 00:00:00,"246467",18,"DD0119","DUE DILIGENCE CHECKING LIMITED",1/3/2021 00:00:00,31/3/2021 00:00:00,"P12-2021"
,"LEE VALLEY ICE CENTRE","EMPLOYEES","CRB CHECKS","1330","DBS CREDIT",31/3/2021 00:00:00,"246468",-23,"DD0119","DUE DILIGENCE CHECKING LIMITED",1/3/2021 00:00:00,31/3/2021 00:00:00,"P12-2021"
,"LEE VALLEY ATHLETICS CENTRE","EMPLOYEES","CRB CHECKS","1330","DBS CHECKS",31/3/2021 00:00:00,"246467",23,"DD0119","DUE DILIGENCE CHECKING LIMITED",1/3/2021 00:00:00,31/3/2021 00:00:00,"P12-2021"
,"LEE VALLEY ATHLETICS CENTRE","EMPLOYEES","CRB CHECKS","1330","ADMIN FEE",31/3/2021 00:00:00,"246467",18,"DD0119","DUE DILIGENCE CHECKING LIMITED",1/3/2021 00:00:00,31/3/2021 00:00:00,"P12-2021"
,"LEE VALLEY ATHLETICS CENTRE","EMPLOYEES","CRB CHECKS","1330","DBS CREDIT",31/3/2021 00:00:00,"246468",-40,"DD0119","DUE DILIGENCE CHECKING LIMITED",1/3/2021 00:00:00,31/3/2021 00:00:00,"P12-2021"
,"LEE VALLEY WHITE WATER CENTRE","EMPLOYEES","CRB CHECKS","1330","ADMIN FEE",31/3/2021 00:00:00,"246467",126,"DD0119","DUE DILIGENCE CHECKING LIMITED",1/3/2021 00:00:00,31/3/2021 00:00:00,"P12-2021"
,"LEE VALLEY WHITE WATER CENTRE","EMPLOYEES","CRB CHECKS","1330","DBS CHECKS",31/3/2021 00:00:00,"246467",246,"DD0119","DUE DILIGENCE CHECKING LIMITED",1/3/2021 00:00:00,31/3/2021 00:00:00,"P12-2021"
,"LEE VALLEY WHITE WATER CENTRE","EMPLOYEES","CRB CHECKS","1330","DBS CREDIT",31/3/2021 00:00:00,"246468",-321,"DD0119","DUE DILIGENCE CHECKING LIMITED",1/3/2021 00:00:00,31/3/2021 00:00:00,"P12-2021"
,"LEE VALLEY RIDING CENTRE","EMPLOYEES","DRIVING LICENCE CHECKS","1335","ADMIN FEE",8/3/2021 00:00:00,"245161",18,"DD0119","DUE DILIGENCE CHECKING LIMITED",1/3/2021 00:00:00,31/3/2021 00:00:00,"P12-2021"
,"LEE VALLEY RIDING CENTRE","EMPLOYEES","DRIVING LICENCE CHECKS","1335","DBS CHECK",8/3/2021 00:00:00,"245161",23,"DD0119","DUE DILIGENCE CHECKING LIMITED",1/3/2021 00:00:00,31/3/2021 00:00:00,"P12-2021"
,"LEE VALLEY ICE CENTRE","EMPLOYEES","DRIVING LICENCE CHECKS","1335","DBS CHECK",8/3/2021 00:00:00,"245161",18,"DD0119","DUE DILIGENCE CHECKING LIMITED",1/3/2021 00:00:00,31/3/2021 00:00:00,"P12-2021"
,"LEE VALLEY ATHLETICS CENTRE","EMPLOYEES","DRIVING LICENCE CHECKS","1335","DBS CHECK",8/3/2021 00:00:00,"245161",46,"DD0119","DUE DILIGENCE CHECKING LIMITED",1/3/2021 00:00:00,31/3/2021 00:00:00,"P12-2021"
,"LEE VALLEY ATHLETICS CENTRE","EMPLOYEES","DRIVING LICENCE CHECKS","1335","ADMIN FEE",8/3/2021 00:00:00,"245161",36,"DD0119","DUE DILIGENCE CHECKING LIMITED",1/3/2021 00:00:00,31/3/2021 00:00:00,"P12-2021"
,"LEE VALLEY WHITE WATER CENTRE","EMPLOYEES","DRIVING LICENCE CHECKS","1335","ADMIN FEE",8/3/2021 00:00:00,"245161",18,"DD0119","DUE DILIGENCE CHECKING LIMITED",1/3/2021 00:00:00,31/3/2021 00:00:00,"P12-2021"
,"LEE VALLEY WHITE WATER CENTRE","EMPLOYEES","DRIVING LICENCE CHECKS","1335","DBS CHECK",8/3/2021 00:00:00,"245161",23,"DD0119","DUE DILIGENCE CHECKING LIMITED",1/3/2021 00:00:00,31/3/2021 00:00:00,"P12-2021"
"R&B","CORPORATE TRAINING","EMPLOYEES","APPRENTICE LEVY","1390","PAYE",29/3/2021 00:00:00,"245513",2143,"HM0368","HMRC",1/3/2021 00:00:00,31/3/2021 00:00:00,"P12-2021"
"CEO","LVLC SERVICE CHARGE","PREMISES RELATED EXPENDITURE","SCHEDULED GROUND MAINTENANCE","2111","GLENDALE GROUNDS MANAGEMENT LI",10/3/2021 00:00:00,"245108",1149.9,"GL0214","GLENDALE GROUNDS MANAGEMENT LIMITED",1/3/2021 00:00:00,31/3/2021 00:00:00,"P12-2021"
"CEO","LVLC SERVICE CHARGE","PREMISES RELATED EXPENDITURE","SCHEDULED GROUND MAINTENANCE","2111","GLENDALE GROUNDS MANAGEMENT LI",10/3/2021 00:00:00,"245108",50.68,"GL0214","GLENDALE GROUNDS MANAGEMENT LIMITED",1/3/2021 00:00:00,31/3/2021 00:00:00,"P12-2021"
"CEO","LVLC SERVICE CHARGE","PREMISES RELATED EXPENDITURE","SCHEDULED GROUND MAINTENANCE","2111","GLENDALE GROUNDS MANAGEMENT LI",31/3/2021 00:00:00,"246397",50.68,"GL0214","GLENDALE GROUNDS MANAGEMENT LIMITED",1/3/2021 00:00:00,31/3/2021 00:00:00,"P12-2021"
"CEO","LVLC SERVICE CHARGE","PREMISES RELATED EXPENDITURE","SCHEDULED GROUND MAINTENANCE","2111","GLENDALE GROUNDS MANAGEMENT LI",31/3/2021 00:00:00,"246397",1149.9,"GL0214","GLENDALE GROUNDS MANAGEMENT LIMITED",1/3/2021 00:00:00,31/3/2021 00:00:00,"P12-2021"
"CEO","LVLC SERVICE CHARGE","PREMISES RELATED EXPENDITURE","SCHEDULED GROUND MAINTENANCE","2111","GLENDALE GROUNDS MANAGEMENT LI",31/3/2021 00:00:00,"246398",156.81,"GL0214","GLENDALE GROUNDS MANAGEMENT LIMITED",1/3/2021 00:00:00,31/3/2021 00:00:00,"P12-2021"
"P&V","SOUTH AREA RANGERS","PREMISES RELATED EXPENDITURE","UNSCHEDULED GROUND MAINTENANCE","2112","P110987-SERVICE-Ice Centre Gate Locking / Unlocking",10/3/2021 00:00:00,"245109",288.24,"GL0214","GLENDALE GROUNDS MANAGEMENT LIMITED",1/3/2021 00:00:00,31/3/2021 00:00:00,"P12-2021"
,"LEE VALLEY CAMPSITE","PREMISES RELATED EXPENDITURE","CONTRACT CLEANING","2120","P111033-SERVICE-monthly cleaning",17/3/2021 00:00:00,"245157",721.5,"LI0305","LIMPIAR CLEANING",1/3/2021 00:00:00,31/3/2021 00:00:00,"P12-2021"
,"LEE VALLEY CAMPSITE","PREMISES RELATED EXPENDITURE","CONTRACT CLEANING","2120","P111034-SERVICE-Skip Empty",17/3/2021 00:00:00,"245179",472.07,"CL0037","VEOLIA ES (UK) LTD",1/3/2021 00:00:00,31/3/2021 00:00:00,"P12-2021"
,"LEE VALLEY CAMPSITE","PREMISES RELATED EXPENDITURE","CONTRACT CLEANING","2120","P111443-SERVICE-Cleaning Monthly March 2021 @ Sewardstone",31/3/2021 00:00:00,"246396",806,"LI0305","LIMPIAR CLEANING",1/3/2021 00:00:00,31/3/2021 00:00:00,"P12-2021"
,"LEE VALLEY CARAVAN PARK","PREMISES RELATED EXPENDITURE","CONTRACT CLEANING","2120","P111022-SERVICE-Initial washrooms",17/3/2021 00:00:00,"245060",90.39,"IN0012","INITIAL WASHROOM HYGIENE",1/3/2021 00:00:00,31/3/2021 00:00:00,"P12-2021"
,"LEE VALLEY CARAVAN PARK","PREMISES RELATED EXPENDITURE","CONTRACT CLEANING","2120","P111700-SERVICE-Limpiar contact cleaners",31/3/2021 00:00:00,"246741",554,"LI0305","LIMPIAR CLEANING",1/3/2021 00:00:00,31/3/2021 00:00:00,"P12-2021"
"P&V","NORTH AREA RANGERS","PREMISES RELATED EXPENDITURE","CONTRACT CLEANING","2120","GLENDALE GROUNDS MANAGEMENT LI",10/3/2021 00:00:00,"245108",254.55,"GL0214","GLENDALE GROUNDS MANAGEMENT LIMITED",1/3/2021 00:00:00,31/3/2021 00:00:00,"P12-2021"
"P&V","NORTH AREA RANGERS","PREMISES RELATED EXPENDITURE","CONTRACT CLEANING","2120","GLENDALE GROUNDS MANAGEMENT LI",31/3/2021 00:00:00,"246397",254.55,"GL0214","GLENDALE GROUNDS MANAGEMENT LIMITED",1/3/2021 00:00:00,31/3/2021 00:00:00,"P12-2021"
"P&V","GUNPOWDER PARK","PREMISES RELATED EXPENDITURE","CONTRACT CLEANING","2120","GLENDALE GROUNDS MANAGEMENT LI",10/3/2021 00:00:00,"245108",254.55,"GL0214","GLENDALE GROUNDS MANAGEMENT LIMITED",1/3/2021 00:00:00,31/3/2021 00:00:00,"P12-2021"
"P&V","GUNPOWDER PARK","PREMISES RELATED EXPENDITURE","CONTRACT CLEANING","2120","GLENDALE GROUNDS MANAGEMENT LI",31/3/2021 00:00:00,"246397",254.55,"GL0214","GLENDALE GROUNDS MANAGEMENT LIMITED",1/3/2021 00:00:00,31/3/2021 00:00:00,"P12-2021"
"P&V","RIVER LEE COUNTRY PARK","PREMISES RELATED EXPENDITURE","CONTRACT CLEANING","2120","GLENDALE GROUNDS MANAGEMENT LI",10/3/2021 00:00:00,"245108",509.09,"GL0214","GLENDALE GROUNDS MANAGEMENT LIMITED",1/3/2021 00:00:00,31/3/2021 00:00:00,"P12-2021"
"P&V","RIVER LEE COUNTRY PARK","PREMISES RELATED EXPENDITURE","CONTRACT CLEANING","2120","GLENDALE GROUNDS MANAGEMENT LI",31/3/2021 00:00:00,"246397",509.09,"GL0214","GLENDALE GROUNDS MANAGEMENT LIMITED",1/3/2021 00:00:00,31/3/2021 00:00:00,"P12-2021"
,"LEE VALLEY ICE CENTRE","PREMISES RELATED EXPENDITURE","CONTRACT CLEANING","2120","P110971-SERVICE-Cleaners",8/3/2021 00:00:00,"245071",1375.1,"MA0015","MAYFAIR CLEANING COMPANY LIMITED",1/3/2021 00:00:00,31/3/2021 00:00:00,"P12-2021"
,"LEE VALLEY ICE CENTRE","PREMISES RELATED EXPENDITURE","CONTRACT CLEANING","2120","P111676-SERVICE-Cleaners",31/3/2021 00:00:00,"246271",1375.1,"MA0015","MAYFAIR CLEANING COMPANY LIMITED",1/3/2021 00:00:00,31/3/2021 00:00:00,"P12-2021"
,"LEE VALLEY RIDING CENTRE","PREMISES RELATED EXPENDITURE","CLEANING CONTRACT","2121","P111523-SERVICE-reduced cleaning March 21",31/3/2021 00:00:00,"246272",540.24,"MA0015","MAYFAIR CLEANING COMPANY LIMITED",1/3/2021 00:00:00,31/3/2021 00:00:00,"P12-2021"
,"LEE VALLEY MARINA STANSTEAD","PREMISES RELATED EXPENDITURE","GM MAIN CONTRACT SCHEDULED","2141","GLENDALE GROUNDS MANAGEMENT LI",10/3/2021 00:00:00,"245108",176.99,"GL0214","GLENDALE GROUNDS MANAGEMENT LIMITED",1/3/2021 00:00:00,31/3/2021 00:00:00,"P12-2021"
,"LEE VALLEY MARINA STANSTEAD","PREMISES RELATED EXPENDITURE","GM MAIN CONTRACT SCHEDULED","2141","GLENDALE GROUNDS MANAGEMENT LI",31/3/2021 00:00:00,"246397",176.99,"GL0214","GLENDALE GROUNDS MANAGEMENT LIMITED",1/3/2021 00:00:00,31/3/2021 00:00:00,"P12-2021"
,"LEE VALLEY MARINA STANSTEAD","PREMISES RELATED EXPENDITURE","GM MAIN CONTRACT SCHEDULED","2141","GLENDALE GROUNDS MANAGEMENT LI",31/3/2021 00:00:00,"246398",131.05,"GL0214","GLENDALE GROUNDS MANAGEMENT LIMITED",1/3/2021 00:00:00,31/3/2021 00:00:00,"P12-2021"
,"LEE VALLEY WATERWORKS CENTRE","PREMISES RELATED EXPENDITURE","GM MAIN CONTRACT SCHEDULED","2141","GLENDALE GROUNDS MANAGEMENT LI",10/3/2021 00:00:00,"245108",87.49,"GL0214","GLENDALE GROUNDS MANAGEMENT LIMITED",1/3/2021 00:00:00,31/3/2021 00:00:00,"P12-2021"
,"LEE VALLEY WATERWORKS CENTRE","PREMISES RELATED EXPENDITURE","GM MAIN CONTRACT SCHEDULED","2141","GLENDALE GROUNDS MANAGEMENT LI",10/3/2021 00:00:00,"245108",201.72,"GL0214","GLENDALE GROUNDS MANAGEMENT LIMITED",1/3/2021 00:00:00,31/3/2021 00:00:00,"P12-2021"
,"LEE VALLEY WATERWORKS CENTRE","PREMISES RELATED EXPENDITURE","GM MAIN CONTRACT SCHEDULED","2141","GLENDALE GROUNDS MANAGEMENT LI",31/3/2021 00:00:00,"246397",201.72,"GL0214","GLENDALE GROUNDS MANAGEMENT LIMITED",1/3/2021 00:00:00,31/3/2021 00:00:00,"P12-2021"
,"LEE VALLEY WATERWORKS CENTRE","PREMISES RELATED EXPENDITURE","GM MAIN CONTRACT SCHEDULED","2141","GLENDALE GROUNDS MANAGEMENT LI",31/3/2021 00:00:00,"246397",87.49,"GL0214","GLENDALE GROUNDS MANAGEMENT LIMITED",1/3/2021 00:00:00,31/3/2021 00:00:00,"P12-2021"
,"LEE VALLEY WATERWORKS CENTRE","PREMISES RELATED EXPENDITURE","GM MAIN CONTRACT SCHEDULED","2141","GLENDALE GROUNDS MANAGEMENT LI",31/3/2021 00:00:00,"246398",131.88,"GL0214","GLENDALE GROUNDS MANAGEMENT LIMITED",1/3/2021 00:00:00,31/3/2021 00:00:00,"P12-2021"
,"LEE VALLEY FARM HAYES HILL","PREMISES RELATED EXPENDITURE","GM MAIN CONTRACT SCHEDULED","2141","GLENDALE GROUNDS MANAGEMENT LI",10/3/2021 00:00:00,"245108",421.41,"GL0214","GLENDALE GROUNDS MANAGEMENT LIMITED",1/3/2021 00:00:00,31/3/2021 00:00:00,"P12-2021"
,"LEE VALLEY FARM HAYES HILL","PREMISES RELATED EXPENDITURE","GM MAIN CONTRACT SCHEDULED","2141","GLENDALE GROUNDS MANAGEMENT LI",31/3/2021 00:00:00,"246397",421.41,"GL0214","GLENDALE GROUNDS MANAGEMENT LIMITED",1/3/2021 00:00:00,31/3/2021 00:00:00,"P12-2021"
,"LEE VALLEY FARM HAYES HILL","PREMISES RELATED EXPENDITURE","GM MAIN CONTRACT SCHEDULED","2141","GLENDALE GROUNDS MANAGEMENT LI",31/3/2021 00:00:00,"246398",225.78,"GL0214","GLENDALE GROUNDS MANAGEMENT LIMITED",1/3/2021 00:00:00,31/3/2021 00:00:00,"P12-2021"
"P&V","EAST INDIA DOCK AND BOW CREEK","PREMISES RELATED EXPENDITURE","GM MAIN CONTRACT SCHEDULED","2141","GLENDALE GROUNDS MANAGEMENT LI",10/3/2021 00:00:00,"245108",437.46,"GL0214","GLENDALE GROUNDS MANAGEMENT LIMITED",1/3/2021 00:00:00,31/3/2021 00:00:00,"P12-2021"
"P&V","EAST INDIA DOCK AND BOW CREEK","PREMISES RELATED EXPENDITURE","GM MAIN CONTRACT SCHEDULED","2141","GLENDALE GROUNDS MANAGEMENT LI",10/3/2021 00:00:00,"245108",358.21,"GL0214","GLENDALE GROUNDS MANAGEMENT LIMITED",1/3/2021 00:00:00,31/3/2021 00:00:00,"P12-2021"
"P&V","EAST INDIA DOCK AND BOW CREEK","PREMISES RELATED EXPENDITURE","GM MAIN CONTRACT SCHEDULED","2141","GLENDALE GROUNDS MANAGEMENT LI",31/3/2021 00:00:00,"246397",358.21,"GL0214","GLENDALE GROUNDS MANAGEMENT LIMITED",1/3/2021 00:00:00,31/3/2021 00:00:00,"P12-2021"
"P&V","EAST INDIA DOCK AND BOW CREEK","PREMISES RELATED EXPENDITURE","GM MAIN CONTRACT SCHEDULED","2141","GLENDALE GROUNDS MANAGEMENT LI",31/3/2021 00:00:00,"246397",437.46,"GL0214","GLENDALE GROUNDS MANAGEMENT LIMITED",1/3/2021 00:00:00,31/3/2021 00:00:00,"P12-2021"
"P&V","EAST INDIA DOCK AND BOW CREEK","PREMISES RELATED EXPENDITURE","GM MAIN CONTRACT SCHEDULED","2141","GLENDALE GROUNDS MANAGEMENT LI",31/3/2021 00:00:00,"246398",382.68,"GL0214","GLENDALE GROUNDS MANAGEMENT LIMITED",1/3/2021 00:00:00,31/3/2021 00:00:00,"P12-2021"
"P&V","NORTH AREA RANGERS","PREMISES RELATED EXPENDITURE","GM MAIN CONTRACT SCHEDULED","2141","GLENDALE GROUNDS MANAGEMENT LI",10/3/2021 00:00:00,"245108",2563.42,"GL0214","GLENDALE GROUNDS MANAGEMENT LIMITED",1/3/2021 00:00:00,31/3/2021 00:00:00,"P12-2021"
"P&V","NORTH AREA RANGERS","PREMISES RELATED EXPENDITURE","GM MAIN CONTRACT SCHEDULED","2141","GLENDALE GROUNDS MANAGEMENT LI",31/3/2021 00:00:00,"246397",2563.42,"GL0214","GLENDALE GROUNDS MANAGEMENT LIMITED",1/3/2021 00:00:00,31/3/2021 00:00:00,"P12-2021"
"P&V","NORTH AREA RANGERS","PREMISES RELATED EXPENDITURE","GM MAIN CONTRACT SCHEDULED","2141","GLENDALE GROUNDS MANAGEMENT LI",31/3/2021 00:00:00,"246398",995.25,"GL0214","GLENDALE GROUNDS MANAGEMENT LIMITED",1/3/2021 00:00:00,31/3/2021 00:00:00,"P12-2021"
"P&V","SOUTH AREA RANGERS","PREMISES RELATED EXPENDITURE","GM MAIN CONTRACT SCHEDULED","2141","GLENDALE GROUNDS MANAGEMENT LI",10/3/2021 00:00:00,"245108",5008.16,"GL0214","GLENDALE GROUNDS MANAGEMENT LIMITED",1/3/2021 00:00:00,31/3/2021 00:00:00,"P12-2021"
"P&V","SOUTH AREA RANGERS","PREMISES RELATED EXPENDITURE","GM MAIN CONTRACT SCHEDULED","2141","GLENDALE GROUNDS MANAGEMENT LI",10/3/2021 00:00:00,"245108",174.98,"GL0214","GLENDALE GROUNDS MANAGEMENT LIMITED",1/3/2021 00:00:00,31/3/2021 00:00:00,"P12-2021"
"P&V","SOUTH AREA RANGERS","PREMISES RELATED EXPENDITURE","GM MAIN CONTRACT SCHEDULED","2141","GLENDALE GROUNDS MANAGEMENT LI",31/3/2021 00:00:00,"246397",174.98,"GL0214","GLENDALE GROUNDS MANAGEMENT LIMITED",1/3/2021 00:00:00,31/3/2021 00:00:00,"P12-2021"
"P&V","SOUTH AREA RANGERS","PREMISES RELATED EXPENDITURE","GM MAIN CONTRACT SCHEDULED","2141","GLENDALE GROUNDS MANAGEMENT LI",31/3/2021 00:00:00,"246397",5008.16,"GL0214","GLENDALE GROUNDS MANAGEMENT LIMITED",1/3/2021 00:00:00,31/3/2021 00:00:00,"P12-2021"
"P&V","SOUTH AREA RANGERS","PREMISES RELATED EXPENDITURE","GM MAIN CONTRACT SCHEDULED","2141","GLENDALE GROUNDS MANAGEMENT LI",31/3/2021 00:00:00,"246398",1479.48,"GL0214","GLENDALE GROUNDS MANAGEMENT LIMITED",1/3/2021 00:00:00,31/3/2021 00:00:00,"P12-2021"
"P&V","ABBEY GARDENS","PREMISES RELATED EXPENDITURE","GM MAIN CONTRACT SCHEDULED","2141","GLENDALE GROUNDS MANAGEMENT LI",10/3/2021 00:00:00,"245108",1331.73,"GL0214","GLENDALE GROUNDS MANAGEMENT LIMITED",1/3/2021 00:00:00,31/3/2021 00:00:00,"P12-2021"
"P&V","ABBEY GARDENS","PREMISES RELATED EXPENDITURE","GM MAIN CONTRACT SCHEDULED","2141","GLENDALE GROUNDS MANAGEMENT LI",31/3/2021 00:00:00,"246397",1331.73,"GL0214","GLENDALE GROUNDS MANAGEMENT LIMITED",1/3/2021 00:00:00,31/3/2021 00:00:00,"P12-2021"
"P&V","ABBEY GARDENS","PREMISES RELATED EXPENDITURE","GM MAIN CONTRACT SCHEDULED","2141","GLENDALE GROUNDS MANAGEMENT LI",31/3/2021 00:00:00,"246398",286.99,"GL0214","GLENDALE GROUNDS MANAGEMENT LIMITED",1/3/2021 00:00:00,31/3/2021 00:00:00,"P12-2021"
"P&V","GUNPOWDER PARK","PREMISES RELATED EXPENDITURE","GM MAIN CONTRACT SCHEDULED","2141","GLENDALE GROUNDS MANAGEMENT LI",10/3/2021 00:00:00,"245108",1514.42,"GL0214","GLENDALE GROUNDS MANAGEMENT LIMITED",1/3/2021 00:00:00,31/3/2021 00:00:00,"P12-2021"
"P&V","GUNPOWDER PARK","PREMISES RELATED EXPENDITURE","GM MAIN CONTRACT SCHEDULED","2141","GLENDALE GROUNDS MANAGEMENT LI",31/3/2021 00:00:00,"246397",1514.42,"GL0214","GLENDALE GROUNDS MANAGEMENT LIMITED",1/3/2021 00:00:00,31/3/2021 00:00:00,"P12-2021"
"P&V","GUNPOWDER PARK","PREMISES RELATED EXPENDITURE","GM MAIN CONTRACT SCHEDULED","2141","GLENDALE GROUNDS MANAGEMENT LI",31/3/2021 00:00:00,"246398",605.09,"GL0214","GLENDALE GROUNDS MANAGEMENT LIMITED",1/3/2021 00:00:00,31/3/2021 00:00:00,"P12-2021"
"P&V","RIVER LEE COUNTRY PARK","PREMISES RELATED EXPENDITURE","GM MAIN CONTRACT SCHEDULED","2141","GLENDALE GROUNDS MANAGEMENT LI",10/3/2021 00:00:00,"245108",1049.89,"GL0214","GLENDALE GROUNDS MANAGEMENT LIMITED",1/3/2021 00:00:00,31/3/2021 00:00:00,"P12-2021"
"P&V","RIVER LEE COUNTRY PARK","PREMISES RELATED EXPENDITURE","GM MAIN CONTRACT SCHEDULED","2141","GLENDALE GROUNDS MANAGEMENT LI",10/3/2021 00:00:00,"245108",9017.99,"GL0214","GLENDALE GROUNDS MANAGEMENT LIMITED",1/3/2021 00:00:00,31/3/2021 00:00:00,"P12-2021"
"P&V","RIVER LEE COUNTRY PARK","PREMISES RELATED EXPENDITURE","GM MAIN CONTRACT SCHEDULED","2141","GLENDALE GROUNDS MANAGEMENT LI",31/3/2021 00:00:00,"246397",9017.99,"GL0214","GLENDALE GROUNDS MANAGEMENT LIMITED",1/3/2021 00:00:00,31/3/2021 00:00:00,"P12-2021"
"P&V","RIVER LEE COUNTRY PARK","PREMISES RELATED EXPENDITURE","GM MAIN CONTRACT SCHEDULED","2141","GLENDALE GROUNDS MANAGEMENT LI",31/3/2021 00:00:00,"246397",1049.89,"GL0214","GLENDALE GROUNDS MANAGEMENT LIMITED",1/3/2021 00:00:00,31/3/2021 00:00:00,"P12-2021"
"P&V","RIVER LEE COUNTRY PARK","PREMISES RELATED EXPENDITURE","GM MAIN CONTRACT SCHEDULED","2141","GLENDALE GROUNDS MANAGEMENT LI",31/3/2021 00:00:00,"246398",4255.48,"GL0214","GLENDALE GROUNDS MANAGEMENT LIMITED",1/3/2021 00:00:00,31/3/2021 00:00:00,"P12-2021"
,"LEE VALLEY VELOPARK","PREMISES RELATED EXPENDITURE","GM MAIN CONTRACT SCHEDULED","2141","GLENDALE GROUNDS MANAGEMENT LI",10/3/2021 00:00:00,"245108",846.1,"GL0214","GLENDALE GROUNDS MANAGEMENT LIMITED",1/3/2021 00:00:00,31/3/2021 00:00:00,"P12-2021"
,"LEE VALLEY VELOPARK","PREMISES RELATED EXPENDITURE","GM MAIN CONTRACT SCHEDULED","2141","GLENDALE GROUNDS MANAGEMENT LI",31/3/2021 00:00:00,"246397",846.1,"GL0214","GLENDALE GROUNDS MANAGEMENT LIMITED",1/3/2021 00:00:00,31/3/2021 00:00:00,"P12-2021"
"R&B","CORPORATE TRAINING","EMPLOYEES","TRAINING EXPENSES","1305","P111326-SERVICE-Annual Payroll Update L Read 2/3 March 21",30/3/2021 00:00:00,"246099",175,"VI0074","VINE HR LIMITED",1/3/2021 00:00:00,31/3/2021 00:00:00,"P12-2021"
"R&B","CORPORATE TRAINING","EMPLOYEES","TRAINING EXPENSES","1305","P110873-SERVICE-First Aid Refresher Training 23/24 March 21",31/3/2021 00:00:00,"246376",1050,"RI0181","RD HEALTH & SAFETY LIMITED",1/3/2021 00:00:00,31/3/2021 00:00:00,"P12-2021"
"R&B","CORPORATE TRAINING","EMPLOYEES","TRAINING EXPENSES","1305","P110873-SERVICE-First Aid Refresher Training 15/16/March 21",31/3/2021 00:00:00,"246376",1050,"RI0181","RD HEALTH & SAFETY LIMITED",1/3/2021 00:00:00,31/3/2021 00:00:00,"P12-2021"
"P&V","LEE VALLEY FARM HOLYFIELDHALL","EMPLOYEES","TRAINING EXPENSES","1305","P111150-SERVICE-NRoSO Membership for Jason Painter",22/3/2021 00:00:00,"245584",29,"CI0669","CITY & GUILDS OF LONDON INSTITUTE",1/3/2021 00:00:00,31/3/2021 00:00:00,"P12-2021"
,"LEE VALLEY WHITE WATER CENTRE","EMPLOYEES","TRAINING EXPENSES","1305","P109140-SERVICE-Stadium safety award x 8 participants",23/3/2021 00:00:00,"245734",91.63,"BR0580","BRITISH CANOEING",1/3/2021 00:00:00,31/3/2021 00:00:00,"P12-2021"
"R&B","NON DISTRIBUTED COSTS","EMPLOYEES","SUPERANNUATION ADDED YEARS","1310","LONDON PENSIONS FUND AUTHORITY",31/3/2021 00:00:00,"246257",6453.89,"LO0031","LONDON PENSIONS FUND AUTHORITY",1/3/2021 00:00:00,31/3/2021 00:00:00,"P12-2021"
,"LEE VALLEY MARINA STANSTEAD","EMPLOYEES","CRB CHECKS","1330","DBS CREDIT",31/3/2021 00:00:00,"246468",-40,"DD0119","DUE DILIGENCE CHECKING LIMITED",1/3/2021 00:00:00,31/3/2021 00:00:00,"P12-2021"
,"LEE VALLEY CAMPSITE","EMPLOYEES","CRB CHECKS","1330","DBS CHECK",31/3/2021 00:00:00,"246467",23,"DD0119","DUE DILIGENCE CHECKING LIMITED",1/3/2021 00:00:00,31/3/2021 00:00:00,"P12-2021"
,"LEE VALLEY CAMPSITE","EMPLOYEES","CRB CHECKS","1330","ADMIN FEE",31/3/2021 00:00:00,"246467",18,"DD0119","DUE DILIGENCE CHECKING LIMITED",1/3/2021 00:00:00,31/3/2021 00:00:00,"P12-2021"
,"LEE VALLEY CARAVAN PARK","EMPLOYEES","CRB CHECKS","1330","DBS CREDIT",31/3/2021 00:00:00,"246468",-23,"DD0119","DUE DILIGENCE CHECKING LIMITED",1/3/2021 00:00:00,31/3/2021 00:00:00,"P12-2021"
"P&V","SOUTH AREA RANGERS","EMPLOYEES","CRB CHECKS","1330","ADMIN FEE",31/3/2021 00:00:00,"246467",18,"DD0119","DUE DILIGENCE CHECKING LIMITED",1/3/2021 00:00:00,31/3/2021 00:00:00,"P12-2021"
"P&V","SOUTH AREA RANGERS","EMPLOYEES","CRB CHECKS","1330","DBS CHECKS",31/3/2021 00:00:00,"246467",40,"DD0119","DUE DILIGENCE CHECKING LIMITED",1/3/2021 00:00:00,31/3/2021 00:00:00,"P12-2021"
,"LEE VALLEY VELOPARK","EMPLOYEES","CRB CHECKS","1330","DBS CHECKS",31/3/2021 00:00:00,"246467",36,"DD0119","DUE DILIGENCE CHECKING LIMITED",1/3/2021 00:00:00,31/3/2021 00:00:00,"P12-2021"
,"LEE VALLEY VELOPARK","PREMISES RELATED EXPENDITURE","GM MAIN CONTRACT SCHEDULED","2141","GLENDALE GROUNDS MANAGEMENT LI",31/3/2021 00:00:00,"246398",143.24,"GL0214","GLENDALE GROUNDS MANAGEMENT LIMITED",1/3/2021 00:00:00,31/3/2021 00:00:00,"P12-2021"
,"LV HOCKEY AND TENNIS CENTRE","PREMISES RELATED EXPENDITURE","GM MAIN CONTRACT SCHEDULED","2141","GLENDALE GROUNDS MANAGEMENT LI",10/3/2021 00:00:00,"245108",1033.94,"GL0214","GLENDALE GROUNDS MANAGEMENT LIMITED",1/3/2021 00:00:00,31/3/2021 00:00:00,"P12-2021"
,"LV HOCKEY AND TENNIS CENTRE","PREMISES RELATED EXPENDITURE","GM MAIN CONTRACT SCHEDULED","2141","GLENDALE GROUNDS MANAGEMENT LI",31/3/2021 00:00:00,"246397",1033.94,"GL0214","GLENDALE GROUNDS MANAGEMENT LIMITED",1/3/2021 00:00:00,31/3/2021 00:00:00,"P12-2021"
,"LV HOCKEY AND TENNIS CENTRE","PREMISES RELATED EXPENDITURE","GM MAIN CONTRACT SCHEDULED","2141","GLENDALE GROUNDS MANAGEMENT LI",31/3/2021 00:00:00,"246398",125.13,"GL0214","GLENDALE GROUNDS MANAGEMENT LIMITED",1/3/2021 00:00:00,31/3/2021 00:00:00,"P12-2021"
"P&V","THREE MILLS","PREMISES RELATED EXPENDITURE","GM MAIN CONTRACT SCHEDULED","2141","GLENDALE GROUNDS MANAGEMENT LI",10/3/2021 00:00:00,"245108",600.87,"GL0214","GLENDALE GROUNDS MANAGEMENT LIMITED",1/3/2021 00:00:00,31/3/2021 00:00:00,"P12-2021"
"P&V","THREE MILLS","PREMISES RELATED EXPENDITURE","GM MAIN CONTRACT SCHEDULED","2141","GLENDALE GROUNDS MANAGEMENT LI",31/3/2021 00:00:00,"246397",600.87,"GL0214","GLENDALE GROUNDS MANAGEMENT LIMITED",1/3/2021 00:00:00,31/3/2021 00:00:00,"P12-2021"
"P&V","THREE MILLS","PREMISES RELATED EXPENDITURE","GM MAIN CONTRACT SCHEDULED","2141","GLENDALE GROUNDS MANAGEMENT LI",31/3/2021 00:00:00,"246398",111.29,"GL0214","GLENDALE GROUNDS MANAGEMENT LIMITED",1/3/2021 00:00:00,31/3/2021 00:00:00,"P12-2021"
,"LEE VALLEY RIDING CENTRE","PREMISES RELATED EXPENDITURE","GM MAIN CONTRACT SCHEDULED","2141","GLENDALE GROUNDS MANAGEMENT LI",10/3/2021 00:00:00,"245108",197.22,"GL0214","GLENDALE GROUNDS MANAGEMENT LIMITED",1/3/2021 00:00:00,31/3/2021 00:00:00,"P12-2021"
,"LEE VALLEY RIDING CENTRE","PREMISES RELATED EXPENDITURE","GM MAIN CONTRACT SCHEDULED","2141","GLENDALE GROUNDS MANAGEMENT LI",31/3/2021 00:00:00,"246397",197.22,"GL0214","GLENDALE GROUNDS MANAGEMENT LIMITED",1/3/2021 00:00:00,31/3/2021 00:00:00,"P12-2021"
,"LEE VALLEY RIDING CENTRE","PREMISES RELATED EXPENDITURE","GM MAIN CONTRACT SCHEDULED","2141","GLENDALE GROUNDS MANAGEMENT LI",31/3/2021 00:00:00,"246398",84.23,"GL0214","GLENDALE GROUNDS MANAGEMENT LIMITED",1/3/2021 00:00:00,31/3/2021 00:00:00,"P12-2021"
,"LEE VALLEY ICE CENTRE","PREMISES RELATED EXPENDITURE","GM MAIN CONTRACT SCHEDULED","2141","GLENDALE GROUNDS MANAGEMENT LI",10/3/2021 00:00:00,"245108",144.35,"GL0214","GLENDALE GROUNDS MANAGEMENT LIMITED",1/3/2021 00:00:00,31/3/2021 00:00:00,"P12-2021"
,"LEE VALLEY ICE CENTRE","PREMISES RELATED EXPENDITURE","GM MAIN CONTRACT SCHEDULED","2141","GLENDALE GROUNDS MANAGEMENT LI",31/3/2021 00:00:00,"246397",144.35,"GL0214","GLENDALE GROUNDS MANAGEMENT LIMITED",1/3/2021 00:00:00,31/3/2021 00:00:00,"P12-2021"
,"LEE VALLEY ICE CENTRE","PREMISES RELATED EXPENDITURE","GM MAIN CONTRACT SCHEDULED","2141","GLENDALE GROUNDS MANAGEMENT LI",31/3/2021 00:00:00,"246398",85.77,"GL0214","GLENDALE GROUNDS MANAGEMENT LIMITED",1/3/2021 00:00:00,31/3/2021 00:00:00,"P12-2021"
"P&V","FORMER LV LIDO SITE","PREMISES RELATED EXPENDITURE","GM MAIN CONTRACT SCHEDULED","2141","GLENDALE GROUNDS MANAGEMENT LI",10/3/2021 00:00:00,"245108",477.39,"GL0214","GLENDALE GROUNDS MANAGEMENT LIMITED",1/3/2021 00:00:00,31/3/2021 00:00:00,"P12-2021"
"P&V","FORMER LV LIDO SITE","PREMISES RELATED EXPENDITURE","GM MAIN CONTRACT SCHEDULED","2141","GLENDALE GROUNDS MANAGEMENT LI",31/3/2021 00:00:00,"246397",477.39,"GL0214","GLENDALE GROUNDS MANAGEMENT LIMITED",1/3/2021 00:00:00,31/3/2021 00:00:00,"P12-2021"
"P&V","FORMER LV LIDO SITE","PREMISES RELATED EXPENDITURE","GM MAIN CONTRACT SCHEDULED","2141","GLENDALE GROUNDS MANAGEMENT LI",31/3/2021 00:00:00,"246398",168.06,"GL0214","GLENDALE GROUNDS MANAGEMENT LIMITED",1/3/2021 00:00:00,31/3/2021 00:00:00,"P12-2021"
,"LEE VALLEY ATHLETICS CENTRE","PREMISES RELATED EXPENDITURE","GM MAIN CONTRACT SCHEDULED","2141","GLENDALE GROUNDS MANAGEMENT LI",10/3/2021 00:00:00,"245108",233.84,"GL0214","GLENDALE GROUNDS MANAGEMENT LIMITED",1/3/2021 00:00:00,31/3/2021 00:00:00,"P12-2021"
,"LEE VALLEY ATHLETICS CENTRE","PREMISES RELATED EXPENDITURE","GM MAIN CONTRACT SCHEDULED","2141","GLENDALE GROUNDS MANAGEMENT LI",31/3/2021 00:00:00,"246397",233.84,"GL0214","GLENDALE GROUNDS MANAGEMENT LIMITED",1/3/2021 00:00:00,31/3/2021 00:00:00,"P12-2021"
,"LEE VALLEY ATHLETICS CENTRE","PREMISES RELATED EXPENDITURE","GM MAIN CONTRACT SCHEDULED","2141","GLENDALE GROUNDS MANAGEMENT LI",31/3/2021 00:00:00,"246398",162.71,"GL0214","GLENDALE GROUNDS MANAGEMENT LIMITED",1/3/2021 00:00:00,31/3/2021 00:00:00,"P12-2021"
,"LEE VALLEY WHITE WATER CENTRE","PREMISES RELATED EXPENDITURE","GM MAIN CONTRACT SCHEDULED","2141","GLENDALE GROUNDS MANAGEMENT LI",10/3/2021 00:00:00,"245108",829.25,"GL0214","GLENDALE GROUNDS MANAGEMENT LIMITED",1/3/2021 00:00:00,31/3/2021 00:00:00,"P12-2021"
,"LEE VALLEY WHITE WATER CENTRE","PREMISES RELATED EXPENDITURE","GM MAIN CONTRACT SCHEDULED","2141","GLENDALE GROUNDS MANAGEMENT LI",31/3/2021 00:00:00,"246397",829.25,"GL0214","GLENDALE GROUNDS MANAGEMENT LIMITED",1/3/2021 00:00:00,31/3/2021 00:00:00,"P12-2021"
,"LEE VALLEY WHITE WATER CENTRE","PREMISES RELATED EXPENDITURE","GM MAIN CONTRACT SCHEDULED","2141","GLENDALE GROUNDS MANAGEMENT LI",31/3/2021 00:00:00,"246398",501.44,"GL0214","GLENDALE GROUNDS MANAGEMENT LIMITED",1/3/2021 00:00:00,31/3/2021 00:00:00,"P12-2021"
"P&V","SOUTH AREA RANGERS","PREMISES RELATED EXPENDITURE","GM MAIN CONTRACT UNSCHEDULED","2142","P110733-SERVICE-Cleaning WaterWorks Centre - February 2021",9/3/2021 00:00:00,"245111",467.6,"GL0214","GLENDALE GROUNDS MANAGEMENT LIMITED",1/3/2021 00:00:00,31/3/2021 00:00:00,"P12-2021"
"P&V","SOUTH AREA RANGERS","PREMISES RELATED EXPENDITURE","GM MAIN CONTRACT UNSCHEDULED","2142","P110734-SERVICE-Cleaning WaterWorks Centre - March 2021",31/3/2021 00:00:00,"246400",526.05,"GL0214","GLENDALE GROUNDS MANAGEMENT LIMITED",1/3/2021 00:00:00,31/3/2021 00:00:00,"P12-2021"
,"LEE VALLEY WATERWORKS CENTRE","PREMISES RELATED EXPENDITURE","GM HORTICULTURE SCHEDULED","2143","GLENDALE GROUNDS MANAGEMENT LI",10/3/2021 00:00:00,"245108",77.81,"GL0214","GLENDALE GROUNDS MANAGEMENT LIMITED",1/3/2021 00:00:00,31/3/2021 00:00:00,"P12-2021"
,"LEE VALLEY WATERWORKS CENTRE","PREMISES RELATED EXPENDITURE","GM HORTICULTURE SCHEDULED","2143","GLENDALE GROUNDS MANAGEMENT LI",31/3/2021 00:00:00,"246397",77.81,"GL0214","GLENDALE GROUNDS MANAGEMENT LIMITED",1/3/2021 00:00:00,31/3/2021 00:00:00,"P12-2021"
"P&V","NORTH AREA RANGERS","PREMISES RELATED EXPENDITURE","GM HORTICULTURE SCHEDULED","2143","GLENDALE GROUNDS MANAGEMENT LI",10/3/2021 00:00:00,"245108",109.32,"GL0214","GLENDALE GROUNDS MANAGEMENT LIMITED",1/3/2021 00:00:00,31/3/2021 00:00:00,"P12-2021"
"P&V","NORTH AREA RANGERS","PREMISES RELATED EXPENDITURE","GM HORTICULTURE SCHEDULED","2143","GLENDALE GROUNDS MANAGEMENT LI",31/3/2021 00:00:00,"246397",109.32,"GL0214","GLENDALE GROUNDS MANAGEMENT LIMITED",1/3/2021 00:00:00,31/3/2021 00:00:00,"P12-2021"
"P&V","SOUTH AREA RANGERS","PREMISES RELATED EXPENDITURE","GM HORTICULTURE SCHEDULED","2143","GLENDALE GROUNDS MANAGEMENT LI",10/3/2021 00:00:00,"245108",63.25,"GL0214","GLENDALE GROUNDS MANAGEMENT LIMITED",1/3/2021 00:00:00,31/3/2021 00:00:00,"P12-2021"
"P&V","SOUTH AREA RANGERS","PREMISES RELATED EXPENDITURE","GM HORTICULTURE SCHEDULED","2143","GLENDALE GROUNDS MANAGEMENT LI",31/3/2021 00:00:00,"246397",63.25,"GL0214","GLENDALE GROUNDS MANAGEMENT LIMITED",1/3/2021 00:00:00,31/3/2021 00:00:00,"P12-2021"
"P&V","ABBEY GARDENS","PREMISES RELATED EXPENDITURE","GM HORTICULTURE SCHEDULED","2143","GLENDALE GROUNDS MANAGEMENT LI",10/3/2021 00:00:00,"245108",909.91,"GL0214","GLENDALE GROUNDS MANAGEMENT LIMITED",1/3/2021 00:00:00,31/3/2021 00:00:00,"P12-2021"
"P&V","ABBEY GARDENS","PREMISES RELATED EXPENDITURE","GM HORTICULTURE SCHEDULED","2143","GLENDALE GROUNDS MANAGEMENT LI",31/3/2021 00:00:00,"246397",909.91,"GL0214","GLENDALE GROUNDS MANAGEMENT LIMITED",1/3/2021 00:00:00,31/3/2021 00:00:00,"P12-2021"
"P&V","GUNPOWDER PARK","PREMISES RELATED EXPENDITURE","GM HORTICULTURE SCHEDULED","2143","GLENDALE GROUNDS MANAGEMENT LI",10/3/2021 00:00:00,"245108",119.1,"GL0214","GLENDALE GROUNDS MANAGEMENT LIMITED",1/3/2021 00:00:00,31/3/2021 00:00:00,"P12-2021"
"P&V","GUNPOWDER PARK","PREMISES RELATED EXPENDITURE","GM HORTICULTURE SCHEDULED","2143","GLENDALE GROUNDS MANAGEMENT LI",31/3/2021 00:00:00,"246397",119.1,"GL0214","GLENDALE GROUNDS MANAGEMENT LIMITED",1/3/2021 00:00:00,31/3/2021 00:00:00,"P12-2021"
"P&V","RIVER LEE COUNTRY PARK","PREMISES RELATED EXPENDITURE","GM HORTICULTURE SCHEDULED","2143","GLENDALE GROUNDS MANAGEMENT LI",10/3/2021 00:00:00,"245108",61.08,"GL0214","GLENDALE GROUNDS MANAGEMENT LIMITED",1/3/2021 00:00:00,31/3/2021 00:00:00,"P12-2021"
"P&V","RIVER LEE COUNTRY PARK","PREMISES RELATED EXPENDITURE","GM HORTICULTURE SCHEDULED","2143","GLENDALE GROUNDS MANAGEMENT LI",31/3/2021 00:00:00,"246397",61.08,"GL0214","GLENDALE GROUNDS MANAGEMENT LIMITED",1/3/2021 00:00:00,31/3/2021 00:00:00,"P12-2021"
,"LEE VALLEY VELOPARK","PREMISES RELATED EXPENDITURE","GM HORTICULTURE SCHEDULED","2143","GLENDALE GROUNDS MANAGEMENT LI",10/3/2021 00:00:00,"245108",12.45,"GL0214","GLENDALE GROUNDS MANAGEMENT LIMITED",1/3/2021 00:00:00,31/3/2021 00:00:00,"P12-2021"
,"LEE VALLEY VELOPARK","PREMISES RELATED EXPENDITURE","GM HORTICULTURE SCHEDULED","2143","GLENDALE GROUNDS MANAGEMENT LI",31/3/2021 00:00:00,"246397",12.45,"GL0214","GLENDALE GROUNDS MANAGEMENT LIMITED",1/3/2021 00:00:00,31/3/2021 00:00:00,"P12-2021"
,"LV HOCKEY AND TENNIS CENTRE","PREMISES RELATED EXPENDITURE","GM HORTICULTURE SCHEDULED","2143","GLENDALE GROUNDS MANAGEMENT LI",10/3/2021 00:00:00,"245108",528.43,"GL0214","GLENDALE GROUNDS MANAGEMENT LIMITED",1/3/2021 00:00:00,31/3/2021 00:00:00,"P12-2021"
,"LV HOCKEY AND TENNIS CENTRE","PREMISES RELATED EXPENDITURE","GM HORTICULTURE SCHEDULED","2143","GLENDALE GROUNDS MANAGEMENT LI",31/3/2021 00:00:00,"246397",528.43,"GL0214","GLENDALE GROUNDS MANAGEMENT LIMITED",1/3/2021 00:00:00,31/3/2021 00:00:00,"P12-2021"
"P&V","THREE MILLS","PREMISES RELATED EXPENDITURE","GM HORTICULTURE SCHEDULED","2143","GLENDALE GROUNDS MANAGEMENT LI",10/3/2021 00:00:00,"245108",20,"GL0214","GLENDALE GROUNDS MANAGEMENT LIMITED",1/3/2021 00:00:00,31/3/2021 00:00:00,"P12-2021"
"P&V","THREE MILLS","PREMISES RELATED EXPENDITURE","GM HORTICULTURE SCHEDULED","2143","GLENDALE GROUNDS MANAGEMENT LI",31/3/2021 00:00:00,"246397",20,"GL0214","GLENDALE GROUNDS MANAGEMENT LIMITED",1/3/2021 00:00:00,31/3/2021 00:00:00,"P12-2021"
,"LEE VALLEY RIDING CENTRE","PREMISES RELATED EXPENDITURE","GM HORTICULTURE SCHEDULED","2143","GLENDALE GROUNDS MANAGEMENT LI",10/3/2021 00:00:00,"245108",6.19,"GL0214","GLENDALE GROUNDS MANAGEMENT LIMITED",1/3/2021 00:00:00,31/3/2021 00:00:00,"P12-2021"
,"LEE VALLEY RIDING CENTRE","PREMISES RELATED EXPENDITURE","GM HORTICULTURE SCHEDULED","2143","GLENDALE GROUNDS MANAGEMENT LI",31/3/2021 00:00:00,"246397",6.19,"GL0214","GLENDALE GROUNDS MANAGEMENT LIMITED",1/3/2021 00:00:00,31/3/2021 00:00:00,"P12-2021"
,"LEE VALLEY WHITE WATER CENTRE","PREMISES RELATED EXPENDITURE","GM HORTICULTURE SCHEDULED","2143","GLENDALE GROUNDS MANAGEMENT LI",10/3/2021 00:00:00,"245108",2.87,"GL0214","GLENDALE GROUNDS MANAGEMENT LIMITED",1/3/2021 00:00:00,31/3/2021 00:00:00,"P12-2021"
,"LEE VALLEY WHITE WATER CENTRE","PREMISES RELATED EXPENDITURE","GM HORTICULTURE SCHEDULED","2143","GLENDALE GROUNDS MANAGEMENT LI",31/3/2021 00:00:00,"246397",2.87,"GL0214","GLENDALE GROUNDS MANAGEMENT LIMITED",1/3/2021 00:00:00,31/3/2021 00:00:00,"P12-2021"
"P&V","MYDDELTON HOUSE GARDENS","PREMISES RELATED EXPENDITURE","GM HORTICULTURE UNSCHEDULED","2144","P110587-SERVICE-Hotbox propagator - quantity 1 (HOTBPROP)",8/3/2021 00:00:00,"245092",420.66,"FA0149","FARGRO LIMITED",1/3/2021 00:00:00,31/3/2021 00:00:00,"P12-2021"
"P&V","NORTH AREA RANGERS","PREMISES RELATED EXPENDITURE","GM ARBORICULTURE UNSCHEDULED","2146","P110564-SERVICE-Tree Works at Admirals Walk Lake - Emergency",10/3/2021 00:00:00,"244225",895,"MU0030","P J MUSK TREES",1/3/2021 00:00:00,31/3/2021 00:00:00,"P12-2021"
"P&V","ABBEY GARDENS","PREMISES RELATED EXPENDITURE","GM ARBORICULTURE UNSCHEDULED","2146","P110561-SERVICE-Hedge Works at Tree Park",29/3/2021 00:00:00,"246136",4380,"MU0030","P J MUSK TREES",1/3/2021 00:00:00,31/3/2021 00:00:00,"P12-2021"
"P&V","RIVER LEE COUNTRY PARK","PREMISES RELATED EXPENDITURE","GM ARBORICULTURE UNSCHEDULED","2146","P110217-SERVICE-Tree Works - Poplars at White Water Centre",9/3/2021 00:00:00,"245174",2950,"VE0004","PRINCIPAL TREES LTD",1/3/2021 00:00:00,31/3/2021 00:00:00,"P12-2021"
"P&V","RIVER LEE COUNTRY PARK","PREMISES RELATED EXPENDITURE","GM ARBORICULTURE UNSCHEDULED","2146","P110660-SERVICE-Tree Wprks at Rye House Gatehouse",29/3/2021 00:00:00,"246122",954,"MU0030","P J MUSK TREES",1/3/2021 00:00:00,31/3/2021 00:00:00,"P12-2021"
"P&V","RIVER LEE COUNTRY PARK","PREMISES RELATED EXPENDITURE","GM ARBORICULTURE UNSCHEDULED","2146","P109059-SERVICE-Inspect Poplars at White Water Centre Frontag",31/3/2021 00:00:00,"246241",450,"VE0004","PRINCIPAL TREES LTD",1/3/2021 00:00:00,31/3/2021 00:00:00,"P12-2021"
"P&V","FORMER LV LIDO SITE","PREMISES RELATED EXPENDITURE","GM ARBORICULTURE UNSCHEDULED","2146","P110895-SERVICE-Tree Works at Waltham Abbey Gardens",15/3/2021 00:00:00,"245354",210,"VE0004","PRINCIPAL TREES LTD",1/3/2021 00:00:00,31/3/2021 00:00:00,"P12-2021"
"P&V","FORMER LV LIDO SITE","PREMISES RELATED EXPENDITURE","GM ARBORICULTURE UNSCHEDULED","2146","P110895-SERVICE-Tree Works at Clayton Hill",15/3/2021 00:00:00,"245354",1725,"VE0004","PRINCIPAL TREES LTD",1/3/2021 00:00:00,31/3/2021 00:00:00,"P12-2021"
"P&V","FORMER LV LIDO SITE","PREMISES RELATED EXPENDITURE","GM ARBORICULTURE UNSCHEDULED","2146","P111155-SERVICE-Tree Works at Old Mill & Meadows",23/3/2021 00:00:00,"245723",100,"MU0030","P J MUSK TREES",1/3/2021 00:00:00,31/3/2021 00:00:00,"P12-2021"
"P&V","EAST INDIA DOCK AND BOW CREEK","PREMISES RELATED EXPENDITURE","GM NON MAIN CONT UNSCHEDULED","2147","P110683-SERVICE-Electrical Works at Bow Creek",15/3/2021 00:00:00,"245370",600,"BR0018","BRADSHAW ELECTRICAL LIMITED",1/3/2021 00:00:00,31/3/2021 00:00:00,"P12-2021"
"P&V","EAST INDIA DOCK AND BOW CREEK","PREMISES RELATED EXPENDITURE","GM NON MAIN CONT UNSCHEDULED","2147","P110684-SERVICE-Electrical Works - East India Dock Basin",17/3/2021 00:00:00,"245371",440,"BR0018","BRADSHAW ELECTRICAL LIMITED",1/3/2021 00:00:00,31/3/2021 00:00:00,"P12-2021"
"P&V","EAST INDIA DOCK AND BOW CREEK","PREMISES RELATED EXPENDITURE","GM NON MAIN CONT UNSCHEDULED","2147","P110684-SERVICE-Electrical Works - East India Dock Basin",17/3/2021 00:00:00,"245371",66,"BR0018","BRADSHAW ELECTRICAL LIMITED",1/3/2021 00:00:00,31/3/2021 00:00:00,"P12-2021"
"P&V","EAST INDIA DOCK AND BOW CREEK","PREMISES RELATED EXPENDITURE","GM NON MAIN CONT UNSCHEDULED","2147","P110684-SERVICE-Electrical Works - East India Dock Basin",17/3/2021 00:00:00,"245371",172,"BR0018","BRADSHAW ELECTRICAL LIMITED",1/3/2021 00:00:00,31/3/2021 00:00:00,"P12-2021"
"P&V","EAST INDIA DOCK AND BOW CREEK","PREMISES RELATED EXPENDITURE","GM NON MAIN CONT UNSCHEDULED","2147","P111184-SERVICE-4x Water Safety Signs and Fixings",23/3/2021 00:00:00,"245760",253.68,"SE0018","BRADY CORPORATION LIMITED/SETON",1/3/2021 00:00:00,31/3/2021 00:00:00,"P12-2021"
"P&V","EAST INDIA DOCK AND BOW CREEK","PREMISES RELATED EXPENDITURE","GM NON MAIN CONT UNSCHEDULED","2147","P111184-SERVICE-Delivery to address below",23/3/2021 00:00:00,"245760",14.94,"SE0018","BRADY CORPORATION LIMITED/SETON",1/3/2021 00:00:00,31/3/2021 00:00:00,"P12-2021"
"P&V","NORTH AREA RANGERS","PREMISES RELATED EXPENDITURE","GM NON MAIN CONT UNSCHEDULED","2147","P110615-SERVICE-Tree Works - Grebe Hide Area",16/3/2021 00:00:00,"245360",2190,"MU0030","P J MUSK TREES",1/3/2021 00:00:00,31/3/2021 00:00:00,"P12-2021"
"P&V","NORTH AREA RANGERS","PREMISES RELATED EXPENDITURE","GM NON MAIN CONT UNSCHEDULED","2147","P110615-SERVICE-Tree Works - Fishers Green Island South",16/3/2021 00:00:00,"245360",895,"MU0030","P J MUSK TREES",1/3/2021 00:00:00,31/3/2021 00:00:00,"P12-2021"
"P&V","NORTH AREA RANGERS","PREMISES RELATED EXPENDITURE","GM NON MAIN CONT UNSCHEDULED","2147","P110615-SERVICE-Tree Works - Old River Lee",16/3/2021 00:00:00,"245360",3885,"MU0030","P J MUSK TREES",1/3/2021 00:00:00,31/3/2021 00:00:00,"P12-2021"
"P&V","NORTH AREA RANGERS","PREMISES RELATED EXPENDITURE","GM NON MAIN CONT UNSCHEDULED","2147","P110871-SERVICE-Tree Works at Amwell Picnic Area",22/3/2021 00:00:00,"245709",450,"VE0004","PRINCIPAL TREES LTD",1/3/2021 00:00:00,31/3/2021 00:00:00,"P12-2021"
"P&V","NORTH AREA RANGERS","PREMISES RELATED EXPENDITURE","GM NON MAIN CONT UNSCHEDULED","2147","P110872-SERVICE-Tree Works - Dobbs Weir Area",22/3/2021 00:00:00,"245710",1680,"VE0004","PRINCIPAL TREES LTD",1/3/2021 00:00:00,31/3/2021 00:00:00,"P12-2021"
"P&V","NORTH AREA RANGERS","PREMISES RELATED EXPENDITURE","GM NON MAIN CONT UNSCHEDULED","2147","P110615-SERVICE-Tree Works - Rushey Mead",31/3/2021 00:00:00,"245967",2575,"MU0030","P J MUSK TREES",1/3/2021 00:00:00,31/3/2021 00:00:00,"P12-2021"
"P&V","SOUTH AREA RANGERS","PREMISES RELATED EXPENDITURE","GM NON MAIN CONT UNSCHEDULED","2147","P111048-SERVICE-Install Security Gates in Tool Container",31/3/2021 00:00:00,"246195",1430,"LW0268","LWC ENGINEERING LIMITED",1/3/2021 00:00:00,31/3/2021 00:00:00,"P12-2021"
"P&V","SOUTH AREA RANGERS","PREMISES RELATED EXPENDITURE","GM NON MAIN CONT UNSCHEDULED","2147","P111100-SERVICE-10x MOT Type 1 aggregate 1 tonne bulk bags",31/3/2021 00:00:00,"246626",440.9,"JE0011","SAINT-GOBAIN BUILDING DISTRIBUTION",1/3/2021 00:00:00,31/3/2021 00:00:00,"P12-2021"
"P&V","GUNPOWDER PARK","PREMISES RELATED EXPENDITURE","GM NON MAIN CONT UNSCHEDULED","2147","P111208-SERVICE-Line Painting Car Park SP&P and GPP",29/3/2021 00:00:00,"246120",780,"LI0251","LINEWAYS LTD",1/3/2021 00:00:00,31/3/2021 00:00:00,"P12-2021"
"P&V","RIVER LEE COUNTRY PARK","PREMISES RELATED EXPENDITURE","GM NON MAIN CONT UNSCHEDULED","2147","P110681-SERVICE-Tree Works at Old Mill & Meadows",8/3/2021 00:00:00,"244879",3120,"MU0030","P J MUSK TREES",1/3/2021 00:00:00,31/3/2021 00:00:00,"P12-2021"
"P&V","THREE MILLS","PREMISES RELATED EXPENDITURE","GM NON MAIN CONT UNSCHEDULED","2147","P110682-SERVICE-Electrical Works at Three Mills",15/3/2021 00:00:00,"245369",415,"BR0018","BRADSHAW ELECTRICAL LIMITED",1/3/2021 00:00:00,31/3/2021 00:00:00,"P12-2021"
"P&V","THREE MILLS","PREMISES RELATED EXPENDITURE","GM NON MAIN CONT UNSCHEDULED","2147","P110726-SERVICE-Tree Works at Three Mills Green",23/3/2021 00:00:00,"245755",200,"PA0222","PARKIN & PARKER TREE SPECIALISTS",1/3/2021 00:00:00,31/3/2021 00:00:00,"P12-2021"
"P&V","THREE MILLS","PREMISES RELATED EXPENDITURE","GM NON MAIN CONT UNSCHEDULED","2147","P111169-SERVICE-Install Bollards at Three Mills Green",31/3/2021 00:00:00,"245978",1300,"JO0019","R G JOYCE",1/3/2021 00:00:00,31/3/2021 00:00:00,"P12-2021"
"P&V","THREE MILLS","PREMISES RELATED EXPENDITURE","GM NON MAIN CONT UNSCHEDULED","2147","P111274-SERVICE-Install Mesh Along Railings at Three Mills Gr",31/3/2021 00:00:00,"246197",2823,"LW0268","LWC ENGINEERING LIMITED",1/3/2021 00:00:00,31/3/2021 00:00:00,"P12-2021"
"P&V","THREE MILLS","PREMISES RELATED EXPENDITURE","GM NON MAIN CONT UNSCHEDULED","2147","P111274-SERVICE-Install Mesh Along Railings at Three Mills Gr",31/3/2021 00:00:00,"246198",-200,"LW0268","LWC ENGINEERING LIMITED",1/3/2021 00:00:00,31/3/2021 00:00:00,"P12-2021"
"P&V","NORTH AREA RANGERS","PREMISES RELATED EXPENDITURE","HABITAT MANAGEMENT WORKS","2149","P110462-SERVICE-Tree Works at Bowyers",9/3/2021 00:00:00,"245090",190,"VE0004","PRINCIPAL TREES LTD",1/3/2021 00:00:00,31/3/2021 00:00:00,"P12-2021"
"P&V","NORTH AREA RANGERS","PREMISES RELATED EXPENDITURE","HABITAT MANAGEMENT WORKS","2149","P110462-SERVICE-Tree Works at Bowyers",9/3/2021 00:00:00,"245090",520,"VE0004","PRINCIPAL TREES LTD",1/3/2021 00:00:00,31/3/2021 00:00:00,"P12-2021"
"P&V","NORTH AREA RANGERS","PREMISES RELATED EXPENDITURE","HABITAT MANAGEMENT WORKS","2149","P110461-SERVICE-Tree Works at Showground",9/3/2021 00:00:00,"245091",690,"VE0004","PRINCIPAL TREES LTD",1/3/2021 00:00:00,31/3/2021 00:00:00,"P12-2021"
"P&V","NORTH AREA RANGERS","PREMISES RELATED EXPENDITURE","HABITAT MANAGEMENT WORKS","2149","P110465-SERVICE-Tree Works at White Water Centre next to Car",9/3/2021 00:00:00,"245173",640,"VE0004","PRINCIPAL TREES LTD",1/3/2021 00:00:00,31/3/2021 00:00:00,"P12-2021"
"P&V","NORTH AREA RANGERS","PREMISES RELATED EXPENDITURE","HABITAT MANAGEMENT WORKS","2149","P111092-SERVICE-2.5Kg N6 Clay Soils Meadow Mixture",29/3/2021 00:00:00,"245588",91.25,"NA0178","NATURESCAPE BRITISH WILD FLOWERS",1/3/2021 00:00:00,31/3/2021 00:00:00,"P12-2021"
"P&V","NORTH AREA RANGERS","PREMISES RELATED EXPENDITURE","HABITAT MANAGEMENT WORKS","2149","P111092-SERVICE-2.5Kg NV10 Value Woodland Meadow Mixture",29/3/2021 00:00:00,"245588",105,"NA0178","NATURESCAPE BRITISH WILD FLOWERS",1/3/2021 00:00:00,31/3/2021 00:00:00,"P12-2021"
"P&V","NORTH AREA RANGERS","PREMISES RELATED EXPENDITURE","HABITAT MANAGEMENT WORKS","2149","P111092-SERVICE-1.5Kg N8 Water's Edge Meadow Mixture",29/3/2021 00:00:00,"245588",72,"NA0178","NATURESCAPE BRITISH WILD FLOWERS",1/3/2021 00:00:00,31/3/2021 00:00:00,"P12-2021"
"P&V","NORTH AREA RANGERS","PREMISES RELATED EXPENDITURE","HABITAT MANAGEMENT WORKS","2149","P111092-SERVICE-Delivery to address below",29/3/2021 00:00:00,"245588",3.5,"NA0178","NATURESCAPE BRITISH WILD FLOWERS",1/3/2021 00:00:00,31/3/2021 00:00:00,"P12-2021"
"P&V","SOUTH AREA RANGERS","PREMISES RELATED EXPENDITURE","HABITAT MANAGEMENT WORKS","2149","P110522-SERVICE-Tree Works at Letyton Marsh",8/3/2021 00:00:00,"245104",550,"PA0222","PARKIN & PARKER TREE SPECIALISTS",1/3/2021 00:00:00,31/3/2021 00:00:00,"P12-2021"
"P&V","SOUTH AREA RANGERS","PREMISES RELATED EXPENDITURE","HABITAT MANAGEMENT WORKS","2149","P110522-SERVICE-Tree Works at Coppermill Fields",8/3/2021 00:00:00,"245104",75,"PA0222","PARKIN & PARKER TREE SPECIALISTS",1/3/2021 00:00:00,31/3/2021 00:00:00,"P12-2021"
"P&V","SOUTH AREA RANGERS","PREMISES RELATED EXPENDITURE","HABITAT MANAGEMENT WORKS","2149","P110522-SERVICE-Tree Works at Wathamstow Marsh",8/3/2021 00:00:00,"245104",175,"PA0222","PARKIN & PARKER TREE SPECIALISTS",1/3/2021 00:00:00,31/3/2021 00:00:00,"P12-2021"
"P&V","SOUTH AREA RANGERS","PREMISES RELATED EXPENDITURE","HABITAT MANAGEMENT WORKS","2149","P110522-SERVICE-Tree Works at Wathamstow Marsh",8/3/2021 00:00:00,"245104",200,"PA0222","PARKIN & PARKER TREE SPECIALISTS",1/3/2021 00:00:00,31/3/2021 00:00:00,"P12-2021"
"P&V","SOUTH AREA RANGERS","PREMISES RELATED EXPENDITURE","HABITAT MANAGEMENT WORKS","2149","P110640-SERVICE-Tree Works - Car Park WaterWorks",8/3/2021 00:00:00,"245106",75,"PA0222","PARKIN & PARKER TREE SPECIALISTS",1/3/2021 00:00:00,31/3/2021 00:00:00,"P12-2021"
"P&V","SOUTH AREA RANGERS","PREMISES RELATED EXPENDITURE","HABITAT MANAGEMENT WORKS","2149","P110640-SERVICE-Tree Works - Middlesex Filter Beds",8/3/2021 00:00:00,"245106",200,"PA0222","PARKIN & PARKER TREE SPECIALISTS",1/3/2021 00:00:00,31/3/2021 00:00:00,"P12-2021"
"P&V","SOUTH AREA RANGERS","PREMISES RELATED EXPENDITURE","HABITAT MANAGEMENT WORKS","2149","P110640-SERVICE-Tree Works - Middlesex Filter Beds",8/3/2021 00:00:00,"245106",150,"PA0222","PARKIN & PARKER TREE SPECIALISTS",1/3/2021 00:00:00,31/3/2021 00:00:00,"P12-2021"
"P&V","SOUTH AREA RANGERS","PREMISES RELATED EXPENDITURE","HABITAT MANAGEMENT WORKS","2149","P110640-SERVICE-Tree Works - Middlesex Filter Beds",8/3/2021 00:00:00,"245106",150,"PA0222","PARKIN & PARKER TREE SPECIALISTS",1/3/2021 00:00:00,31/3/2021 00:00:00,"P12-2021"
"P&V","SOUTH AREA RANGERS","PREMISES RELATED EXPENDITURE","HABITAT MANAGEMENT WORKS","2149","P110640-SERVICE-Tree Works - Middlesex Filter Beds",8/3/2021 00:00:00,"245106",200,"PA0222","PARKIN & PARKER TREE SPECIALISTS",1/3/2021 00:00:00,31/3/2021 00:00:00,"P12-2021"
"P&V","SOUTH AREA RANGERS","PREMISES RELATED EXPENDITURE","HABITAT MANAGEMENT WORKS","2149","P110640-SERVICE-Tree Works - WaterWorksPark Pathway",8/3/2021 00:00:00,"245106",300,"PA0222","PARKIN & PARKER TREE SPECIALISTS",1/3/2021 00:00:00,31/3/2021 00:00:00,"P12-2021"
"P&V","SOUTH AREA RANGERS","PREMISES RELATED EXPENDITURE","HABITAT MANAGEMENT WORKS","2149","P110640-SERVICE-Tree Works - WaterWorks Park Pathway",8/3/2021 00:00:00,"245106",100,"PA0222","PARKIN & PARKER TREE SPECIALISTS",1/3/2021 00:00:00,31/3/2021 00:00:00,"P12-2021"
"P&V","GUNPOWDER PARK","PREMISES RELATED EXPENDITURE","HABITAT MANAGEMENT WORKS","2149","P110763-SERVICE-Tree Works at Swan & Pike Pool",29/3/2021 00:00:00,"246173",1275,"PA0222","PARKIN & PARKER TREE SPECIALISTS",1/3/2021 00:00:00,31/3/2021 00:00:00,"P12-2021"
"P&V","GUNPOWDER PARK","PREMISES RELATED EXPENDITURE","HABITAT MANAGEMENT WORKS","2149","P110763-SERVICE-Tree Works at Rammey Marsh",29/3/2021 00:00:00,"246173",750,"PA0222","PARKIN & PARKER TREE SPECIALISTS",1/3/2021 00:00:00,31/3/2021 00:00:00,"P12-2021"
"P&V","GUNPOWDER PARK","PREMISES RELATED EXPENDITURE","HABITAT MANAGEMENT WORKS","2149","P110763-SERVICE-Tree Works at Gunpowder Park",29/3/2021 00:00:00,"246173",2900,"PA0222","PARKIN & PARKER TREE SPECIALISTS",1/3/2021 00:00:00,31/3/2021 00:00:00,"P12-2021"
"P&V","RIVER LEE COUNTRY PARK","PREMISES RELATED EXPENDITURE","HABITAT MANAGEMENT WORKS","2149","P109272-SERVICE-Flailing works - North of the Park",15/3/2021 00:00:00,"245361",7000,"BU0088","BURNELL CONTRACTING",1/3/2021 00:00:00,31/3/2021 00:00:00,"P12-2021"
"P&V","RIVER LEE COUNTRY PARK","PREMISES RELATED EXPENDITURE","HABITAT MANAGEMENT WORKS","2149","BURNELL CONTRACTING",31/3/2021 00:00:00,"245915",258.75,"BU0088","BURNELL CONTRACTING",1/3/2021 00:00:00,31/3/2021 00:00:00,"P12-2021"
"P&V","RIVER LEE COUNTRY PARK","PREMISES RELATED EXPENDITURE","HABITAT MANAGEMENT WORKS","2149","BURNELL CONTRACTING",31/3/2021 00:00:00,"245915",-594.75,"BU0088","BURNELL CONTRACTING",1/3/2021 00:00:00,31/3/2021 00:00:00,"P12-2021"
"P&V","RIVER LEE COUNTRY PARK","PREMISES RELATED EXPENDITURE","HABITAT MANAGEMENT WORKS","2149","BURNELL CONTRACTING",31/3/2021 00:00:00,"245915",336,"BU0088","BURNELL CONTRACTING",1/3/2021 00:00:00,31/3/2021 00:00:00,"P12-2021"
"P&V","RIVER LEE COUNTRY PARK","PREMISES RELATED EXPENDITURE","HABITAT MANAGEMENT WORKS","2149","P109272-SERVICE-Flailing works - North of the Park",31/3/2021 00:00:00,"245915",594.75,"BU0088","BURNELL CONTRACTING",1/3/2021 00:00:00,31/3/2021 00:00:00,"P12-2021"
,"LEE VALLEY MARINA SPRINGFIELD","PREMISES RELATED EXPENDITURE","GENERAL WASTE","2211","P111077-SERVICE-General Waste & Recycling Feb & March 2021",15/3/2021 00:00:00,"245180",1092.64,"CL0037","VEOLIA ES (UK) LTD",1/3/2021 00:00:00,31/3/2021 00:00:00,"P12-2021"
,"LEE VALLEY MARINA SPRINGFIELD","PREMISES RELATED EXPENDITURE","GENERAL WASTE","2211","P111077-SERVICE-General Waste & Recycling Feb & March 2021",31/3/2021 00:00:00,"246428",1226.12,"CL0037","VEOLIA ES (UK) LTD",1/3/2021 00:00:00,31/3/2021 00:00:00,"P12-2021"
,"LEE VALLEY MARINA STANSTEAD","PREMISES RELATED EXPENDITURE","GENERAL WASTE","2211","P107647-SERVICE-Weekly waste removal Stanstead Abbotts 20/21",8/3/2021 00:00:00,"245177",372.88,"CL0037","VEOLIA ES (UK) LTD",1/3/2021 00:00:00,31/3/2021 00:00:00,"P12-2021"
,"LEE VALLEY MARINA STANSTEAD","PREMISES RELATED EXPENDITURE","GENERAL WASTE","2211","P107647-SERVICE-Weekly waste removal Rye House Moorings",8/3/2021 00:00:00,"245177",224.87,"CL0037","VEOLIA ES (UK) LTD",1/3/2021 00:00:00,31/3/2021 00:00:00,"P12-2021"
,"LEE VALLEY MARINA STANSTEAD","PREMISES RELATED EXPENDITURE","GENERAL WASTE","2211","P107647-SERVICE-Weekly waste removal Rye House Moorings",8/3/2021 00:00:00,"245178",149.58,"CL0037","VEOLIA ES (UK) LTD",1/3/2021 00:00:00,31/3/2021 00:00:00,"P12-2021"
,"LEE VALLEY MARINA STANSTEAD","PREMISES RELATED EXPENDITURE","GENERAL WASTE","2211","P107647-SERVICE-Weekly waste removal Rye House Moorings",31/3/2021 00:00:00,"246425",730.35,"CL0037","VEOLIA ES (UK) LTD",1/3/2021 00:00:00,31/3/2021 00:00:00,"P12-2021"
,"LEE VALLEY MARINA STANSTEAD","PREMISES RELATED EXPENDITURE","GENERAL WASTE","2211","P107647-SERVICE-Weekly waste removal Rye House Moorings",31/3/2021 00:00:00,"246426",186,"CL0037","VEOLIA ES (UK) LTD",1/3/2021 00:00:00,31/3/2021 00:00:00,"P12-2021"
,"LEE VALLEY WATERWORKS CENTRE","PREMISES RELATED EXPENDITURE","GENERAL WASTE","2211","P110248-SERVICE-Waterworks Recycling / Waste Rental",15/3/2021 00:00:00,"243494",174.12,"BY0049","BYWATERS (LEYTON) LTD",1/3/2021 00:00:00,31/3/2021 00:00:00,"P12-2021"
,"LEE VALLEY WATERWORKS CENTRE","PREMISES RELATED EXPENDITURE","GENERAL WASTE","2211","P110248-SERVICE-Waterworks Recycling / Waste Rental",16/3/2021 00:00:00,"244464",226.08,"BY0049","BYWATERS (LEYTON) LTD",1/3/2021 00:00:00,31/3/2021 00:00:00,"P12-2021"
,"LEE VALLEY WATERWORKS CENTRE","PREMISES RELATED EXPENDITURE","GENERAL WASTE","2211","P110248-SERVICE-Waterworks Recycling / Waste Rental",15/3/2021 00:00:00,"245019",-123.91,"BY0049","BYWATERS (LEYTON) LTD",1/3/2021 00:00:00,31/3/2021 00:00:00,"P12-2021"
,"LEE VALLEY WATERWORKS CENTRE","PREMISES RELATED EXPENDITURE","GENERAL WASTE","2211","BYWATERS (LEYTON) LTD",16/3/2021 00:00:00,"245030",-97.48,"BY0049","BYWATERS (LEYTON) LTD",1/3/2021 00:00:00,31/3/2021 00:00:00,"P12-2021"
,"LEE VALLEY WATERWORKS CENTRE","PREMISES RELATED EXPENDITURE","GENERAL WASTE","2211","P110248-SERVICE-Waterworks Recycling / Waste Rental",16/3/2021 00:00:00,"245030",-84.32,"BY0049","BYWATERS (LEYTON) LTD",1/3/2021 00:00:00,31/3/2021 00:00:00,"P12-2021"
,"LEE VALLEY WATERWORKS CENTRE","PREMISES RELATED EXPENDITURE","GENERAL WASTE","2211","BYWATERS (LEYTON) LTD",16/3/2021 00:00:00,"245030",84.32,"BY0049","BYWATERS (LEYTON) LTD",1/3/2021 00:00:00,31/3/2021 00:00:00,"P12-2021"
,"LEE VALLEY WATERWORKS CENTRE","PREMISES RELATED EXPENDITURE","GENERAL WASTE","2211","P110248-SERVICE-Waterworks Recycling / Waste Rental",16/3/2021 00:00:00,"245482",-151.68,"BY0049","BYWATERS (LEYTON) LTD",1/3/2021 00:00:00,31/3/2021 00:00:00,"P12-2021"
,"LEE VALLEY FARM HAYES HILL","PREMISES RELATED EXPENDITURE","GENERAL WASTE","2211","P111069-SERVICE-Waste collection x5",15/3/2021 00:00:00,"245281",667.8,"BY0049","BYWATERS (LEYTON) LTD",1/3/2021 00:00:00,31/3/2021 00:00:00,"P12-2021"
,"LEE VALLEY FARM HAYES HILL","PREMISES RELATED EXPENDITURE","GENERAL WASTE","2211","P111069-SERVICE-Bin rental Feb",15/3/2021 00:00:00,"245281",25.2,"BY0049","BYWATERS (LEYTON) LTD",1/3/2021 00:00:00,31/3/2021 00:00:00,"P12-2021"
,"LEE VALLEY FARM HAYES HILL","PREMISES RELATED EXPENDITURE","GENERAL WASTE","2211","P111008-SERVICE-Skip hire",15/3/2021 00:00:00,"245471",270,"GB0239","GBN SERVICES LTD",1/3/2021 00:00:00,31/3/2021 00:00:00,"P12-2021"
,"LEE VALLEY FARM HAYES HILL","PREMISES RELATED EXPENDITURE","GENERAL WASTE","2211","P110918-SERVICE-muckheap removal",15/3/2021 00:00:00,"245505",800,"MA0002","GTM RURAL  ENTERPRISES LIMITED",1/3/2021 00:00:00,31/3/2021 00:00:00,"P12-2021"
,"LEE VALLEY FARM HAYES HILL","PREMISES RELATED EXPENDITURE","GENERAL WASTE","2211","P111125-SERVICE-Skip hire",22/3/2021 00:00:00,"245810",270,"GB0239","GBN SERVICES LTD",1/3/2021 00:00:00,31/3/2021 00:00:00,"P12-2021"
,"LEE VALLEY FARM HAYES HILL","PREMISES RELATED EXPENDITURE","GENERAL WASTE","2211","P111290-SERVICE-skip hire",31/3/2021 00:00:00,"246135",270,"GB0239","GBN SERVICES LTD",1/3/2021 00:00:00,31/3/2021 00:00:00,"P12-2021"
,"LEE VALLEY FARM HAYES HILL","PREMISES RELATED EXPENDITURE","GENERAL WASTE","2211","P111549-SERVICE-Waste collections x6",31/3/2021 00:00:00,"246592",801.36,"BY0049","BYWATERS (LEYTON) LTD",1/3/2021 00:00:00,31/3/2021 00:00:00,"P12-2021"
,"LEE VALLEY FARM HAYES HILL","PREMISES RELATED EXPENDITURE","GENERAL WASTE","2211","P111549-SERVICE-Waste container hire",31/3/2021 00:00:00,"246592",27.9,"BY0049","BYWATERS (LEYTON) LTD",1/3/2021 00:00:00,31/3/2021 00:00:00,"P12-2021"
,"LEE VALLEY CAMPSITE","PREMISES RELATED EXPENDITURE","GENERAL WASTE","2211","P111538-SERVICE-Skip empty",31/3/2021 00:00:00,"246427",457.14,"CL0037","VEOLIA ES (UK) LTD",1/3/2021 00:00:00,31/3/2021 00:00:00,"P12-2021"
,"LEE VALLEY CARAVAN PARK","PREMISES RELATED EXPENDITURE","GENERAL WASTE","2211","P111025-SERVICE-Veolia",8/3/2021 00:00:00,"245175",1377.72,"CL0037","VEOLIA ES (UK) LTD",1/3/2021 00:00:00,31/3/2021 00:00:00,"P12-2021"
,"LEE VALLEY CARAVAN PARK","PREMISES RELATED EXPENDITURE","GENERAL WASTE","2211","P111136-SERVICE-veolia",17/3/2021 00:00:00,"245176",20.25,"CL0037","VEOLIA ES (UK) LTD",1/3/2021 00:00:00,31/3/2021 00:00:00,"P12-2021"
,"LEE VALLEY CARAVAN PARK","PREMISES RELATED EXPENDITURE","GENERAL WASTE","2211","P111542-SERVICE-VEOLIA",31/3/2021 00:00:00,"246431",1928.51,"CL0037","VEOLIA ES (UK) LTD",1/3/2021 00:00:00,31/3/2021 00:00:00,"P12-2021"
"P&V","NORTH AREA RANGERS","PREMISES RELATED EXPENDITURE","GENERAL WASTE","2211","P110654-SERVICE-Deep Litter Pick at Clayton Hill",10/3/2021 00:00:00,"245110",776.49,"GL0214","GLENDALE GROUNDS MANAGEMENT LIMITED",1/3/2021 00:00:00,31/3/2021 00:00:00,"P12-2021"
"P&V","NORTH AREA RANGERS","PREMISES RELATED EXPENDITURE","GENERAL WASTE","2211","P111214-SERVICE-Litter Pick White Water Centre",29/3/2021 00:00:00,"245988",550,"JO0019","R G JOYCE",1/3/2021 00:00:00,31/3/2021 00:00:00,"P12-2021"
"P&V","SOUTH AREA RANGERS","PREMISES RELATED EXPENDITURE","GENERAL WASTE","2211","P110676-SERVICE-7 Mattress Removal from Yard at WaterWorks",15/3/2021 00:00:00,"245357",175,"CH0537","CHL WASTE CLEARANCE",1/3/2021 00:00:00,31/3/2021 00:00:00,"P12-2021"
"P&V","SOUTH AREA RANGERS","PREMISES RELATED EXPENDITURE","GENERAL WASTE","2211","P110621-SERVICE-Skip at WaterWorks Centre",22/3/2021 00:00:00,"245528",270,"GB0239","GBN SERVICES LTD",1/3/2021 00:00:00,31/3/2021 00:00:00,"P12-2021"
"P&V","SOUTH AREA RANGERS","PREMISES RELATED EXPENDITURE","GENERAL WASTE","2211","P111306-SERVICE-Skip at WaterWorks Centre",29/3/2021 00:00:00,"245817",290,"GB0239","GBN SERVICES LTD",1/3/2021 00:00:00,31/3/2021 00:00:00,"P12-2021"
"P&V","SOUTH AREA RANGERS","PREMISES RELATED EXPENDITURE","GENERAL WASTE","2211","P111543-SERVICE-Skip at WaterWorks Centre",31/3/2021 00:00:00,"246377",270,"GB0239","GBN SERVICES LTD",1/3/2021 00:00:00,31/3/2021 00:00:00,"P12-2021"
"P&V","SOUTH AREA RANGERS","PREMISES RELATED EXPENDITURE","GENERAL WASTE","2211","P111543-SERVICE-Skip at WaterWorks Centre",31/3/2021 00:00:00,"246418",290,"GB0239","GBN SERVICES LTD",1/3/2021 00:00:00,31/3/2021 00:00:00,"P12-2021"
"P&V","RIVER LEE COUNTRY PARK","PREMISES RELATED EXPENDITURE","GENERAL WASTE","2211","P110923-SERVICE-50x Long Arm Litter Pickers - C446",9/3/2021 00:00:00,"245102",209.53,"HY0043","HYGIENE SYSTEMS LTD",1/3/2021 00:00:00,31/3/2021 00:00:00,"P12-2021"
"P&V","RIVER LEE COUNTRY PARK","PREMISES RELATED EXPENDITURE","GENERAL WASTE","2211","P110977-SERVICE-12yd General Rubbish Skip x 3",8/3/2021 00:00:00,"245293",270,"GB0239","GBN SERVICES LTD",1/3/2021 00:00:00,31/3/2021 00:00:00,"P12-2021"
"P&V","RIVER LEE COUNTRY PARK","PREMISES RELATED EXPENDITURE","GENERAL WASTE","2211","P110923-SERVICE-50x Long Arm Litter Pickers - C446",31/3/2021 00:00:00,"245490",23,"HY0043","HYGIENE SYSTEMS LTD",1/3/2021 00:00:00,31/3/2021 00:00:00,"P12-2021"
"P&V","RIVER LEE COUNTRY PARK","PREMISES RELATED EXPENDITURE","GENERAL WASTE","2211","P110923-SERVICE-50x Long Arm Litter Pickers - C446",15/3/2021 00:00:00,"245491",245.97,"HY0043","HYGIENE SYSTEMS LTD",1/3/2021 00:00:00,31/3/2021 00:00:00,"P12-2021"
"P&V","RIVER LEE COUNTRY PARK","PREMISES RELATED EXPENDITURE","GENERAL WASTE","2211","P110977-SERVICE-12yd General Rubbish Skip x 3",23/3/2021 00:00:00,"245809",270,"GB0239","GBN SERVICES LTD",1/3/2021 00:00:00,31/3/2021 00:00:00,"P12-2021"
"P&V","RIVER LEE COUNTRY PARK","PREMISES RELATED EXPENDITURE","GENERAL WASTE","2211","P110977-SERVICE-12yd General Rubbish Skip x 3",31/3/2021 00:00:00,"246134",270,"GB0239","GBN SERVICES LTD",1/3/2021 00:00:00,31/3/2021 00:00:00,"P12-2021"
"P&V","RIVER LEE COUNTRY PARK","PREMISES RELATED EXPENDITURE","GENERAL WASTE","2211","P110978-SERVICE-12yd General Rubbish Skip x 2",31/3/2021 00:00:00,"246417",270,"GB0239","GBN SERVICES LTD",1/3/2021 00:00:00,31/3/2021 00:00:00,"P12-2021"
"P&V","RIVER LEE COUNTRY PARK","PREMISES RELATED EXPENDITURE","GENERAL WASTE","2211","P110923-SERVICE-50x Long Arm Litter Pickers - C446",31/3/2021 00:00:00,"246647",-23,"HY0043","HYGIENE SYSTEMS LTD",1/3/2021 00:00:00,31/3/2021 00:00:00,"P12-2021"
,"LEE VALLEY VELOPARK","PREMISES RELATED EXPENDITURE","GENERAL WASTE","2211","P110927-SERVICE-December Collection",8/3/2021 00:00:00,"245133",-38.22,"CL0037","VEOLIA ES (UK) LTD",1/3/2021 00:00:00,31/3/2021 00:00:00,"P12-2021"
,"LEE VALLEY VELOPARK","PREMISES RELATED EXPENDITURE","GENERAL WASTE","2211","P110927-SERVICE-December Collection",31/3/2021 00:00:00,"246430",38.74,"CL0037","VEOLIA ES (UK) LTD",1/3/2021 00:00:00,31/3/2021 00:00:00,"P12-2021"
,"LEE VALLEY RIDING CENTRE","PREMISES RELATED EXPENDITURE","GENERAL WASTE","2211","P107322-SERVICE-annual waste and compactor",8/3/2021 00:00:00,"245280",1808.95,"BY0049","BYWATERS (LEYTON) LTD",1/3/2021 00:00:00,31/3/2021 00:00:00,"P12-2021"
,"LEE VALLEY RIDING CENTRE","PREMISES RELATED EXPENDITURE","GENERAL WASTE","2211","P107322-SERVICE-annual waste and compactor",31/3/2021 00:00:00,"246593",1901.77,"BY0049","BYWATERS (LEYTON) LTD",1/3/2021 00:00:00,31/3/2021 00:00:00,"P12-2021"
,"LEE VALLEY ICE CENTRE","PREMISES RELATED EXPENDITURE","GENERAL WASTE","2211","P111109-SERVICE-Rental Skip Portapacker",15/3/2021 00:00:00,"245326",150,"CA0341","F & R CAWLEY LTD",1/3/2021 00:00:00,31/3/2021 00:00:00,"P12-2021"
,"LEE VALLEY ICE CENTRE","PREMISES RELATED EXPENDITURE","GENERAL WASTE","2211","P111158-SERVICE-Rental Skip Portapacker",15/3/2021 00:00:00,"245367",150,"CA0341","F & R CAWLEY LTD",1/3/2021 00:00:00,31/3/2021 00:00:00,"P12-2021"
,"LEE VALLEY ICE CENTRE","PREMISES RELATED EXPENDITURE","GENERAL WASTE","2211","P111039-SERVICE-Skip Exchange",15/3/2021 00:00:00,"245568",278.45,"OD0010","O'DONOVAN (WASTE DISPOSAL) LTD",1/3/2021 00:00:00,31/3/2021 00:00:00,"P12-2021"
,"LV LEISURE CENTRE CAMPSITE","PREMISES RELATED EXPENDITURE","GENERAL WASTE","2211","P110994-SERVICE-general waste",8/3/2021 00:00:00,"244244",20.97,"CL0037","VEOLIA ES (UK) LTD",1/3/2021 00:00:00,31/3/2021 00:00:00,"P12-2021"
,"LV LEISURE CENTRE CAMPSITE","PREMISES RELATED EXPENDITURE","GENERAL WASTE","2211","P111205-SERVICE-recycling - waiting credit note",23/3/2021 00:00:00,"245282",151.68,"BY0049","BYWATERS (LEYTON) LTD",1/3/2021 00:00:00,31/3/2021 00:00:00,"P12-2021"
,"LV LEISURE CENTRE CAMPSITE","PREMISES RELATED EXPENDITURE","GENERAL WASTE","2211","P111205-SERVICE-recycling - waiting credit note",23/3/2021 00:00:00,"245845",-151.68,"BY0049","BYWATERS (LEYTON) LTD",1/3/2021 00:00:00,31/3/2021 00:00:00,"P12-2021"
,"LEE VALLEY WHITE WATER CENTRE","PREMISES RELATED EXPENDITURE","GENERAL WASTE","2211","P107358-SERVICE-Refuge Collections Apr to Sept",15/3/2021 00:00:00,"245283",211.49,"BY0049","BYWATERS (LEYTON) LTD",1/3/2021 00:00:00,31/3/2021 00:00:00,"P12-2021"
,"LEE VALLEY WHITE WATER CENTRE","PREMISES RELATED EXPENDITURE","GENERAL WASTE","2211","P107358-SERVICE-Refuge Collections Apr to Sept",31/3/2021 00:00:00,"246591",216.18,"BY0049","BYWATERS (LEYTON) LTD",1/3/2021 00:00:00,31/3/2021 00:00:00,"P12-2021"
"P&V","SOUTH AREA RANGERS","PREMISES RELATED EXPENDITURE","FLYTIPPING/WHITE GOOD DISPOSAL","2213","P110894-SERVICE-Remove two tents from Tottenham Marshes",29/3/2021 00:00:00,"245981",500,"JO0019","R G JOYCE",1/3/2021 00:00:00,31/3/2021 00:00:00,"P12-2021"
"P&V","MYDDELTON HOUSE","PREMISES RELATED EXPENDITURE","RECYCLING","2214","P110485-SERVICE-Recycling",29/3/2021 00:00:00,"245366",19.76,"CA0341","F & R CAWLEY LTD",1/3/2021 00:00:00,31/3/2021 00:00:00,"P12-2021"
"P&V","MYDDELTON HOUSE","PREMISES RELATED EXPENDITURE","RECYCLING","2214","P111711-SERVICE-Recycling",31/3/2021 00:00:00,"246696",326.73,"CA0341","F & R CAWLEY LTD",1/3/2021 00:00:00,31/3/2021 00:00:00,"P12-2021"
,"LEE VALLEY FARM HAYES HILL","PREMISES RELATED EXPENDITURE","RECYCLING","2214","P111069-SERVICE-Recycling collection x5",15/3/2021 00:00:00,"245281",80.5,"BY0049","BYWATERS (LEYTON) LTD",1/3/2021 00:00:00,31/3/2021 00:00:00,"P12-2021"
,"LEE VALLEY FARM HAYES HILL","PREMISES RELATED EXPENDITURE","RECYCLING","2214","P111549-SERVICE-Recycling collections x6",31/3/2021 00:00:00,"246592",96.6,"BY0049","BYWATERS (LEYTON) LTD",1/3/2021 00:00:00,31/3/2021 00:00:00,"P12-2021"
,"LEE VALLEY CAMPSITE","PREMISES RELATED EXPENDITURE","BUILDING SERVICE AGREEMENTS","2220","P111196-SERVICE-Washroom Hygine",17/3/2021 00:00:00,"245382",82.09,"IN0012","INITIAL WASHROOM HYGIENE",1/3/2021 00:00:00,31/3/2021 00:00:00,"P12-2021"
,"LEE VALLEY CAMPSITE","PREMISES RELATED EXPENDITURE","BUILDING SERVICE AGREEMENTS","2220","P110559-SERVICE-Reception alarm",29/3/2021 00:00:00,"245943",105,"AC0012","ACTIVE SECURITY GROUP LTD",1/3/2021 00:00:00,31/3/2021 00:00:00,"P12-2021"
,"LEE VALLEY CARAVAN PARK","PREMISES RELATED EXPENDITURE","BUILDING SERVICE AGREEMENTS","2220","P111272-SERVICE-Chlorination",29/3/2021 00:00:00,"246165",1120,"SO0400","SOUTHERN GREEN SERVICES LIMITED",1/3/2021 00:00:00,31/3/2021 00:00:00,"P12-2021"
"P&V","NORTH AREA RANGERS","PREMISES RELATED EXPENDITURE","BUILDING SERVICE AGREEMENTS","2220","P111201-SERVICE-Sanitary Disposal - Old Mill & Meadows Toilet",22/3/2021 00:00:00,"244874",17.58,"PE0015","PHS GROUP PLC",1/3/2021 00:00:00,31/3/2021 00:00:00,"P12-2021"
"P&V","GUNPOWDER PARK","PREMISES RELATED EXPENDITURE","BUILDING SERVICE AGREEMENTS","2220","P111199-SERVICE-Sanitary Disposal - Gunpowder Park Office Toi",17/3/2021 00:00:00,"245035",2.7,"PE0015","PHS GROUP PLC",1/3/2021 00:00:00,31/3/2021 00:00:00,"P12-2021"
"P&V","GUNPOWDER PARK","PREMISES RELATED EXPENDITURE","BUILDING SERVICE AGREEMENTS","2220","P111200-SERVICE-Sanitary Disposal - Gunpowder Park - Public T",17/3/2021 00:00:00,"245538",14.3,"PE0015","PHS GROUP PLC",1/3/2021 00:00:00,31/3/2021 00:00:00,"P12-2021"
"P&V","GUNPOWDER PARK","PREMISES RELATED EXPENDITURE","BUILDING SERVICE AGREEMENTS","2220","P108593-SERVICE-Building Servcie Agreement - Gunpowder Park",29/3/2021 00:00:00,"246131",139.16,"CO0199","ENGIE FM LIMITED",1/3/2021 00:00:00,31/3/2021 00:00:00,"P12-2021"
,"LEE VALLEY VELOPARK","PREMISES RELATED EXPENDITURE","BUILDING SERVICE AGREEMENTS","2220","P110980-SERVICE-Annual Maintenance Contract 1/4/2021-1/4/2022",8/3/2021 00:00:00,"244919",995,"PE0387","PEOPLE COUNTING AXIOMATIC TECHNOLOGY LTD",1/3/2021 00:00:00,31/3/2021 00:00:00,"P12-2021"
,"LEE VALLEY VELOPARK","PREMISES RELATED EXPENDITURE","BUILDING SERVICE AGREEMENTS","2220","P111124-SERVICE-BMS Maintenance Contract",15/3/2021 00:00:00,"244931",590,"IN0197","INTEGRATED BUILDING MANAGEMENT SYSTEMS LTD",1/3/2021 00:00:00,31/3/2021 00:00:00,"P12-2021"
,"LEE VALLEY VELOPARK","PREMISES RELATED EXPENDITURE","BUILDING SERVICE AGREEMENTS","2220","P111130-SERVICE-February Rental Fee",15/3/2021 00:00:00,"245309",35.32,"CL0037","VEOLIA ES (UK) LTD",1/3/2021 00:00:00,31/3/2021 00:00:00,"P12-2021"
,"LEE VALLEY VELOPARK","PREMISES RELATED EXPENDITURE","BUILDING SERVICE AGREEMENTS","2220","P107457-SERVICE-Maintenance Contract",29/3/2021 00:00:00,"245982",770,"PH0319","SIGNIFY COMMERCIAL UK LIMITED (PHILIPS LIGHTI",1/3/2021 00:00:00,31/3/2021 00:00:00,"P12-2021"
,"LV HOCKEY AND TENNIS CENTRE","PREMISES RELATED EXPENDITURE","BUILDING SERVICE AGREEMENTS","2220","P110882-SERVICE-Lamps, Ignitors & Capictors",8/3/2021 00:00:00,"244712",598,"HA0388","HALLIDAY LIGHTING LTD",1/3/2021 00:00:00,31/3/2021 00:00:00,"P12-2021"
,"LV HOCKEY AND TENNIS CENTRE","PREMISES RELATED EXPENDITURE","BUILDING SERVICE AGREEMENTS","2220","P111126-SERVICE-Service",15/3/2021 00:00:00,"245134",597.6,"AP0245","APS LIMITED",1/3/2021 00:00:00,31/3/2021 00:00:00,"P12-2021"
,"LV HOCKEY AND TENNIS CENTRE","PREMISES RELATED EXPENDITURE","BUILDING SERVICE AGREEMENTS","2220","P107026-SERVICE-Yearly maintenance contract 2020/21",23/3/2021 00:00:00,"245715",120,"GO0211","GOODWATER LTD",1/3/2021 00:00:00,31/3/2021 00:00:00,"P12-2021"
,"LV HOCKEY AND TENNIS CENTRE","PREMISES RELATED EXPENDITURE","BUILDING SERVICE AGREEMENTS","2220","P107437-SERVICE-HTC BMS Maintenance",29/3/2021 00:00:00,"245720",590,"IN0197","INTEGRATED BUILDING MANAGEMENT SYSTEMS LTD",1/3/2021 00:00:00,31/3/2021 00:00:00,"P12-2021"
,"LV HOCKEY AND TENNIS CENTRE","PREMISES RELATED EXPENDITURE","BUILDING SERVICE AGREEMENTS","2220","P107026-SERVICE-Yearly maintenance contract 2020/21",31/3/2021 00:00:00,"246449",655,"GO0211","GOODWATER LTD",1/3/2021 00:00:00,31/3/2021 00:00:00,"P12-2021"
,"LV HOCKEY AND TENNIS CENTRE","PREMISES RELATED EXPENDITURE","BUILDING SERVICE AGREEMENTS","2220","P107295-SERVICE-annual lift maintenance VeloPark",31/3/2021 00:00:00,"246573",87.42,"GU0210","GUIDELINE LIFT SERVICES LTD",1/3/2021 00:00:00,31/3/2021 00:00:00,"P12-2021"
,"LV HOCKEY AND TENNIS CENTRE","PREMISES RELATED EXPENDITURE","BUILDING SERVICE AGREEMENTS","2220","P107295-SERVICE-Annual lift maintenance HTC",31/3/2021 00:00:00,"246574",322.98,"GU0210","GUIDELINE LIFT SERVICES LTD",1/3/2021 00:00:00,31/3/2021 00:00:00,"P12-2021"
,"LV HOCKEY AND TENNIS CENTRE","PREMISES RELATED EXPENDITURE","BUILDING SERVICE AGREEMENTS","2220","P107295-SERVICE-annual lift maintenance VeloPark",31/3/2021 00:00:00,"246574",314.41,"GU0210","GUIDELINE LIFT SERVICES LTD",1/3/2021 00:00:00,31/3/2021 00:00:00,"P12-2021"
,"LV LEISURE CENTRE CAMPSITE","PREMISES RELATED EXPENDITURE","BUILDING SERVICE AGREEMENTS","2220","P111396-SERVICE-cleaning service agreement",31/3/2021 00:00:00,"245800",138.91,"PE0015","PHS GROUP PLC",1/3/2021 00:00:00,31/3/2021 00:00:00,"P12-2021"
,"LV LEISURE CENTRE CAMPSITE","PREMISES RELATED EXPENDITURE","BUILDING SERVICE AGREEMENTS","2220","P111394-SERVICE-cleaning service agreement",31/3/2021 00:00:00,"245801",138.91,"PE0015","PHS GROUP PLC",1/3/2021 00:00:00,31/3/2021 00:00:00,"P12-2021"
,"LV LEISURE CENTRE CAMPSITE","PREMISES RELATED EXPENDITURE","BUILDING SERVICE AGREEMENTS","2220","P111395-SERVICE-cleaning service suppliy",31/3/2021 00:00:00,"245802",138.91,"PE0015","PHS GROUP PLC",1/3/2021 00:00:00,31/3/2021 00:00:00,"P12-2021"
,"LEE VALLEY WHITE WATER CENTRE","PREMISES RELATED EXPENDITURE","BUILDING SERVICE AGREEMENTS","2220","P111159-SERVICE-Itruder alarm system monitoring 23.03.21 to 2",15/3/2021 00:00:00,"245552",471.23,"AD0015","ADT FIRE & SECURITY PLC",1/3/2021 00:00:00,31/3/2021 00:00:00,"P12-2021"
,"LEE VALLEY WHITE WATER CENTRE","PREMISES RELATED EXPENDITURE","BUILDING SERVICE AGREEMENTS","2220","P111159-SERVICE-BT Redcare 23.03.21 to 22.06.21",15/3/2021 00:00:00,"245552",80.72,"AD0015","ADT FIRE & SECURITY PLC",1/3/2021 00:00:00,31/3/2021 00:00:00,"P12-2021"
,"LEE VALLEY WHITE WATER CENTRE","PREMISES RELATED EXPENDITURE","BUILDING SERVICE AGREEMENTS","2220","P107328-SERVICE-Plant Room and Filtration Room Maint Contract",22/3/2021 00:00:00,"245719",1411.39,"GI0137","R & P GIBBS LIMITED",1/3/2021 00:00:00,31/3/2021 00:00:00,"P12-2021"
,"LEE VALLEY WHITE WATER CENTRE","PREMISES RELATED EXPENDITURE","BUILDING SERVICE AGREEMENTS","2220","P107143-SERVICE-Hygeine supplies 1/11/20 - 31/3/21",22/3/2021 00:00:00,"245791",30.77,"PE0015","PHS GROUP PLC",1/3/2021 00:00:00,31/3/2021 00:00:00,"P12-2021"
,"LEE VALLEY WHITE WATER CENTRE","PREMISES RELATED EXPENDITURE","BUILDING SERVICE AGREEMENTS","2220","P107143-SERVICE-Hygeine supplies 1/11/20 - 31/3/21",22/3/2021 00:00:00,"245792",30.77,"PE0015","PHS GROUP PLC",1/3/2021 00:00:00,31/3/2021 00:00:00,"P12-2021"
,"LEE VALLEY WHITE WATER CENTRE","PREMISES RELATED EXPENDITURE","BUILDING SERVICE AGREEMENTS","2220","P107143-SERVICE-Hygeine supplies 1/11/20 - 31/3/21",22/3/2021 00:00:00,"245793",386.81,"PE0015","PHS GROUP PLC",1/3/2021 00:00:00,31/3/2021 00:00:00,"P12-2021"
,"LEE VALLEY WHITE WATER CENTRE","PREMISES RELATED EXPENDITURE","BUILDING SERVICE AGREEMENTS","2220","P107143-SERVICE-Hygeine supplies 1/11/20 - 31/3/21",22/3/2021 00:00:00,"245794",168.6,"PE0015","PHS GROUP PLC",1/3/2021 00:00:00,31/3/2021 00:00:00,"P12-2021"
,"LEE VALLEY ICE CENTRE","PREMISES RELATED EXPENDITURE","ENGINEERING SERVICE AGREEMENTS","2221","P111107-SERVICE-Cleaning Muchines Hire",15/3/2021 00:00:00,"245079",400,"CL0606","CLEAN SWEEP UK LTD",1/3/2021 00:00:00,31/3/2021 00:00:00,"P12-2021"
,"LEE VALLEY ICE CENTRE","PREMISES RELATED EXPENDITURE","ENGINEERING SERVICE AGREEMENTS","2221","P110892-SERVICE-Maintenance Renewal",8/3/2021 00:00:00,"245320",1800,"RV0035","RVTV SECURITY LTD",1/3/2021 00:00:00,31/3/2021 00:00:00,"P12-2021"
,"LEE VALLEY ICE CENTRE","PREMISES RELATED EXPENDITURE","ENGINEERING SERVICE AGREEMENTS","2221","P111053-SERVICE-Fire Extinguisher Annual Service",15/3/2021 00:00:00,"245356",298,"ST0249","STAND BY FIRE PROTECTION",1/3/2021 00:00:00,31/3/2021 00:00:00,"P12-2021"
,"LEE VALLEY ICE CENTRE","PREMISES RELATED EXPENDITURE","ENGINEERING SERVICE AGREEMENTS","2221","P111677-SERVICE-Cleaning Machine's Hire",31/3/2021 00:00:00,"246265",460,"CL0606","CLEAN SWEEP UK LTD",1/3/2021 00:00:00,31/3/2021 00:00:00,"P12-2021"
,"LEE VALLEY ICE CENTRE","PREMISES RELATED EXPENDITURE","ENGINEERING SERVICE AGREEMENTS","2221","P111062-SERVICE-Fire hoses and extinguishers Discharge Test",31/3/2021 00:00:00,"246597",1043.94,"ST0249","STAND BY FIRE PROTECTION",1/3/2021 00:00:00,31/3/2021 00:00:00,"P12-2021"
,"LEE VALLEY ICE CENTRE","PREMISES RELATED EXPENDITURE","ENGINEERING SERVICE AGREEMENTS","2221","P111694-SERVICE-Fire Hydrant testing",31/3/2021 00:00:00,"246598",278,"ST0249","STAND BY FIRE PROTECTION",1/3/2021 00:00:00,31/3/2021 00:00:00,"P12-2021"
"CEO","RESIDENTIAL ACCOMMODATION","PREMISES RELATED EXPENDITURE","BUILDING REPAIRS & MAINTENANCE","2222","P110992-SERVICE-Gas Certificate Holyfield Farmhouse",16/3/2021 00:00:00,"244869",195,"WA0315","PAUL WALLACE LETTINGS",1/3/2021 00:00:00,31/3/2021 00:00:00,"P12-2021"
"CEO","RESIDENTIAL ACCOMMODATION","PREMISES RELATED EXPENDITURE","BUILDING REPAIRS & MAINTENANCE","2222","P111176-SERVICE-Gas Certificate Springfield Bungalow",16/3/2021 00:00:00,"245321",82.5,"CA0165","CASTLES",1/3/2021 00:00:00,31/3/2021 00:00:00,"P12-2021"
"CEO","RESIDENTIAL ACCOMMODATION","PREMISES RELATED EXPENDITURE","BUILDING REPAIRS & MAINTENANCE","2222","P111177-SERVICE-Electricity Certificate 11 Picketts Lock Lane",16/3/2021 00:00:00,"245496",100,"CA0165","CASTLES",1/3/2021 00:00:00,31/3/2021 00:00:00,"P12-2021"
"CEO","RESIDENTIAL ACCOMMODATION","PREMISES RELATED EXPENDITURE","BUILDING REPAIRS & MAINTENANCE","2222","P111178-SERVICE-Electricity Certificate 7 Picketts Lock Lane",16/3/2021 00:00:00,"245497",100,"CA0165","CASTLES",1/3/2021 00:00:00,31/3/2021 00:00:00,"P12-2021"
"CEO","RESIDENTIAL ACCOMMODATION","PREMISES RELATED EXPENDITURE","BUILDING REPAIRS & MAINTENANCE","2222","P111179-SERVICE-Pest Control Feb/March Roselea Bungalow",16/3/2021 00:00:00,"245516",120,"CA0165","CASTLES",1/3/2021 00:00:00,31/3/2021 00:00:00,"P12-2021"
"CEO","RESIDENTIAL ACCOMMODATION","PREMISES RELATED EXPENDITURE","BUILDING REPAIRS & MAINTENANCE","2222","P111183-SERVICE-Plumb Washing Machine & Dishwasher 7 Picketts",16/3/2021 00:00:00,"245517",79.17,"CA0165","CASTLES",1/3/2021 00:00:00,31/3/2021 00:00:00,"P12-2021"
"CEO","RESIDENTIAL ACCOMMODATION","PREMISES RELATED EXPENDITURE","BUILDING REPAIRS & MAINTENANCE","2222","P111182-SERVICE-Reseal Bath/Re-Secure Coving - Springfield Bu",16/3/2021 00:00:00,"245518",195,"CA0165","CASTLES",1/3/2021 00:00:00,31/3/2021 00:00:00,"P12-2021"
"CEO","RESIDENTIAL ACCOMMODATION","PREMISES RELATED EXPENDITURE","BUILDING REPAIRS & MAINTENANCE","2222","P111408-SERVICE-Chimney Inspection",31/3/2021 00:00:00,"245569",110,"ES0397","ESSEX STOVES AND CHIMNEYS",1/3/2021 00:00:00,31/3/2021 00:00:00,"P12-2021"
"CEO","RESIDENTIAL ACCOMMODATION","PREMISES RELATED EXPENDITURE","BUILDING REPAIRS & MAINTENANCE","2222","P110931-SERVICE-Clear Blocked Drainage at Gate Lodge Myddelto",23/3/2021 00:00:00,"245752",300,"MO0041","CAPSER",1/3/2021 00:00:00,31/3/2021 00:00:00,"P12-2021"
"CEO","RESIDENTIAL ACCOMMODATION","PREMISES RELATED EXPENDITURE","BUILDING REPAIRS & MAINTENANCE","2222","P111414-SERVICE-Pindar Cottage - Inventory",31/3/2021 00:00:00,"245852",87.5,"CA0165","CASTLES",1/3/2021 00:00:00,31/3/2021 00:00:00,"P12-2021"
"CEO","RESIDENTIAL ACCOMMODATION","PREMISES RELATED EXPENDITURE","BUILDING REPAIRS & MAINTENANCE","2222","P110931-SERVICE-Clear Blocked Drainage at Gate Lodge Myddelto",24/3/2021 00:00:00,"245992",-300,"MO0041","CAPSER",1/3/2021 00:00:00,31/3/2021 00:00:00,"P12-2021"
"CEO","RESIDENTIAL ACCOMMODATION","PREMISES RELATED EXPENDITURE","BUILDING REPAIRS & MAINTENANCE","2222","CAPSER",24/3/2021 00:00:00,"245993",150,"MO0041","CAPSER",1/3/2021 00:00:00,31/3/2021 00:00:00,"P12-2021"
"CEO","RESIDENTIAL ACCOMMODATION","PREMISES RELATED EXPENDITURE","BUILDING REPAIRS & MAINTENANCE","2222","P110931-SERVICE-Clear Blocked Drainage at Gate Lodge Myddelto",24/3/2021 00:00:00,"245993",300,"MO0041","CAPSER",1/3/2021 00:00:00,31/3/2021 00:00:00,"P12-2021"
"CEO","RESIDENTIAL ACCOMMODATION","PREMISES RELATED EXPENDITURE","BUILDING REPAIRS & MAINTENANCE","2222","CAPSER",24/3/2021 00:00:00,"245993",-300,"MO0041","CAPSER",1/3/2021 00:00:00,31/3/2021 00:00:00,"P12-2021"
"CEO","RESIDENTIAL ACCOMMODATION","PREMISES RELATED EXPENDITURE","BUILDING REPAIRS & MAINTENANCE","2222","CAPSER",24/3/2021 00:00:00,"245993",150,"MO0041","CAPSER",1/3/2021 00:00:00,31/3/2021 00:00:00,"P12-2021"
"CEO","RESIDENTIAL ACCOMMODATION","PREMISES RELATED EXPENDITURE","BUILDING REPAIRS & MAINTENANCE","2222","P111501-SERVICE-1 Bungalow Electricity Certificate",31/3/2021 00:00:00,"246097",100,"CA0165","CASTLES",1/3/2021 00:00:00,31/3/2021 00:00:00,"P12-2021"
"CEO","RESIDENTIAL ACCOMMODATION","PREMISES RELATED EXPENDITURE","BUILDING REPAIRS & MAINTENANCE","2222","P111502-SERVICE-Pindar Cottage Electricity Certificate",31/3/2021 00:00:00,"246098",100,"CA0165","CASTLES",1/3/2021 00:00:00,31/3/2021 00:00:00,"P12-2021"
"CEO","RESIDENTIAL ACCOMMODATION","PREMISES RELATED EXPENDITURE","BUILDING REPAIRS & MAINTENANCE","2222","P111503-SERVICE-2 Bungalow Boiler Service",31/3/2021 00:00:00,"246119",102.6,"WA0315","PAUL WALLACE LETTINGS",1/3/2021 00:00:00,31/3/2021 00:00:00,"P12-2021"
"CEO","COMMERCIAL ACCOMMODATION","PREMISES RELATED EXPENDITURE","BUILDING REPAIRS & MAINTENANCE","2222","KENDALL & SONS LIMITED",15/3/2021 00:00:00,"245132",-997,"KE0023","KENDALL & SONS LIMITED",1/3/2021 00:00:00,31/3/2021 00:00:00,"P12-2021"
"CEO","COMMERCIAL ACCOMMODATION","PREMISES RELATED EXPENDITURE","BUILDING REPAIRS & MAINTENANCE","2222","KENDALL & SONS LIMITED",15/3/2021 00:00:00,"245132",897,"KE0023","KENDALL & SONS LIMITED",1/3/2021 00:00:00,31/3/2021 00:00:00,"P12-2021"
"CEO","COMMERCIAL ACCOMMODATION","PREMISES RELATED EXPENDITURE","BUILDING REPAIRS & MAINTENANCE","2222","KENDALL & SONS LIMITED",15/3/2021 00:00:00,"245132",100,"KE0023","KENDALL & SONS LIMITED",1/3/2021 00:00:00,31/3/2021 00:00:00,"P12-2021"
"CEO","COMMERCIAL ACCOMMODATION","PREMISES RELATED EXPENDITURE","BUILDING REPAIRS & MAINTENANCE","2222","P110890-SERVICE-Refelt Flat Roof Unit M",15/3/2021 00:00:00,"245132",997,"KE0023","KENDALL & SONS LIMITED",1/3/2021 00:00:00,31/3/2021 00:00:00,"P12-2021"
"CEO","COMMERCIAL ACCOMMODATION","PREMISES RELATED EXPENDITURE","BUILDING REPAIRS & MAINTENANCE","2222","P109526-SERVICE-LV Forge concrete blocks",8/3/2021 00:00:00,"245277",56,"NA0171","NAIVETTE SERVICES LTD",1/3/2021 00:00:00,31/3/2021 00:00:00,"P12-2021"
"CEO","COMMERCIAL ACCOMMODATION","PREMISES RELATED EXPENDITURE","BUILDING REPAIRS & MAINTENANCE","2222","P109526-SERVICE-LV Forge concrete blocks",31/3/2021 00:00:00,"246402",62,"NA0171","NAIVETTE SERVICES LTD",1/3/2021 00:00:00,31/3/2021 00:00:00,"P12-2021"
,"LEE VALLEY MARINA SPRINGFIELD","PREMISES RELATED EXPENDITURE","BUILDING REPAIRS & MAINTENANCE","2222","P110958-SERVICE-Repair 2 x Washing Machines",10/3/2021 00:00:00,"245270",171.99,"JH0012","GIRBAU  UK LIMITED",1/3/2021 00:00:00,31/3/2021 00:00:00,"P12-2021"
,"LEE VALLEY MARINA SPRINGFIELD","PREMISES RELATED EXPENDITURE","BUILDING REPAIRS & MAINTENANCE","2222","P111078-SERVICE-Additional work on Alarm system",15/3/2021 00:00:00,"245292",30,"CH0088","CHUBB FIRE & SECURITY",1/3/2021 00:00:00,31/3/2021 00:00:00,"P12-2021"
,"LEE VALLEY MARINA SPRINGFIELD","PREMISES RELATED EXPENDITURE","BUILDING REPAIRS & MAINTENANCE","2222","P109898-SERVICE-To supply items as requseted",15/3/2021 00:00:00,"245332",51.65,"SC0057","SCREWFIX DIRECT LTD",1/3/2021 00:00:00,31/3/2021 00:00:00,"P12-2021"
,"LEE VALLEY MARINA SPRINGFIELD","PREMISES RELATED EXPENDITURE","BUILDING REPAIRS & MAINTENANCE","2222","P107260-SERVICE-To carry out repairs, maintenance & provid su",15/3/2021 00:00:00,"245485",110,"DE0013","DENNIS SECURITY CENTRE",1/3/2021 00:00:00,31/3/2021 00:00:00,"P12-2021"
,"LEE VALLEY MARINA SPRINGFIELD","PREMISES RELATED EXPENDITURE","BUILDING REPAIRS & MAINTENANCE","2222","CAPSER",22/3/2021 00:00:00,"245753",3000,"MO0041","CAPSER",1/3/2021 00:00:00,31/3/2021 00:00:00,"P12-2021"
,"LEE VALLEY MARINA SPRINGFIELD","PREMISES RELATED EXPENDITURE","BUILDING REPAIRS & MAINTENANCE","2222","CAPSER",22/3/2021 00:00:00,"245753",-3450,"MO0041","CAPSER",1/3/2021 00:00:00,31/3/2021 00:00:00,"P12-2021"
,"LEE VALLEY MARINA SPRINGFIELD","PREMISES RELATED EXPENDITURE","BUILDING REPAIRS & MAINTENANCE","2222","P110628-SERVICE-Groundworks for urgent repairs due to overloa",22/3/2021 00:00:00,"245753",3450,"MO0041","CAPSER",1/3/2021 00:00:00,31/3/2021 00:00:00,"P12-2021"
,"LEE VALLEY MARINA SPRINGFIELD","PREMISES RELATED EXPENDITURE","BUILDING REPAIRS & MAINTENANCE","2222","CAPSER",22/3/2021 00:00:00,"245753",450,"MO0041","CAPSER",1/3/2021 00:00:00,31/3/2021 00:00:00,"P12-2021"
,"LEE VALLEY MARINA SPRINGFIELD","PREMISES RELATED EXPENDITURE","BUILDING REPAIRS & MAINTENANCE","2222","P109769-SERVICE-Engineer call out for under floor heating",30/3/2021 00:00:00,"245934",250,"AS0039","ASTON GROUP",1/3/2021 00:00:00,31/3/2021 00:00:00,"P12-2021"
,"LEE VALLEY MARINA SPRINGFIELD","PREMISES RELATED EXPENDITURE","BUILDING REPAIRS & MAINTENANCE","2222","P109769-SERVICE-New pump and parts for under floor heating",30/3/2021 00:00:00,"245934",160,"AS0039","ASTON GROUP",1/3/2021 00:00:00,31/3/2021 00:00:00,"P12-2021"
,"LEE VALLEY MARINA SPRINGFIELD","PREMISES RELATED EXPENDITURE","BUILDING REPAIRS & MAINTENANCE","2222","P109825-SERVICE-To Service 2 Ambi Rads in work shop",30/3/2021 00:00:00,"245935",720,"AS0039","ASTON GROUP",1/3/2021 00:00:00,31/3/2021 00:00:00,"P12-2021"
,"LEE VALLEY MARINA SPRINGFIELD","PREMISES RELATED EXPENDITURE","BUILDING REPAIRS & MAINTENANCE","2222","P109826-SERVICE-To Service 2 x Worcester Greenstar Boilers",30/3/2021 00:00:00,"245936",252,"AS0039","ASTON GROUP",1/3/2021 00:00:00,31/3/2021 00:00:00,"P12-2021"
,"LEE VALLEY MARINA SPRINGFIELD","PREMISES RELATED EXPENDITURE","BUILDING REPAIRS & MAINTENANCE","2222","P111385-SERVICE-Cable price increase on electrical power",31/3/2021 00:00:00,"245955",327.29,"BR0018","BRADSHAW ELECTRICAL LIMITED",1/3/2021 00:00:00,31/3/2021 00:00:00,"P12-2021"
,"LEE VALLEY MARINA SPRINGFIELD","PREMISES RELATED EXPENDITURE","BUILDING REPAIRS & MAINTENANCE","2222","P110351-SERVICE-Repairs to Distribution boxes 4 to 8 due to",30/3/2021 00:00:00,"245956",9655,"BR0018","BRADSHAW ELECTRICAL LIMITED",1/3/2021 00:00:00,31/3/2021 00:00:00,"P12-2021"
,"LEE VALLEY MARINA SPRINGFIELD","PREMISES RELATED EXPENDITURE","BUILDING REPAIRS & MAINTENANCE","2222","P111385-SERVICE-Cable price increase on electrical power",31/3/2021 00:00:00,"245957",48.74,"BR0018","BRADSHAW ELECTRICAL LIMITED",1/3/2021 00:00:00,31/3/2021 00:00:00,"P12-2021"
,"LEE VALLEY MARINA SPRINGFIELD","PREMISES RELATED EXPENDITURE","BUILDING REPAIRS & MAINTENANCE","2222","P110231-SERVICE-Power upgrade to large pontoons",30/3/2021 00:00:00,"245958",2585,"BR0018","BRADSHAW ELECTRICAL LIMITED",1/3/2021 00:00:00,31/3/2021 00:00:00,"P12-2021"
,"LEE VALLEY MARINA SPRINGFIELD","PREMISES RELATED EXPENDITURE","BUILDING REPAIRS & MAINTENANCE","2222","P111385-SERVICE-Cable price increase on electrical power",31/3/2021 00:00:00,"245959",147.25,"BR0018","BRADSHAW ELECTRICAL LIMITED",1/3/2021 00:00:00,31/3/2021 00:00:00,"P12-2021"
,"LEE VALLEY MARINA SPRINGFIELD","PREMISES RELATED EXPENDITURE","BUILDING REPAIRS & MAINTENANCE","2222","P111384-SERVICE-Gate access power upgrade to main electrical",31/3/2021 00:00:00,"245960",2085,"BR0018","BRADSHAW ELECTRICAL LIMITED",1/3/2021 00:00:00,31/3/2021 00:00:00,"P12-2021"
,"LEE VALLEY MARINA SPRINGFIELD","PREMISES RELATED EXPENDITURE","BUILDING REPAIRS & MAINTENANCE","2222","P110625-SERVICE-To supply & fit 110db sound bomb inc wiring,",30/3/2021 00:00:00,"245961",245,"BR0018","BRADSHAW ELECTRICAL LIMITED",1/3/2021 00:00:00,31/3/2021 00:00:00,"P12-2021"
,"LEE VALLEY MARINA SPRINGFIELD","PREMISES RELATED EXPENDITURE","BUILDING REPAIRS & MAINTENANCE","2222","P110174-SERVICE-Works needed following Electrical Installatio",31/3/2021 00:00:00,"245962",2250,"BR0018","BRADSHAW ELECTRICAL LIMITED",1/3/2021 00:00:00,31/3/2021 00:00:00,"P12-2021"
,"LEE VALLEY MARINA SPRINGFIELD","PREMISES RELATED EXPENDITURE","BUILDING REPAIRS & MAINTENANCE","2222","P111386-SERVICE-Required upgrade works for pontoon power",31/3/2021 00:00:00,"246370",645,"MO0041","CAPSER",1/3/2021 00:00:00,31/3/2021 00:00:00,"P12-2021"
,"LEE VALLEY MARINA SPRINGFIELD","PREMISES RELATED EXPENDITURE","BUILDING REPAIRS & MAINTENANCE","2222","CAPSER",31/3/2021 00:00:00,"246370",-645,"MO0041","CAPSER",1/3/2021 00:00:00,31/3/2021 00:00:00,"P12-2021"
,"LEE VALLEY MARINA SPRINGFIELD","PREMISES RELATED EXPENDITURE","BUILDING REPAIRS & MAINTENANCE","2222","CAPSER",31/3/2021 00:00:00,"246370",145,"MO0041","CAPSER",1/3/2021 00:00:00,31/3/2021 00:00:00,"P12-2021"
,"LEE VALLEY MARINA SPRINGFIELD","PREMISES RELATED EXPENDITURE","BUILDING REPAIRS & MAINTENANCE","2222","CAPSER",31/3/2021 00:00:00,"246370",500,"MO0041","CAPSER",1/3/2021 00:00:00,31/3/2021 00:00:00,"P12-2021"
,"LEE VALLEY MARINA SPRINGFIELD","PREMISES RELATED EXPENDITURE","BUILDING REPAIRS & MAINTENANCE","2222","CAPSER",31/3/2021 00:00:00,"246371",-645,"MO0041","CAPSER",1/3/2021 00:00:00,31/3/2021 00:00:00,"P12-2021"
,"LEE VALLEY MARINA SPRINGFIELD","PREMISES RELATED EXPENDITURE","BUILDING REPAIRS & MAINTENANCE","2222","CAPSER",31/3/2021 00:00:00,"246371",145,"MO0041","CAPSER",1/3/2021 00:00:00,31/3/2021 00:00:00,"P12-2021"
,"LEE VALLEY MARINA SPRINGFIELD","PREMISES RELATED EXPENDITURE","BUILDING REPAIRS & MAINTENANCE","2222","CAPSER",31/3/2021 00:00:00,"246371",500,"MO0041","CAPSER",1/3/2021 00:00:00,31/3/2021 00:00:00,"P12-2021"
,"LEE VALLEY MARINA SPRINGFIELD","PREMISES RELATED EXPENDITURE","BUILDING REPAIRS & MAINTENANCE","2222","P111387-SERVICE-Ground works for power cable to pontoons",31/3/2021 00:00:00,"246371",645,"MO0041","CAPSER",1/3/2021 00:00:00,31/3/2021 00:00:00,"P12-2021"
,"LEE VALLEY MARINA STANSTEAD","PREMISES RELATED EXPENDITURE","BUILDING REPAIRS & MAINTENANCE","2222","P110949-SERVICE-repair to gents shower",16/3/2021 00:00:00,"245522",120,"TA0204","TAYLOR HEATING",1/3/2021 00:00:00,31/3/2021 00:00:00,"P12-2021"
,"LEE VALLEY WATERWORKS CENTRE","PREMISES RELATED EXPENDITURE","BUILDING REPAIRS & MAINTENANCE","2222","P111090-SERVICE-Alarm System Battery - WWK's",15/3/2021 00:00:00,"244868",60,"AA0003","AAI SECURITY SYSTEMS",1/3/2021 00:00:00,31/3/2021 00:00:00,"P12-2021"
,"LEE VALLEY WATERWORKS CENTRE","PREMISES RELATED EXPENDITURE","BUILDING REPAIRS & MAINTENANCE","2222","P111568-SERVICE-For engineering services to attend to boiler",31/3/2021 00:00:00,"246393",227.28,"CO0199","ENGIE FM LIMITED",1/3/2021 00:00:00,31/3/2021 00:00:00,"P12-2021"
,"LEE VALLEY WATERWORKS CENTRE","PREMISES RELATED EXPENDITURE","BUILDING REPAIRS & MAINTENANCE","2222","P111568-SERVICE-Found fault on heating pressurisation unit pu",31/3/2021 00:00:00,"246394",227.28,"CO0199","ENGIE FM LIMITED",1/3/2021 00:00:00,31/3/2021 00:00:00,"P12-2021"
"P&V","LEE VALLEY FARM HOLYFIELDHALL","PREMISES RELATED EXPENDITURE","BUILDING REPAIRS & MAINTENANCE","2222","P109823-SERVICE-Building Materials",15/3/2021 00:00:00,"245566",60.99,"JE0011","SAINT-GOBAIN BUILDING DISTRIBUTION",1/3/2021 00:00:00,31/3/2021 00:00:00,"P12-2021"
"P&V","LEE VALLEY FARM HOLYFIELDHALL","PREMISES RELATED EXPENDITURE","BUILDING REPAIRS & MAINTENANCE","2222","P111466-SERVICE-Building Repairs",31/3/2021 00:00:00,"245834",93.39,"JE0011","SAINT-GOBAIN BUILDING DISTRIBUTION",1/3/2021 00:00:00,31/3/2021 00:00:00,"P12-2021"
"P&V","LEE VALLEY FARM HOLYFIELDHALL","PREMISES RELATED EXPENDITURE","BUILDING REPAIRS & MAINTENANCE","2222","P111466-SERVICE-Building Repairs",31/3/2021 00:00:00,"246149",56.6,"JE0011","SAINT-GOBAIN BUILDING DISTRIBUTION",1/3/2021 00:00:00,31/3/2021 00:00:00,"P12-2021"
,"LEE VALLEY FARM HAYES HILL","PREMISES RELATED EXPENDITURE","BUILDING REPAIRS & MAINTENANCE","2222","P111190-SERVICE-Installation of extra socket circuit",17/3/2021 00:00:00,"245373",895,"BR0018","BRADSHAW ELECTRICAL LIMITED",1/3/2021 00:00:00,31/3/2021 00:00:00,"P12-2021"
,"LEE VALLEY FARM HAYES HILL","PREMISES RELATED EXPENDITURE","BUILDING REPAIRS & MAINTENANCE","2222","P111139-SERVICE-PA Testing Farm",22/3/2021 00:00:00,"245380",687,"BR0018","BRADSHAW ELECTRICAL LIMITED",1/3/2021 00:00:00,31/3/2021 00:00:00,"P12-2021"
,"LEE VALLEY FARM HAYES HILL","PREMISES RELATED EXPENDITURE","BUILDING REPAIRS & MAINTENANCE","2222","P111139-SERVICE-PA Testing Coda",22/3/2021 00:00:00,"245380",111,"BR0018","BRADSHAW ELECTRICAL LIMITED",1/3/2021 00:00:00,31/3/2021 00:00:00,"P12-2021"
,"LEE VALLEY FARM HAYES HILL","PREMISES RELATED EXPENDITURE","BUILDING REPAIRS & MAINTENANCE","2222","P111122-SERVICE-Repair holes to exterior of WP",22/3/2021 00:00:00,"245701",160,"RE0094","REACT 2 IT (BUILDING & REFURBISHMENT) LTD",1/3/2021 00:00:00,31/3/2021 00:00:00,"P12-2021"
,"LVPF HAYES HILL SHOP/CATERING","PREMISES RELATED EXPENDITURE","BUILDING REPAIRS & MAINTENANCE","2222","P111110-SERVICE-annual catering eqt check & dishwasher repair",22/3/2021 00:00:00,"245730",230,"MA0417","MARSTAN FACILITIES LTD",1/3/2021 00:00:00,31/3/2021 00:00:00,"P12-2021"
,"LEE VALLEY CAMPSITE","PREMISES RELATED EXPENDITURE","BUILDING REPAIRS & MAINTENANCE","2222","P110981-SERVICE-Plot 22",8/3/2021 00:00:00,"244685",200,"BR0018","BRADSHAW ELECTRICAL LIMITED",1/3/2021 00:00:00,31/3/2021 00:00:00,"P12-2021"
,"LEE VALLEY CAMPSITE","PREMISES RELATED EXPENDITURE","BUILDING REPAIRS & MAINTENANCE","2222","P110506-SERVICE-Plot 20 - Remove old van and new base",8/3/2021 00:00:00,"244811",1650,"MO0041","CAPSER",1/3/2021 00:00:00,31/3/2021 00:00:00,"P12-2021"
,"LEE VALLEY CAMPSITE","PREMISES RELATED EXPENDITURE","BUILDING REPAIRS & MAINTENANCE","2222","P110498-SERVICE-Plot 44 - Removal, new base, Plumb, guttering",8/3/2021 00:00:00,"244813",2825,"MO0041","CAPSER",1/3/2021 00:00:00,31/3/2021 00:00:00,"P12-2021"
,"LEE VALLEY CAMPSITE","PREMISES RELATED EXPENDITURE","BUILDING REPAIRS & MAINTENANCE","2222","P110505-SERVICE-Plot 45 - Remove old, new base, Parking Space",8/3/2021 00:00:00,"244814",2020,"MO0041","CAPSER",1/3/2021 00:00:00,31/3/2021 00:00:00,"P12-2021"
,"LEE VALLEY CAMPSITE","PREMISES RELATED EXPENDITURE","BUILDING REPAIRS & MAINTENANCE","2222","P110503-SERVICE-Plot 46 - Remove old, new base, parking space",24/3/2021 00:00:00,"244815",2020,"MO0041","CAPSER",1/3/2021 00:00:00,31/3/2021 00:00:00,"P12-2021"
,"LEE VALLEY CAMPSITE","PREMISES RELATED EXPENDITURE","BUILDING REPAIRS & MAINTENANCE","2222","P110790-SERVICE-Emergency Lighting B Block Code 2",15/3/2021 00:00:00,"245374",240,"BR0018","BRADSHAW ELECTRICAL LIMITED",1/3/2021 00:00:00,31/3/2021 00:00:00,"P12-2021"
,"LEE VALLEY CAMPSITE","PREMISES RELATED EXPENDITURE","BUILDING REPAIRS & MAINTENANCE","2222","P110791-SERVICE-B Block Extractor Fan",15/3/2021 00:00:00,"245375",185,"BR0018","BRADSHAW ELECTRICAL LIMITED",1/3/2021 00:00:00,31/3/2021 00:00:00,"P12-2021"
,"LEE VALLEY CAMPSITE","PREMISES RELATED EXPENDITURE","BUILDING REPAIRS & MAINTENANCE","2222","P110787-SERVICE-Code 2 Toilet Block",15/3/2021 00:00:00,"245376",980,"BR0018","BRADSHAW ELECTRICAL LIMITED",1/3/2021 00:00:00,31/3/2021 00:00:00,"P12-2021"
,"LEE VALLEY CAMPSITE","PREMISES RELATED EXPENDITURE","BUILDING REPAIRS & MAINTENANCE","2222","CAPSER",24/3/2021 00:00:00,"245754",200,"MO0041","CAPSER",1/3/2021 00:00:00,31/3/2021 00:00:00,"P12-2021"
,"LEE VALLEY CAMPSITE","PREMISES RELATED EXPENDITURE","BUILDING REPAIRS & MAINTENANCE","2222","P110929-SERVICE-Trenches",24/3/2021 00:00:00,"245754",500,"MO0041","CAPSER",1/3/2021 00:00:00,31/3/2021 00:00:00,"P12-2021"
,"LEE VALLEY CAMPSITE","PREMISES RELATED EXPENDITURE","BUILDING REPAIRS & MAINTENANCE","2222","CAPSER",24/3/2021 00:00:00,"245754",300,"MO0041","CAPSER",1/3/2021 00:00:00,31/3/2021 00:00:00,"P12-2021"
,"LEE VALLEY CAMPSITE","PREMISES RELATED EXPENDITURE","BUILDING REPAIRS & MAINTENANCE","2222","CAPSER",24/3/2021 00:00:00,"245754",-500,"MO0041","CAPSER",1/3/2021 00:00:00,31/3/2021 00:00:00,"P12-2021"
,"LEE VALLEY CARAVAN PARK","PREMISES RELATED EXPENDITURE","BUILDING REPAIRS & MAINTENANCE","2222","P111276-SERVICE-Replaced Valve",29/3/2021 00:00:00,"246166",70,"SO0400","SOUTHERN GREEN SERVICES LIMITED",1/3/2021 00:00:00,31/3/2021 00:00:00,"P12-2021"
,"LEE VALLEY CARAVAN PARK","PREMISES RELATED EXPENDITURE","BUILDING REPAIRS & MAINTENANCE","2222","P111275-SERVICE-Replaced water pump",29/3/2021 00:00:00,"246167",460,"SO0400","SOUTHERN GREEN SERVICES LIMITED",1/3/2021 00:00:00,31/3/2021 00:00:00,"P12-2021"
"P&V","ABBEY GARDENS","PREMISES RELATED EXPENDITURE","BUILDING REPAIRS & MAINTENANCE","2222","P110831-SERVICE-Repairs to Lights at Waltham Abbey Gardens",15/3/2021 00:00:00,"245372",895,"BR0018","BRADSHAW ELECTRICAL LIMITED",1/3/2021 00:00:00,31/3/2021 00:00:00,"P12-2021"
"P&V","ABBEY GARDENS","PREMISES RELATED EXPENDITURE","BUILDING REPAIRS & MAINTENANCE","2222","P111181-SERVICE-Line Painting at Various Car Parks",31/3/2021 00:00:00,"246423",3500,"LI0251","LINEWAYS LTD",1/3/2021 00:00:00,31/3/2021 00:00:00,"P12-2021"
"P&V","GUNPOWDER PARK","PREMISES RELATED EXPENDITURE","BUILDING REPAIRS & MAINTENANCE","2222","P110924-SERVICE-Unblock Toilets at Gunpowder Park",8/3/2021 00:00:00,"245123",80,"RE0094","REACT 2 IT (BUILDING & REFURBISHMENT) LTD",1/3/2021 00:00:00,31/3/2021 00:00:00,"P12-2021"
"P&V","GUNPOWDER PARK","PREMISES RELATED EXPENDITURE","BUILDING REPAIRS & MAINTENANCE","2222","P110925-SERVICE-Repairs Toilet at Gunpowder Park",29/3/2021 00:00:00,"245368",260,"RE0094","REACT 2 IT (BUILDING & REFURBISHMENT) LTD",1/3/2021 00:00:00,31/3/2021 00:00:00,"P12-2021"
"P&V","GUNPOWDER PARK","PREMISES RELATED EXPENDITURE","BUILDING REPAIRS & MAINTENANCE","2222","P110473-SERVICE-Boiler Repairs at Gunpowder Park",31/3/2021 00:00:00,"246401",251.77,"CO0199","ENGIE FM LIMITED",1/3/2021 00:00:00,31/3/2021 00:00:00,"P12-2021"
"P&V","RIVER LEE COUNTRY PARK","PREMISES RELATED EXPENDITURE","BUILDING REPAIRS & MAINTENANCE","2222","P111364-SERVICE-Ranger Base Heater Repairs",31/3/2021 00:00:00,"245377",50,"BR0018","BRADSHAW ELECTRICAL LIMITED",1/3/2021 00:00:00,31/3/2021 00:00:00,"P12-2021"
"P&V","RIVER LEE COUNTRY PARK","PREMISES RELATED EXPENDITURE","BUILDING REPAIRS & MAINTENANCE","2222","P110878-SERVICE-Lighting Improvments - Old Mill & Meadows Toi",15/3/2021 00:00:00,"245379",560,"BR0018","BRADSHAW ELECTRICAL LIMITED",1/3/2021 00:00:00,31/3/2021 00:00:00,"P12-2021"
"P&V","RIVER LEE COUNTRY PARK","PREMISES RELATED EXPENDITURE","BUILDING REPAIRS & MAINTENANCE","2222","P110893-SERVICE-Unblock Toilets - Fishers Green",23/3/2021 00:00:00,"245745",98,"KE0023","KENDALL & SONS LIMITED",1/3/2021 00:00:00,31/3/2021 00:00:00,"P12-2021"
,"LEE VALLEY VELOPARK","PREMISES RELATED EXPENDITURE","BUILDING REPAIRS & MAINTENANCE","2222","P110319-SERVICE-Remedial Works",8/3/2021 00:00:00,"245101",2430,"SC0470","SCS GROUP",1/3/2021 00:00:00,31/3/2021 00:00:00,"P12-2021"
,"LEE VALLEY VELOPARK","PREMISES RELATED EXPENDITURE","BUILDING REPAIRS & MAINTENANCE","2222","P111325-SERVICE-Repair fence post",29/3/2021 00:00:00,"245329",400,"AN0458","JOHN ANASTASIOU",1/3/2021 00:00:00,31/3/2021 00:00:00,"P12-2021"
,"LEE VALLEY VELOPARK","PREMISES RELATED EXPENDITURE","BUILDING REPAIRS & MAINTENANCE","2222","P109212-SERVICE-Track Barrier Works",15/3/2021 00:00:00,"245495",218,"RB0221","R 'n 'B ENGINEERING LTD",1/3/2021 00:00:00,31/3/2021 00:00:00,"P12-2021"
,"LEE VALLEY VELOPARK","PREMISES RELATED EXPENDITURE","BUILDING REPAIRS & MAINTENANCE","2222","P109713-SERVICE-TRPV Valve Works",29/3/2021 00:00:00,"245844",1054,"AS0039","ASTON GROUP",1/3/2021 00:00:00,31/3/2021 00:00:00,"P12-2021"
,"LEE VALLEY VELOPARK","PREMISES RELATED EXPENDITURE","BUILDING REPAIRS & MAINTENANCE","2222","P110246-SERVICE-Platform Lift Timing Hut",29/3/2021 00:00:00,"245986",639.33,"GU0210","GUIDELINE LIFT SERVICES LTD",1/3/2021 00:00:00,31/3/2021 00:00:00,"P12-2021"
,"LEE VALLEY VELOPARK","PREMISES RELATED EXPENDITURE","BUILDING REPAIRS & MAINTENANCE","2222","P110579-SERVICE-Intruder & Fire Alarm Works",31/3/2021 00:00:00,"246150",599.36,"AD0015","ADT FIRE & SECURITY PLC",1/3/2021 00:00:00,31/3/2021 00:00:00,"P12-2021"
,"LEE VALLEY VELOPARK","PREMISES RELATED EXPENDITURE","BUILDING REPAIRS & MAINTENANCE","2222","P111615-SERVICE-Maintenance work",31/3/2021 00:00:00,"246586",560,"JC0161","JCR SECURITY LIMITED",1/3/2021 00:00:00,31/3/2021 00:00:00,"P12-2021"
,"LV HOCKEY AND TENNIS CENTRE","PREMISES RELATED EXPENDITURE","BUILDING REPAIRS & MAINTENANCE","2222","P111127-SERVICE-Puncture Repair",15/3/2021 00:00:00,"245135",40,"AP0245","APS LIMITED",1/3/2021 00:00:00,31/3/2021 00:00:00,"P12-2021"
,"LV HOCKEY AND TENNIS CENTRE","PREMISES RELATED EXPENDITURE","BUILDING REPAIRS & MAINTENANCE","2222","P109213-SERVICE-Steel Locking Plate Works",15/3/2021 00:00:00,"245495",207,"RB0221","R 'n 'B ENGINEERING LTD",1/3/2021 00:00:00,31/3/2021 00:00:00,"P12-2021"
,"LV HOCKEY AND TENNIS CENTRE","PREMISES RELATED EXPENDITURE","BUILDING REPAIRS & MAINTENANCE","2222","P110455-SERVICE-Chlorine Dioxide Unit New Parts",29/3/2021 00:00:00,"245748",950,"GO0211","GOODWATER LTD",1/3/2021 00:00:00,31/3/2021 00:00:00,"P12-2021"
,"LV HOCKEY AND TENNIS CENTRE","PREMISES RELATED EXPENDITURE","BUILDING REPAIRS & MAINTENANCE","2222","P110456-SERVICE-Installtion & Calibration of suction lances",29/3/2021 00:00:00,"245749",475,"GO0211","GOODWATER LTD",1/3/2021 00:00:00,31/3/2021 00:00:00,"P12-2021"
,"LV HOCKEY AND TENNIS CENTRE","PREMISES RELATED EXPENDITURE","BUILDING REPAIRS & MAINTENANCE","2222","P110580-SERVICE-Intruder & Fire Alarm Works",31/3/2021 00:00:00,"246151",640,"AD0015","ADT FIRE & SECURITY PLC",1/3/2021 00:00:00,31/3/2021 00:00:00,"P12-2021"
,"LEE VALLEY RIDING CENTRE","PREMISES RELATED EXPENDITURE","BUILDING REPAIRS & MAINTENANCE","2222","P110545-SERVICE-FENCING AND INSTALLATION",8/3/2021 00:00:00,"245116",8260,"FA0099","FARM & COUNTRY SUPPLIES LTD",1/3/2021 00:00:00,31/3/2021 00:00:00,"P12-2021"
,"LEE VALLEY RIDING CENTRE","PREMISES RELATED EXPENDITURE","BUILDING REPAIRS & MAINTENANCE","2222","P111311-SERVICE-fire alarm call out and repair",29/3/2021 00:00:00,"245555",57.88,"AD0015","ADT FIRE & SECURITY PLC",1/3/2021 00:00:00,31/3/2021 00:00:00,"P12-2021"
,"LEE VALLEY RIDING CENTRE","PREMISES RELATED EXPENDITURE","BUILDING REPAIRS & MAINTENANCE","2222","P110913-SERVICE-Fire extinghuisher service",22/3/2021 00:00:00,"245718",151.64,"TJ0009","T.J.FIRE & SECURITY",1/3/2021 00:00:00,31/3/2021 00:00:00,"P12-2021"
,"LEE VALLEY RIDING CENTRE","PREMISES RELATED EXPENDITURE","BUILDING REPAIRS & MAINTENANCE","2222","P111380-SERVICE-gate repairs, parts and labour",31/3/2021 00:00:00,"245966",449.72,"FA0099","FARM & COUNTRY SUPPLIES LTD",1/3/2021 00:00:00,31/3/2021 00:00:00,"P12-2021"
,"LEE VALLEY RIDING CENTRE","PREMISES RELATED EXPENDITURE","BUILDING REPAIRS & MAINTENANCE","2222","P111270-SERVICE-fire extinguisher service and repairs",31/3/2021 00:00:00,"246476",598.5,"TJ0009","T.J.FIRE & SECURITY",1/3/2021 00:00:00,31/3/2021 00:00:00,"P12-2021"
"P&V","FORMER LV LIDO SITE","PREMISES RELATED EXPENDITURE","BUILDING REPAIRS & MAINTENANCE","2222","P111223-SERVICE-Fence Repairs - Broxborne Area",31/3/2021 00:00:00,"245975",400,"JO0019","R G JOYCE",1/3/2021 00:00:00,31/3/2021 00:00:00,"P12-2021"
"P&V","FORMER LV LIDO SITE","PREMISES RELATED EXPENDITURE","BUILDING REPAIRS & MAINTENANCE","2222","P111332-SERVICE-Height Barrier Repairs at Broxbourne Riversid",31/3/2021 00:00:00,"246194",625,"LW0268","LWC ENGINEERING LIMITED",1/3/2021 00:00:00,31/3/2021 00:00:00,"P12-2021"
,"LEE VALLEY ATHLETICS CENTRE","PREMISES RELATED EXPENDITURE","BUILDING REPAIRS & MAINTENANCE","2222","P110012-SERVICE-LVAC REPAIRS TO PANIC ALARM",23/3/2021 00:00:00,"245085",550.53,"AD0015","ADT FIRE & SECURITY PLC",1/3/2021 00:00:00,31/3/2021 00:00:00,"P12-2021"
,"LEE VALLEY ATHLETICS CENTRE","PREMISES RELATED EXPENDITURE","BUILDING REPAIRS & MAINTENANCE","2222","P110740-SERVICE-LVAC AS PER JOB NO P6624 01/02/2021 REPAIRS T",23/3/2021 00:00:00,"245712",945.15,"PR0446","PRECISION GYM SERVICES LTD",1/3/2021 00:00:00,31/3/2021 00:00:00,"P12-2021"
,"LEE VALLEY ATHLETICS CENTRE","PREMISES RELATED EXPENDITURE","BUILDING REPAIRS & MAINTENANCE","2222","P110904-SERVICE-LVAC QUOTE 292229 PRESSURE WASH ATHLETIC TRAC",23/3/2021 00:00:00,"245780",4950,"WH0237","WHITE LINE SERVICES INTERNATIONAL LIMITED",1/3/2021 00:00:00,31/3/2021 00:00:00,"P12-2021"
,"LEE VALLEY ATHLETICS CENTRE","PREMISES RELATED EXPENDITURE","BUILDING REPAIRS & MAINTENANCE","2222","P111186-SERVICE-LVAC CALLOUT TO HOSE REPAIRS",31/3/2021 00:00:00,"245969",150,"SP0290","SPEEDY ASSET SERVICES LIMITED",1/3/2021 00:00:00,31/3/2021 00:00:00,"P12-2021"
,"LEE VALLEY ATHLETICS CENTRE","PREMISES RELATED EXPENDITURE","BUILDING REPAIRS & MAINTENANCE","2222","P110694-SERVICE-As per quotation Qu002084",31/3/2021 00:00:00,"246575",2130.8,"KE0163","KERSHAW MECHANICAL SERVICES LTD",1/3/2021 00:00:00,31/3/2021 00:00:00,"P12-2021"
,"LEE VALLEY WHITE WATER CENTRE","PREMISES RELATED EXPENDITURE","BUILDING REPAIRS & MAINTENANCE","2222","P111390-SERVICE-Dockets CW200885 and CW441975",30/3/2021 00:00:00,"236971",1575.53,"AD0015","ADT FIRE & SECURITY PLC",1/3/2021 00:00:00,31/3/2021 00:00:00,"P12-2021"
,"LEE VALLEY WHITE WATER CENTRE","PREMISES RELATED EXPENDITURE","BUILDING REPAIRS & MAINTENANCE","2222","P109956-SERVICE-Works as per quotation EST76926-1",15/3/2021 00:00:00,"245542",1996.63,"CL0039","XYLEM WATER SOLUTIONS UK  LIMITED",1/3/2021 00:00:00,31/3/2021 00:00:00,"P12-2021"
,"LEE VALLEY WHITE WATER CENTRE","PREMISES RELATED EXPENDITURE","BUILDING REPAIRS & MAINTENANCE","2222","P109415-SERVICE-Call out charge to attend Switch room and pum",15/3/2021 00:00:00,"245563",247.5,"YO0024","YY SECURITY INSTALLATION",1/3/2021 00:00:00,31/3/2021 00:00:00,"P12-2021"
,"LEE VALLEY WHITE WATER CENTRE","PREMISES RELATED EXPENDITURE","BUILDING REPAIRS & MAINTENANCE","2222","P111239-SERVICE-Jumbrellas and emergency Light Test",22/3/2021 00:00:00,"245735",782.31,"GI0137","R & P GIBBS LIMITED",1/3/2021 00:00:00,31/3/2021 00:00:00,"P12-2021"
,"LEE VALLEY WHITE WATER CENTRE","PREMISES RELATED EXPENDITURE","BUILDING REPAIRS & MAINTENANCE","2222","P111240-SERVICE-Lamp replacement and reset clock",22/3/2021 00:00:00,"245736",555.19,"GI0137","R & P GIBBS LIMITED",1/3/2021 00:00:00,31/3/2021 00:00:00,"P12-2021"
,"LEE VALLEY WHITE WATER CENTRE","PREMISES RELATED EXPENDITURE","BUILDING REPAIRS & MAINTENANCE","2222","P111260-SERVICE-Engineers visit on 31.01.21",29/3/2021 00:00:00,"245835",75,"AD0015","ADT FIRE & SECURITY PLC",1/3/2021 00:00:00,31/3/2021 00:00:00,"P12-2021"
,"LEE VALLEY WHITE WATER CENTRE","PREMISES RELATED EXPENDITURE","BUILDING REPAIRS & MAINTENANCE","2222","P111016-SERVICE-Repair of a number of faulty locks",29/3/2021 00:00:00,"246162",225,"YO0024","YY SECURITY INSTALLATION",1/3/2021 00:00:00,31/3/2021 00:00:00,"P12-2021"
,"LEE VALLEY WHITE WATER CENTRE","PREMISES RELATED EXPENDITURE","BUILDING REPAIRS & MAINTENANCE","2222","P111338-SERVICE-Repair corroded fittings to acid educator wat",29/3/2021 00:00:00,"246163",96,"GI0137","R & P GIBBS LIMITED",1/3/2021 00:00:00,31/3/2021 00:00:00,"P12-2021"
,"LEE VALLEY WHITE WATER CENTRE","PREMISES RELATED EXPENDITURE","BUILDING REPAIRS & MAINTENANCE","2222","P110751-SERVICE-Repair to damaged extention lead to car winch",31/3/2021 00:00:00,"246244",70,"GI0137","R & P GIBBS LIMITED",1/3/2021 00:00:00,31/3/2021 00:00:00,"P12-2021"
,"LEE VALLEY WHITE WATER CENTRE","PREMISES RELATED EXPENDITURE","BUILDING REPAIRS & MAINTENANCE","2222","P111336-SERVICE-Tidy up of Pavilion Sand Pit",31/3/2021 00:00:00,"246436",250,"MO0041","CAPSER",1/3/2021 00:00:00,31/3/2021 00:00:00,"P12-2021"
,"LEE VALLEY ATHLETICS CENTRE","PREMISES RELATED EXPENDITURE","ENGINEERING SERVICES CONTRACT","2223","P110011-SERVICE-LVAC MONITERING OF PANIC ALARM",23/3/2021 00:00:00,"245085",500,"AD0015","ADT FIRE & SECURITY PLC",1/3/2021 00:00:00,31/3/2021 00:00:00,"P12-2021"
,"LEE VALLEY ATHLETICS CENTRE","PREMISES RELATED EXPENDITURE","ENGINEERING SERVICES CONTRACT","2223","P111287-SERVICE-LVAC INV 353725",24/3/2021 00:00:00,"245323",398.52,"CA0341","F & R CAWLEY LTD",1/3/2021 00:00:00,31/3/2021 00:00:00,"P12-2021"
,"LEE VALLEY ATHLETICS CENTRE","PREMISES RELATED EXPENDITURE","ENGINEERING SERVICES CONTRACT","2223","P111581-SERVICE-LVAC WASTE COLLECTION 26/27 NOV 2020",31/3/2021 00:00:00,"245324",285.58,"CA0341","F & R CAWLEY LTD",1/3/2021 00:00:00,31/3/2021 00:00:00,"P12-2021"
,"LEE VALLEY ATHLETICS CENTRE","PREMISES RELATED EXPENDITURE","ENGINEERING SERVICES CONTRACT","2223","P111288-SERVICE-LVAC SEPT WASTE INV 345455",24/3/2021 00:00:00,"245325",27.36,"CA0341","F & R CAWLEY LTD",1/3/2021 00:00:00,31/3/2021 00:00:00,"P12-2021"
,"LEE VALLEY ATHLETICS CENTRE","PREMISES RELATED EXPENDITURE","ENGINEERING SERVICES CONTRACT","2223","P108872-SERVICE-LVAC ANNUAL CONTRACT OCT 2020 TO MARCH 2021",30/3/2021 00:00:00,"245579",-927.3,"CH0675","CHEAPERWASTE LIMITED",1/3/2021 00:00:00,31/3/2021 00:00:00,"P12-2021"
,"LEE VALLEY ATHLETICS CENTRE","PREMISES RELATED EXPENDITURE","ENGINEERING SERVICES CONTRACT","2223","P108872-SERVICE-LVAC ANNUAL CONTRACT OCT 2020 TO MARCH 2021",30/3/2021 00:00:00,"245704",-547.95,"CH0675","CHEAPERWASTE LIMITED",1/3/2021 00:00:00,31/3/2021 00:00:00,"P12-2021"
,"LEE VALLEY ATHLETICS CENTRE","PREMISES RELATED EXPENDITURE","ENGINEERING SERVICES CONTRACT","2223","P107175-SERVICE-LVAC 2020/21 CHERRY PICKER + GENIE ANNUAL",31/3/2021 00:00:00,"245970",425,"SP0290","SPEEDY ASSET SERVICES LIMITED",1/3/2021 00:00:00,31/3/2021 00:00:00,"P12-2021"
,"LEE VALLEY ATHLETICS CENTRE","PREMISES RELATED EXPENDITURE","ENGINEERING SERVICES CONTRACT","2223","P110560-SERVICE-LVAC QUO02032 PORTABLE APPLIANCE TEST X 400",31/3/2021 00:00:00,"246116",385.6,"KE0163","KERSHAW MECHANICAL SERVICES LTD",1/3/2021 00:00:00,31/3/2021 00:00:00,"P12-2021"
,"LEE VALLEY WHITE WATER CENTRE","PREMISES RELATED EXPENDITURE","ENGINEERING SERVICES CONTRACT","2223","P111075-SERVICE-10 x Loler - Maxisky 600",10/3/2021 00:00:00,"245294",72,"AR0335","ARJO UK LTD (FRMLY ARJOHUNTLEIGH UK)",1/3/2021 00:00:00,31/3/2021 00:00:00,"P12-2021"
,"LEE VALLEY WHITE WATER CENTRE","PREMISES RELATED EXPENDITURE","ENGINEERING SERVICES CONTRACT","2223","P111156-SERVICE-Pump Electrical services for Feb and march 20",15/3/2021 00:00:00,"245350",1530,"AM0309","AMP 5 LIMITED",1/3/2021 00:00:00,31/3/2021 00:00:00,"P12-2021"
,"LEE VALLEY WHITE WATER CENTRE","PREMISES RELATED EXPENDITURE","ENGINEERING SERVICES CONTRACT","2223","P111156-SERVICE-Pump Electrical services for Feb and march 20",22/3/2021 00:00:00,"245599",2040,"AM0309","AMP 5 LIMITED",1/3/2021 00:00:00,31/3/2021 00:00:00,"P12-2021"
,"LEE VALLEY WHITE WATER CENTRE","PREMISES RELATED EXPENDITURE","ENGINEERING SERVICES CONTRACT","2223","P110752-SERVICE-Yearly blending valve service",29/3/2021 00:00:00,"245973",490,"GI0137","R & P GIBBS LIMITED",1/3/2021 00:00:00,31/3/2021 00:00:00,"P12-2021"
,"LEE VALLEY WHITE WATER CENTRE","PREMISES RELATED EXPENDITURE","ENGINEERING SERVICES CONTRACT","2223","P111074-SERVICE-Pump service",29/3/2021 00:00:00,"246174",5069,"CL0039","XYLEM WATER SOLUTIONS UK  LIMITED",1/3/2021 00:00:00,31/3/2021 00:00:00,"P12-2021"
,"LEE VALLEY WHITE WATER CENTRE","PREMISES RELATED EXPENDITURE","ENGINEERING SERVICES CONTRACT","2223","P111156-SERVICE-Pump Electrical services for Feb and march 20",31/3/2021 00:00:00,"246709",1530,"AM0309","AMP 5 LIMITED",1/3/2021 00:00:00,31/3/2021 00:00:00,"P12-2021"
"P&V","LEE VALLEY FARM HOLYFIELDHALL","SUPPLIES AND SERVICES","FENCES/GATES ETC.","2231","P107171-SERVICE-Fencing Supplies",15/3/2021 00:00:00,"245114",21.48,"FA0099","FARM & COUNTRY SUPPLIES LTD",1/3/2021 00:00:00,31/3/2021 00:00:00,"P12-2021"
"P&V","NORTH AREA RANGERS","SUPPLIES AND SERVICES","FENCES/GATES ETC.","2231","P111000-SERVICE-8x Post 7x7x7",31/3/2021 00:00:00,"246619",280,"JW0004","J & W FENCING LIMITED",1/3/2021 00:00:00,31/3/2021 00:00:00,"P12-2021"
"P&V","NORTH AREA RANGERS","SUPPLIES AND SERVICES","FENCES/GATES ETC.","2231","P111000-SERVICE-2x Rolls od Stock Fence",31/3/2021 00:00:00,"246619",90,"JW0004","J & W FENCING LIMITED",1/3/2021 00:00:00,31/3/2021 00:00:00,"P12-2021"
"P&V","NORTH AREA RANGERS","SUPPLIES AND SERVICES","FENCES/GATES ETC.","2231","P111000-SERVICE-10x 6x2 3.6m Long",31/3/2021 00:00:00,"246619",118,"JW0004","J & W FENCING LIMITED",1/3/2021 00:00:00,31/3/2021 00:00:00,"P12-2021"
"P&V","SOUTH AREA RANGERS","SUPPLIES AND SERVICES","FENCES/GATES ETC.","2231","P111052-SERVICE-Install Field Gate at Walthamsow Marsh",29/3/2021 00:00:00,"245979",200,"JO0019","R G JOYCE",1/3/2021 00:00:00,31/3/2021 00:00:00,"P12-2021"
"P&V","SOUTH AREA RANGERS","SUPPLIES AND SERVICES","FENCES/GATES ETC.","2231","P111041-SERVICE-Remove & Install Bollards at Sandy Lane",29/3/2021 00:00:00,"245980",300,"JO0019","R G JOYCE",1/3/2021 00:00:00,31/3/2021 00:00:00,"P12-2021"
"P&V","SOUTH AREA RANGERS","SUPPLIES AND SERVICES","FENCES/GATES ETC.","2231","P111085-SERVICE-Staple Keep for spring Catch - Code 2716",31/3/2021 00:00:00,"246466",5.58,"FA0099","FARM & COUNTRY SUPPLIES LTD",1/3/2021 00:00:00,31/3/2021 00:00:00,"P12-2021"
"P&V","SOUTH AREA RANGERS","SUPPLIES AND SERVICES","FENCES/GATES ETC.","2231","P111237-SERVICE-52x Rail for Post and Rail Fence 88x38mm",31/3/2021 00:00:00,"246581",269.36,"TI0164","414 TIMBER & FENCING",1/3/2021 00:00:00,31/3/2021 00:00:00,"P12-2021"
"P&V","SOUTH AREA RANGERS","SUPPLIES AND SERVICES","FENCES/GATES ETC.","2231","P111237-SERVICE-Delivery",31/3/2021 00:00:00,"246581",70,"TI0164","414 TIMBER & FENCING",1/3/2021 00:00:00,31/3/2021 00:00:00,"P12-2021"
"P&V","SOUTH AREA RANGERS","SUPPLIES AND SERVICES","FENCES/GATES ETC.","2231","P111237-SERVICE-14x Machine Round Posts 75mm diam - 1.80m",31/3/2021 00:00:00,"246581",42.7,"TI0164","414 TIMBER & FENCING",1/3/2021 00:00:00,31/3/2021 00:00:00,"P12-2021"
"P&V","SOUTH AREA RANGERS","SUPPLIES AND SERVICES","FENCES/GATES ETC.","2231","P111237-SERVICE-20x Post for Post and Rail Fence 125x75mm",31/3/2021 00:00:00,"246581",154.4,"TI0164","414 TIMBER & FENCING",1/3/2021 00:00:00,31/3/2021 00:00:00,"P12-2021"
"P&V","ABBEY GARDENS","SUPPLIES AND SERVICES","FENCES/GATES ETC.","2231","P111044-SERVICE-Repair Kissing Gate at Tree Park",29/3/2021 00:00:00,"245976",580,"JO0019","R G JOYCE",1/3/2021 00:00:00,31/3/2021 00:00:00,"P12-2021"
"P&V","ABBEY GARDENS","SUPPLIES AND SERVICES","FENCES/GATES ETC.","2231","P111043-SERVICE-Fence Repairs at Bowyers",29/3/2021 00:00:00,"245977",800,"JO0019","R G JOYCE",1/3/2021 00:00:00,31/3/2021 00:00:00,"P12-2021"
"P&V","GUNPOWDER PARK","SUPPLIES AND SERVICES","FENCES/GATES ETC.","2231","P110963-SERVICE-Emergency Fencing at Rammey Marsh",10/3/2021 00:00:00,"245112",995,"JO0019","R G JOYCE",1/3/2021 00:00:00,31/3/2021 00:00:00,"P12-2021"
"P&V","GUNPOWDER PARK","SUPPLIES AND SERVICES","FENCES/GATES ETC.","2231","P111054-SERVICE-Re-enforcement of Gate at Sewardstone Marsh",31/3/2021 00:00:00,"246196",464,"LW0268","LWC ENGINEERING LIMITED",1/3/2021 00:00:00,31/3/2021 00:00:00,"P12-2021"
"P&V","RIVER LEE COUNTRY PARK","SUPPLIES AND SERVICES","FENCES/GATES ETC.","2231","P110988-SERVICE-2x 12ft Field Gates",31/3/2021 00:00:00,"246617",356,"JW0004","J & W FENCING LIMITED",1/3/2021 00:00:00,31/3/2021 00:00:00,"P12-2021"
"P&V","RIVER LEE COUNTRY PARK","SUPPLIES AND SERVICES","FENCES/GATES ETC.","2231","P110988-SERVICE-50x 3""x6' Pointed Posts",31/3/2021 00:00:00,"246617",172.5,"JW0004","J & W FENCING LIMITED",1/3/2021 00:00:00,31/3/2021 00:00:00,"P12-2021"
"P&V","RIVER LEE COUNTRY PARK","SUPPLIES AND SERVICES","FENCES/GATES ETC.","2231","P110988-SERVICE-50x Motorway Rails",31/3/2021 00:00:00,"246617",262.5,"JW0004","J & W FENCING LIMITED",1/3/2021 00:00:00,31/3/2021 00:00:00,"P12-2021"
"P&V","RIVER LEE COUNTRY PARK","SUPPLIES AND SERVICES","FENCES/GATES ETC.","2231","P110988-SERVICE-20x Post Mix",31/3/2021 00:00:00,"246617",93,"JW0004","J & W FENCING LIMITED",1/3/2021 00:00:00,31/3/2021 00:00:00,"P12-2021"
"P&V","SOUTH AREA RANGERS","SUPPLIES AND SERVICES","PARK SIGNS AND BOARDS","2236","P111309-SERVICE-Produce banners from artwork supplied",31/3/2021 00:00:00,"246102",838.42,"MA0167","MARTIN DANNELL & CO LTD",1/3/2021 00:00:00,31/3/2021 00:00:00,"P12-2021"
"P&V","SOUTH AREA RANGERS","SUPPLIES AND SERVICES","PARK SIGNS AND BOARDS","2236","P111308-SERVICE-Delivery Signs",31/3/2021 00:00:00,"246588",35,"SI0434","SIGNS & IMAGING ( SOUTHEAST) LIMITED",1/3/2021 00:00:00,31/3/2021 00:00:00,"P12-2021"
"P&V","SOUTH AREA RANGERS","SUPPLIES AND SERVICES","PARK SIGNS AND BOARDS","2236","P111308-SERVICE-Park Signs produced from artwork supplied",31/3/2021 00:00:00,"246588",1612,"SI0434","SIGNS & IMAGING ( SOUTHEAST) LIMITED",1/3/2021 00:00:00,31/3/2021 00:00:00,"P12-2021"
"CEO","RESIDENTIAL ACCOMMODATION","EXPENDITURE FROM REPAIRS FUND","EXPENDITURE FROM REPAIRS FUND","2240","KENDALL & SONS LIMITED",31/3/2021 00:00:00,"245746",540,"KE0023","KENDALL & SONS LIMITED",1/3/2021 00:00:00,31/3/2021 00:00:00,"P12-2021"
"CEO","RESIDENTIAL ACCOMMODATION","EXPENDITURE FROM REPAIRS FUND","EXPENDITURE FROM REPAIRS FUND","2240","P110891-SERVICE-9 Picketts Lock Lane Fence",31/3/2021 00:00:00,"245746",640,"KE0023","KENDALL & SONS LIMITED",1/3/2021 00:00:00,31/3/2021 00:00:00,"P12-2021"
"CEO","RESIDENTIAL ACCOMMODATION","EXPENDITURE FROM REPAIRS FUND","EXPENDITURE FROM REPAIRS FUND","2240","KENDALL & SONS LIMITED",31/3/2021 00:00:00,"245746",-640,"KE0023","KENDALL & SONS LIMITED",1/3/2021 00:00:00,31/3/2021 00:00:00,"P12-2021"
"CEO","RESIDENTIAL ACCOMMODATION","EXPENDITURE FROM REPAIRS FUND","EXPENDITURE FROM REPAIRS FUND","2240","KENDALL & SONS LIMITED",31/3/2021 00:00:00,"245746",100,"KE0023","KENDALL & SONS LIMITED",1/3/2021 00:00:00,31/3/2021 00:00:00,"P12-2021"
"P&V","MYDDELTON HOUSE GARDENS","EXPENDITURE FROM REPAIRS FUND","EXPENDITURE FROM REPAIRS FUND","2240","P111207-SERVICE-1. Pond relining MHG construction phase depos",22/3/2021 00:00:00,"245772",19980,"AQ0410","AQUAMAINTAIN LTD",1/3/2021 00:00:00,31/3/2021 00:00:00,"P12-2021"
"CEO","COMMERCIAL ACCOMMODATION","PREMISES RELATED EXPENDITURE","EAST HALE ALLOTMENTS","2261","P111175-SERVICE-Allotment Bins",16/3/2021 00:00:00,"245181",85.01,"CL0037","VEOLIA ES (UK) LTD",1/3/2021 00:00:00,31/3/2021 00:00:00,"P12-2021"
"P&V","MYDDELTON HOUSE","PREMISES RELATED EXPENDITURE","ENERGY COSTS (ELECTRICITY)","2332","KENT COUNTY COUNCIL (KCS)",15/3/2021 00:00:00,"244702",1119.22,"KE0007","KENT COUNTY COUNCIL (KCS)",1/3/2021 00:00:00,31/3/2021 00:00:00,"P12-2021"
"P&V","MYDDELTON HOUSE","PREMISES RELATED EXPENDITURE","ENERGY COSTS (ELECTRICITY)","2332","KENT COUNTY COUNCIL (KCS)",22/3/2021 00:00:00,"245687",915.8,"KE0007","KENT COUNTY COUNCIL (KCS)",1/3/2021 00:00:00,31/3/2021 00:00:00,"P12-2021"
"P&V","MYDDELTON HOUSE","PREMISES RELATED EXPENDITURE","ENERGY COSTS (ELECTRICITY)","2332","KENT COUNTY COUNCIL (KCS)",22/3/2021 00:00:00,"245694",191.9,"KE0007","KENT COUNTY COUNCIL (KCS)",1/3/2021 00:00:00,31/3/2021 00:00:00,"P12-2021"
"P&V","MYDDELTON HOUSE","PREMISES RELATED EXPENDITURE","ENERGY COSTS (ELECTRICITY)","2332","KENT COUNTY COUNCIL (KCS)",22/3/2021 00:00:00,"245695",1010.89,"KE0007","KENT COUNTY COUNCIL (KCS)",1/3/2021 00:00:00,31/3/2021 00:00:00,"P12-2021"
"CEO","COMMERCIAL ACCOMMODATION","PREMISES RELATED EXPENDITURE","ENERGY COSTS (ELECTRICITY)","2332","EDF ENERGY CUSTOMERS PLC",31/3/2021 00:00:00,"244457",63.91,"ED0321","EDF ENERGY CUSTOMERS PLC",1/3/2021 00:00:00,31/3/2021 00:00:00,"P12-2021"
"CEO","COMMERCIAL ACCOMMODATION","PREMISES RELATED EXPENDITURE","ENERGY COSTS (ELECTRICITY)","2332","EDF ENERGY CUSTOMERS PLC",31/3/2021 00:00:00,"244458",9.29,"ED0321","EDF ENERGY CUSTOMERS PLC",1/3/2021 00:00:00,31/3/2021 00:00:00,"P12-2021"
"CEO","COMMERCIAL ACCOMMODATION","PREMISES RELATED EXPENDITURE","ENERGY COSTS (ELECTRICITY)","2332","EDF ENERGY CUSTOMERS PLC",31/3/2021 00:00:00,"244459",17.95,"ED0321","EDF ENERGY CUSTOMERS PLC",1/3/2021 00:00:00,31/3/2021 00:00:00,"P12-2021"
"CEO","COMMERCIAL ACCOMMODATION","PREMISES RELATED EXPENDITURE","ENERGY COSTS (ELECTRICITY)","2332","EDF ENERGY CUSTOMERS PLC",31/3/2021 00:00:00,"244460",18.08,"ED0321","EDF ENERGY CUSTOMERS PLC",1/3/2021 00:00:00,31/3/2021 00:00:00,"P12-2021"
"CEO","COMMERCIAL ACCOMMODATION","PREMISES RELATED EXPENDITURE","ENERGY COSTS (ELECTRICITY)","2332","EDF ENERGY CUSTOMERS PLC",31/3/2021 00:00:00,"245262",18.4,"ED0321","EDF ENERGY CUSTOMERS PLC",1/3/2021 00:00:00,31/3/2021 00:00:00,"P12-2021"
"CEO","COMMERCIAL ACCOMMODATION","PREMISES RELATED EXPENDITURE","ENERGY COSTS (ELECTRICITY)","2332","E-ON",15/3/2021 00:00:00,"245465",14.4,"PO0025","E-ON",1/3/2021 00:00:00,31/3/2021 00:00:00,"P12-2021"
"CEO","COMMERCIAL ACCOMMODATION","PREMISES RELATED EXPENDITURE","ENERGY COSTS (ELECTRICITY)","2332","E-ON",15/3/2021 00:00:00,"245466",11.04,"PO0025","E-ON",1/3/2021 00:00:00,31/3/2021 00:00:00,"P12-2021"
"CEO","COMMERCIAL ACCOMMODATION","PREMISES RELATED EXPENDITURE","ENERGY COSTS (ELECTRICITY)","2332","E-ON",22/3/2021 00:00:00,"245684",27.25,"PO0025","E-ON",1/3/2021 00:00:00,31/3/2021 00:00:00,"P12-2021"
"CEO","COMMERCIAL ACCOMMODATION","PREMISES RELATED EXPENDITURE","ENERGY COSTS (ELECTRICITY)","2332","E-ON",31/3/2021 00:00:00,"246145",162.83,"PO0025","E-ON",1/3/2021 00:00:00,31/3/2021 00:00:00,"P12-2021"
"CEO","COMMERCIAL ACCOMMODATION","PREMISES RELATED EXPENDITURE","ENERGY COSTS (ELECTRICITY)","2332","E-ON NEXT ENERGY LTD",31/3/2021 00:00:00,"246424",23.83,"EO0398","E-ON NEXT ENERGY LTD",1/3/2021 00:00:00,31/3/2021 00:00:00,"P12-2021"
"CEO","COMMERCIAL ACCOMMODATION","PREMISES RELATED EXPENDITURE","ENERGY COSTS (ELECTRICITY)","2332","E-ON NEXT ENERGY LTD",31/3/2021 00:00:00,"246435",36.02,"EO0398","E-ON NEXT ENERGY LTD",1/3/2021 00:00:00,31/3/2021 00:00:00,"P12-2021"
,"LEE VALLEY MARINA SPRINGFIELD","PREMISES RELATED EXPENDITURE","ENERGY COSTS (ELECTRICITY)","2332","KENT COUNTY COUNCIL (KCS)",15/3/2021 00:00:00,"245467",4354.25,"KE0007","KENT COUNTY COUNCIL (KCS)",1/3/2021 00:00:00,31/3/2021 00:00:00,"P12-2021"
,"LEE VALLEY MARINA SPRINGFIELD","PREMISES RELATED EXPENDITURE","ENERGY COSTS (ELECTRICITY)","2332","KENT COUNTY COUNCIL (KCS)",31/3/2021 00:00:00,"246733",4141.54,"KE0007","KENT COUNTY COUNCIL (KCS)",1/3/2021 00:00:00,31/3/2021 00:00:00,"P12-2021"
,"LEE VALLEY MARINA STANSTEAD","PREMISES RELATED EXPENDITURE","ENERGY COSTS (ELECTRICITY)","2332","NPOWER LIMITED",8/3/2021 00:00:00,"245296",140.53,"NP0123","NPOWER LIMITED",1/3/2021 00:00:00,31/3/2021 00:00:00,"P12-2021"
,"LEE VALLEY MARINA STANSTEAD","PREMISES RELATED EXPENDITURE","ENERGY COSTS (ELECTRICITY)","2332","NPOWER LIMITED",8/3/2021 00:00:00,"245297",985.24,"NP0123","NPOWER LIMITED",1/3/2021 00:00:00,31/3/2021 00:00:00,"P12-2021"
,"LEE VALLEY MARINA STANSTEAD","PREMISES RELATED EXPENDITURE","ENERGY COSTS (ELECTRICITY)","2332","NPOWER LIMITED",8/3/2021 00:00:00,"245298",185.3,"NP0123","NPOWER LIMITED",1/3/2021 00:00:00,31/3/2021 00:00:00,"P12-2021"
,"LEE VALLEY MARINA STANSTEAD","PREMISES RELATED EXPENDITURE","ENERGY COSTS (ELECTRICITY)","2332","NPOWER LIMITED",8/3/2021 00:00:00,"245299",31.58,"NP0123","NPOWER LIMITED",1/3/2021 00:00:00,31/3/2021 00:00:00,"P12-2021"
,"LEE VALLEY MARINA STANSTEAD","PREMISES RELATED EXPENDITURE","ENERGY COSTS (ELECTRICITY)","2332","NPOWER LIMITED",8/3/2021 00:00:00,"245300",121.45,"NP0123","NPOWER LIMITED",1/3/2021 00:00:00,31/3/2021 00:00:00,"P12-2021"
,"LEE VALLEY MARINA STANSTEAD","PREMISES RELATED EXPENDITURE","ENERGY COSTS (ELECTRICITY)","2332","NPOWER LIMITED",8/3/2021 00:00:00,"245301",25.69,"NP0123","NPOWER LIMITED",1/3/2021 00:00:00,31/3/2021 00:00:00,"P12-2021"
,"LEE VALLEY MARINA STANSTEAD","PREMISES RELATED EXPENDITURE","ENERGY COSTS (ELECTRICITY)","2332","NPOWER LIMITED",8/3/2021 00:00:00,"245302",2215.76,"NP0123","NPOWER LIMITED",1/3/2021 00:00:00,31/3/2021 00:00:00,"P12-2021"
,"LEE VALLEY MARINA STANSTEAD","PREMISES RELATED EXPENDITURE","ENERGY COSTS (ELECTRICITY)","2332","NPOWER LIMITED",8/3/2021 00:00:00,"245303",2346.29,"NP0123","NPOWER LIMITED",1/3/2021 00:00:00,31/3/2021 00:00:00,"P12-2021"
,"LEE VALLEY MARINA STANSTEAD","PREMISES RELATED EXPENDITURE","ENERGY COSTS (ELECTRICITY)","2332","NPOWER LIMITED",8/3/2021 00:00:00,"245304",769.45,"NP0123","NPOWER LIMITED",1/3/2021 00:00:00,31/3/2021 00:00:00,"P12-2021"
,"LEE VALLEY MARINA STANSTEAD","PREMISES RELATED EXPENDITURE","ENERGY COSTS (ELECTRICITY)","2332","KENT COUNTY COUNCIL (KCS)",31/3/2021 00:00:00,"246248",141.2,"KE0007","KENT COUNTY COUNCIL (KCS)",1/3/2021 00:00:00,31/3/2021 00:00:00,"P12-2021"
,"LEE VALLEY MARINA STANSTEAD","PREMISES RELATED EXPENDITURE","ENERGY COSTS (ELECTRICITY)","2332","KENT COUNTY COUNCIL (KCS)",31/3/2021 00:00:00,"246249",647.65,"KE0007","KENT COUNTY COUNCIL (KCS)",1/3/2021 00:00:00,31/3/2021 00:00:00,"P12-2021"
,"LEE VALLEY MARINA STANSTEAD","PREMISES RELATED EXPENDITURE","ENERGY COSTS (ELECTRICITY)","2332","KENT COUNTY COUNCIL (KCS)",31/3/2021 00:00:00,"246250",2549.07,"KE0007","KENT COUNTY COUNCIL (KCS)",1/3/2021 00:00:00,31/3/2021 00:00:00,"P12-2021"
,"LEE VALLEY WATERWORKS CENTRE","PREMISES RELATED EXPENDITURE","ENERGY COSTS (ELECTRICITY)","2332","NPOWER LIMITED",15/3/2021 00:00:00,"244853",930.99,"NP0123","NPOWER LIMITED",1/3/2021 00:00:00,31/3/2021 00:00:00,"P12-2021"
,"LEE VALLEY WATERWORKS CENTRE","PREMISES RELATED EXPENDITURE","ENERGY COSTS (ELECTRICITY)","2332","NPOWER LIMITED",15/3/2021 00:00:00,"244854",906.55,"NP0123","NPOWER LIMITED",1/3/2021 00:00:00,31/3/2021 00:00:00,"P12-2021"
,"LEE VALLEY WATERWORKS CENTRE","PREMISES RELATED EXPENDITURE","ENERGY COSTS (ELECTRICITY)","2332","NPOWER LIMITED",15/3/2021 00:00:00,"244855",1019.29,"NP0123","NPOWER LIMITED",1/3/2021 00:00:00,31/3/2021 00:00:00,"P12-2021"
,"LEE VALLEY WATERWORKS CENTRE","PREMISES RELATED EXPENDITURE","ENERGY COSTS (ELECTRICITY)","2332","NPOWER LIMITED",15/3/2021 00:00:00,"244856",957.91,"NP0123","NPOWER LIMITED",1/3/2021 00:00:00,31/3/2021 00:00:00,"P12-2021"
,"LEE VALLEY WATERWORKS CENTRE","PREMISES RELATED EXPENDITURE","ENERGY COSTS (ELECTRICITY)","2332","NPOWER LIMITED",29/3/2021 00:00:00,"245859",894.22,"NP0123","NPOWER LIMITED",1/3/2021 00:00:00,31/3/2021 00:00:00,"P12-2021"
"P&V","LEE VALLEY FARM HOLYFIELDHALL","PREMISES RELATED EXPENDITURE","ENERGY COSTS (ELECTRICITY)","2332","KENT COUNTY COUNCIL (KCS)",31/3/2021 00:00:00,"245686",8505.18,"KE0007","KENT COUNTY COUNCIL (KCS)",1/3/2021 00:00:00,31/3/2021 00:00:00,"P12-2021"
,"LEE VALLEY FARM HAYES HILL","PREMISES RELATED EXPENDITURE","ENERGY COSTS (ELECTRICITY)","2332","KENT COUNTY COUNCIL (KCS)",31/3/2021 00:00:00,"246093",1836.79,"KE0007","KENT COUNTY COUNCIL (KCS)",1/3/2021 00:00:00,31/3/2021 00:00:00,"P12-2021"
,"LEE VALLEY FARM HAYES HILL","PREMISES RELATED EXPENDITURE","ENERGY COSTS (ELECTRICITY)","2332","KENT COUNTY COUNCIL (KCS)",31/3/2021 00:00:00,"246094",2235.09,"KE0007","KENT COUNTY COUNCIL (KCS)",1/3/2021 00:00:00,31/3/2021 00:00:00,"P12-2021"
,"LEE VALLEY FARM HAYES HILL","PREMISES RELATED EXPENDITURE","ENERGY COSTS (ELECTRICITY)","2332","KENT COUNTY COUNCIL (KCS)",31/3/2021 00:00:00,"246732",1695.8,"KE0007","KENT COUNTY COUNCIL (KCS)",1/3/2021 00:00:00,31/3/2021 00:00:00,"P12-2021"
,"LEE VALLEY CAMPSITE","PREMISES RELATED EXPENDITURE","ENERGY COSTS (ELECTRICITY)","2332","KENT COUNTY COUNCIL (KCS)",15/3/2021 00:00:00,"245469",2754.14,"KE0007","KENT COUNTY COUNCIL (KCS)",1/3/2021 00:00:00,31/3/2021 00:00:00,"P12-2021"
,"LEE VALLEY CAMPSITE","PREMISES RELATED EXPENDITURE","ENERGY COSTS (ELECTRICITY)","2332","KENT COUNTY COUNCIL (KCS)",15/3/2021 00:00:00,"245470",4431.14,"KE0007","KENT COUNTY COUNCIL (KCS)",1/3/2021 00:00:00,31/3/2021 00:00:00,"P12-2021"
,"LEE VALLEY CAMPSITE","PREMISES RELATED EXPENDITURE","ENERGY COSTS (ELECTRICITY)","2332","KENT COUNTY COUNCIL (KCS)",24/3/2021 00:00:00,"245688",560.32,"KE0007","KENT COUNTY COUNCIL (KCS)",1/3/2021 00:00:00,31/3/2021 00:00:00,"P12-2021"
,"LEE VALLEY CAMPSITE","PREMISES RELATED EXPENDITURE","ENERGY COSTS (ELECTRICITY)","2332","CASTLE WATER LIMITED",31/3/2021 00:00:00,"246485",1394.88,"CA0625","CASTLE WATER LIMITED",1/3/2021 00:00:00,31/3/2021 00:00:00,"P12-2021"
,"LEE VALLEY CAMPSITE","PREMISES RELATED EXPENDITURE","ENERGY COSTS (ELECTRICITY)","2332","KENT COUNTY COUNCIL (KCS)",31/3/2021 00:00:00,"246730",4016.75,"KE0007","KENT COUNTY COUNCIL (KCS)",1/3/2021 00:00:00,31/3/2021 00:00:00,"P12-2021"
,"LEE VALLEY CAMPSITE","PREMISES RELATED EXPENDITURE","ENERGY COSTS (ELECTRICITY)","2332","KENT COUNTY COUNCIL (KCS)",31/3/2021 00:00:00,"246731",2797.66,"KE0007","KENT COUNTY COUNCIL (KCS)",1/3/2021 00:00:00,31/3/2021 00:00:00,"P12-2021"
,"LEE VALLEY CARAVAN PARK","PREMISES RELATED EXPENDITURE","ENERGY COSTS (ELECTRICITY)","2332","KENT COUNTY COUNCIL (KCS)",15/3/2021 00:00:00,"245468",8803.65,"KE0007","KENT COUNTY COUNCIL (KCS)",1/3/2021 00:00:00,31/3/2021 00:00:00,"P12-2021"
,"LEE VALLEY CARAVAN PARK","PREMISES RELATED EXPENDITURE","ENERGY COSTS (ELECTRICITY)","2332","KENT COUNTY COUNCIL (KCS)",31/3/2021 00:00:00,"246729",7550.97,"KE0007","KENT COUNTY COUNCIL (KCS)",1/3/2021 00:00:00,31/3/2021 00:00:00,"P12-2021"
"P&V","EAST INDIA DOCK AND BOW CREEK","PREMISES RELATED EXPENDITURE","ENERGY COSTS (ELECTRICITY)","2332","KENT COUNTY COUNCIL (KCS)",23/3/2021 00:00:00,"245691",155.08,"KE0007","KENT COUNTY COUNCIL (KCS)",1/3/2021 00:00:00,31/3/2021 00:00:00,"P12-2021"
"P&V","RYE HOUSE GATEHOUSE","PREMISES RELATED EXPENDITURE","ENERGY COSTS (ELECTRICITY)","2332","KENT COUNTY COUNCIL (KCS)",23/3/2021 00:00:00,"245767",103.24,"KE0007","KENT COUNTY COUNCIL (KCS)",1/3/2021 00:00:00,31/3/2021 00:00:00,"P12-2021"
"P&V","NORTH AREA RANGERS","PREMISES RELATED EXPENDITURE","ENERGY COSTS (ELECTRICITY)","2332","NPOWER LIMITED",9/3/2021 00:00:00,"245097",42.65,"NP0123","NPOWER LIMITED",1/3/2021 00:00:00,31/3/2021 00:00:00,"P12-2021"
"P&V","NORTH AREA RANGERS","PREMISES RELATED EXPENDITURE","ENERGY COSTS (ELECTRICITY)","2332","NPOWER LIMITED",9/3/2021 00:00:00,"245098",55.93,"NP0123","NPOWER LIMITED",1/3/2021 00:00:00,31/3/2021 00:00:00,"P12-2021"
"P&V","NORTH AREA RANGERS","PREMISES RELATED EXPENDITURE","ENERGY COSTS (ELECTRICITY)","2332","NPOWER LIMITED",9/3/2021 00:00:00,"245099",12.68,"NP0123","NPOWER LIMITED",1/3/2021 00:00:00,31/3/2021 00:00:00,"P12-2021"
"P&V","NORTH AREA RANGERS","PREMISES RELATED EXPENDITURE","ENERGY COSTS (ELECTRICITY)","2332","KENT COUNTY COUNCIL (KCS)",22/3/2021 00:00:00,"245689",419.68,"KE0007","KENT COUNTY COUNCIL (KCS)",1/3/2021 00:00:00,31/3/2021 00:00:00,"P12-2021"
"P&V","NORTH AREA RANGERS","PREMISES RELATED EXPENDITURE","ENERGY COSTS (ELECTRICITY)","2332","KENT COUNTY COUNCIL (KCS)",23/3/2021 00:00:00,"245697",42.16,"KE0007","KENT COUNTY COUNCIL (KCS)",1/3/2021 00:00:00,31/3/2021 00:00:00,"P12-2021"
"P&V","NORTH AREA RANGERS","PREMISES RELATED EXPENDITURE","ENERGY COSTS (ELECTRICITY)","2332","KENT COUNTY COUNCIL (KCS)",31/3/2021 00:00:00,"246251",137.2,"KE0007","KENT COUNTY COUNCIL (KCS)",1/3/2021 00:00:00,31/3/2021 00:00:00,"P12-2021"
"P&V","NORTH AREA RANGERS","PREMISES RELATED EXPENDITURE","ENERGY COSTS (ELECTRICITY)","2332","KENT COUNTY COUNCIL (KCS)",31/3/2021 00:00:00,"246252",65.34,"KE0007","KENT COUNTY COUNCIL (KCS)",1/3/2021 00:00:00,31/3/2021 00:00:00,"P12-2021"
"P&V","NORTH AREA RANGERS","PREMISES RELATED EXPENDITURE","ENERGY COSTS (ELECTRICITY)","2332","KENT COUNTY COUNCIL (KCS)",31/3/2021 00:00:00,"246253",-65.34,"KE0007","KENT COUNTY COUNCIL (KCS)",1/3/2021 00:00:00,31/3/2021 00:00:00,"P12-2021"
"P&V","SOUTH AREA RANGERS","PREMISES RELATED EXPENDITURE","ENERGY COSTS (ELECTRICITY)","2332","KENT COUNTY COUNCIL (KCS)",23/3/2021 00:00:00,"245692",318.37,"KE0007","KENT COUNTY COUNCIL (KCS)",1/3/2021 00:00:00,31/3/2021 00:00:00,"P12-2021"
"P&V","ABBEY GARDENS","PREMISES RELATED EXPENDITURE","ENERGY COSTS (ELECTRICITY)","2332","KENT COUNTY COUNCIL (KCS)",22/3/2021 00:00:00,"245685",947.07,"KE0007","KENT COUNTY COUNCIL (KCS)",1/3/2021 00:00:00,31/3/2021 00:00:00,"P12-2021"
"P&V","GUNPOWDER PARK","PREMISES RELATED EXPENDITURE","ENERGY COSTS (ELECTRICITY)","2332","KENT COUNTY COUNCIL (KCS)",23/3/2021 00:00:00,"245693",295.29,"KE0007","KENT COUNTY COUNCIL (KCS)",1/3/2021 00:00:00,31/3/2021 00:00:00,"P12-2021"
"P&V","GUNPOWDER PARK","PREMISES RELATED EXPENDITURE","ENERGY COSTS (ELECTRICITY)","2332","KENT COUNTY COUNCIL (KCS)",23/3/2021 00:00:00,"245696",42.86,"KE0007","KENT COUNTY COUNCIL (KCS)",1/3/2021 00:00:00,31/3/2021 00:00:00,"P12-2021"
"P&V","GUNPOWDER PARK","PREMISES RELATED EXPENDITURE","ENERGY COSTS (ELECTRICITY)","2332","KENT COUNTY COUNCIL (KCS)",31/3/2021 00:00:00,"246907",305.14,"KE0007","KENT COUNTY COUNCIL (KCS)",1/3/2021 00:00:00,31/3/2021 00:00:00,"P12-2021"
"P&V","RIVER LEE COUNTRY PARK","PREMISES RELATED EXPENDITURE","ENERGY COSTS (ELECTRICITY)","2332","KENT COUNTY COUNCIL (KCS)",22/3/2021 00:00:00,"245690",298.28,"KE0007","KENT COUNTY COUNCIL (KCS)",1/3/2021 00:00:00,31/3/2021 00:00:00,"P12-2021"
"P&V","RIVER LEE COUNTRY PARK","PREMISES RELATED EXPENDITURE","ENERGY COSTS (ELECTRICITY)","2332","KENT COUNTY COUNCIL (KCS)",23/3/2021 00:00:00,"245756",42.16,"KE0007","KENT COUNTY COUNCIL (KCS)",1/3/2021 00:00:00,31/3/2021 00:00:00,"P12-2021"
,"LEE VALLEY VELOPARK","PREMISES RELATED EXPENDITURE","ENERGY COSTS (ELECTRICITY)","2332","KENT COUNTY COUNCIL (KCS)",8/3/2021 00:00:00,"245124",767.01,"KE0007","KENT COUNTY COUNCIL (KCS)",1/3/2021 00:00:00,31/3/2021 00:00:00,"P12-2021"
,"LEE VALLEY VELOPARK","PREMISES RELATED EXPENDITURE","ENERGY COSTS (ELECTRICITY)","2332","EDF ENERGY CUSTOMERS PLC",29/3/2021 00:00:00,"245833",674.35,"ED0321","EDF ENERGY CUSTOMERS PLC",1/3/2021 00:00:00,31/3/2021 00:00:00,"P12-2021"
,"LEE VALLEY VELOPARK","PREMISES RELATED EXPENDITURE","ENERGY COSTS (ELECTRICITY)","2332","NPOWER LIMITED",31/3/2021 00:00:00,"245857",9706.26,"NP0123","NPOWER LIMITED",1/3/2021 00:00:00,31/3/2021 00:00:00,"P12-2021"
,"LEE VALLEY VELOPARK","PREMISES RELATED EXPENDITURE","ENERGY COSTS (ELECTRICITY)","2332","NPOWER LIMITED",31/3/2021 00:00:00,"245888",274.2,"NP0123","NPOWER LIMITED",1/3/2021 00:00:00,31/3/2021 00:00:00,"P12-2021"
,"LEE VALLEY VELOPARK","PREMISES RELATED EXPENDITURE","ENERGY COSTS (ELECTRICITY)","2332","NPOWER LIMITED",31/3/2021 00:00:00,"245889",661.5,"NP0123","NPOWER LIMITED",1/3/2021 00:00:00,31/3/2021 00:00:00,"P12-2021"
,"LEE VALLEY VELOPARK","PREMISES RELATED EXPENDITURE","ENERGY COSTS (ELECTRICITY)","2332","NPOWER LIMITED",31/3/2021 00:00:00,"245890",457.93,"NP0123","NPOWER LIMITED",1/3/2021 00:00:00,31/3/2021 00:00:00,"P12-2021"
,"LEE VALLEY VELOPARK","PREMISES RELATED EXPENDITURE","ENERGY COSTS (ELECTRICITY)","2332","NPOWER LIMITED",31/3/2021 00:00:00,"245891",38.26,"NP0123","NPOWER LIMITED",1/3/2021 00:00:00,31/3/2021 00:00:00,"P12-2021"
,"LEE VALLEY VELOPARK","PREMISES RELATED EXPENDITURE","ENERGY COSTS (ELECTRICITY)","2332","NPOWER LIMITED",31/3/2021 00:00:00,"245892",93.98,"NP0123","NPOWER LIMITED",1/3/2021 00:00:00,31/3/2021 00:00:00,"P12-2021"
,"LEE VALLEY VELOPARK","PREMISES RELATED EXPENDITURE","ENERGY COSTS (ELECTRICITY)","2332","NPOWER LIMITED",31/3/2021 00:00:00,"245893",106.91,"NP0123","NPOWER LIMITED",1/3/2021 00:00:00,31/3/2021 00:00:00,"P12-2021"
,"LEE VALLEY VELOPARK","PREMISES RELATED EXPENDITURE","ENERGY COSTS (ELECTRICITY)","2332","NPOWER LIMITED",31/3/2021 00:00:00,"245894",35.83,"NP0123","NPOWER LIMITED",1/3/2021 00:00:00,31/3/2021 00:00:00,"P12-2021"
,"LEE VALLEY VELOPARK","PREMISES RELATED EXPENDITURE","ENERGY COSTS (ELECTRICITY)","2332","NPOWER LIMITED",31/3/2021 00:00:00,"245895",91.81,"NP0123","NPOWER LIMITED",1/3/2021 00:00:00,31/3/2021 00:00:00,"P12-2021"
,"LEE VALLEY VELOPARK","PREMISES RELATED EXPENDITURE","ENERGY COSTS (ELECTRICITY)","2332","NPOWER LIMITED",31/3/2021 00:00:00,"245896",62.47,"NP0123","NPOWER LIMITED",1/3/2021 00:00:00,31/3/2021 00:00:00,"P12-2021"
,"LEE VALLEY VELOPARK","PREMISES RELATED EXPENDITURE","ENERGY COSTS (ELECTRICITY)","2332","NPOWER LIMITED",31/3/2021 00:00:00,"245897",158.08,"NP0123","NPOWER LIMITED",1/3/2021 00:00:00,31/3/2021 00:00:00,"P12-2021"
,"LEE VALLEY VELOPARK","PREMISES RELATED EXPENDITURE","ENERGY COSTS (ELECTRICITY)","2332","NPOWER LIMITED",31/3/2021 00:00:00,"245898",184.88,"NP0123","NPOWER LIMITED",1/3/2021 00:00:00,31/3/2021 00:00:00,"P12-2021"
,"LEE VALLEY VELOPARK","PREMISES RELATED EXPENDITURE","ENERGY COSTS (ELECTRICITY)","2332","NPOWER LIMITED",31/3/2021 00:00:00,"245899",29.6,"NP0123","NPOWER LIMITED",1/3/2021 00:00:00,31/3/2021 00:00:00,"P12-2021"
,"LEE VALLEY VELOPARK","PREMISES RELATED EXPENDITURE","ENERGY COSTS (ELECTRICITY)","2332","NPOWER LIMITED",31/3/2021 00:00:00,"245900",30.58,"NP0123","NPOWER LIMITED",1/3/2021 00:00:00,31/3/2021 00:00:00,"P12-2021"
,"LEE VALLEY VELOPARK","PREMISES RELATED EXPENDITURE","ENERGY COSTS (ELECTRICITY)","2332","NPOWER LIMITED",31/3/2021 00:00:00,"245901",30.59,"NP0123","NPOWER LIMITED",1/3/2021 00:00:00,31/3/2021 00:00:00,"P12-2021"
,"LEE VALLEY VELOPARK","PREMISES RELATED EXPENDITURE","ENERGY COSTS (ELECTRICITY)","2332","NPOWER LIMITED",31/3/2021 00:00:00,"245902",29.6,"NP0123","NPOWER LIMITED",1/3/2021 00:00:00,31/3/2021 00:00:00,"P12-2021"
,"LEE VALLEY VELOPARK","PREMISES RELATED EXPENDITURE","ENERGY COSTS (ELECTRICITY)","2332","NPOWER LIMITED",31/3/2021 00:00:00,"245903",30.59,"NP0123","NPOWER LIMITED",1/3/2021 00:00:00,31/3/2021 00:00:00,"P12-2021"
,"LEE VALLEY VELOPARK","PREMISES RELATED EXPENDITURE","ENERGY COSTS (ELECTRICITY)","2332","NPOWER LIMITED",31/3/2021 00:00:00,"245904",29.6,"NP0123","NPOWER LIMITED",1/3/2021 00:00:00,31/3/2021 00:00:00,"P12-2021"
,"LEE VALLEY VELOPARK","PREMISES RELATED EXPENDITURE","ENERGY COSTS (ELECTRICITY)","2332","NPOWER LIMITED",31/3/2021 00:00:00,"245905",33.14,"NP0123","NPOWER LIMITED",1/3/2021 00:00:00,31/3/2021 00:00:00,"P12-2021"
,"LEE VALLEY VELOPARK","PREMISES RELATED EXPENDITURE","ENERGY COSTS (ELECTRICITY)","2332","NPOWER LIMITED",31/3/2021 00:00:00,"245906",35.12,"NP0123","NPOWER LIMITED",1/3/2021 00:00:00,31/3/2021 00:00:00,"P12-2021"
,"LEE VALLEY VELOPARK","PREMISES RELATED EXPENDITURE","ENERGY COSTS (ELECTRICITY)","2332","NPOWER LIMITED",31/3/2021 00:00:00,"245907",36.96,"NP0123","NPOWER LIMITED",1/3/2021 00:00:00,31/3/2021 00:00:00,"P12-2021"
,"LEE VALLEY VELOPARK","PREMISES RELATED EXPENDITURE","ENERGY COSTS (ELECTRICITY)","2332","NPOWER LIMITED",31/3/2021 00:00:00,"245908",32.75,"NP0123","NPOWER LIMITED",1/3/2021 00:00:00,31/3/2021 00:00:00,"P12-2021"
,"LEE VALLEY VELOPARK","PREMISES RELATED EXPENDITURE","ENERGY COSTS (ELECTRICITY)","2332","NPOWER LIMITED",31/3/2021 00:00:00,"245909",35.64,"NP0123","NPOWER LIMITED",1/3/2021 00:00:00,31/3/2021 00:00:00,"P12-2021"
,"LEE VALLEY VELOPARK","PREMISES RELATED EXPENDITURE","ENERGY COSTS (ELECTRICITY)","2332","NPOWER LIMITED",31/3/2021 00:00:00,"245910",34.91,"NP0123","NPOWER LIMITED",1/3/2021 00:00:00,31/3/2021 00:00:00,"P12-2021"
,"LEE VALLEY VELOPARK","PREMISES RELATED EXPENDITURE","ENERGY COSTS (ELECTRICITY)","2332","KENT COUNTY COUNCIL (KCS)",29/3/2021 00:00:00,"246124",37.97,"KE0007","KENT COUNTY COUNCIL (KCS)",1/3/2021 00:00:00,31/3/2021 00:00:00,"P12-2021"
,"LEE VALLEY VELOPARK","PREMISES RELATED EXPENDITURE","ENERGY COSTS (ELECTRICITY)","2332","EDF ENERGY CUSTOMERS PLC",31/3/2021 00:00:00,"246179",-336.16,"ED0321","EDF ENERGY CUSTOMERS PLC",1/3/2021 00:00:00,31/3/2021 00:00:00,"P12-2021"
,"LEE VALLEY VELOPARK","PREMISES RELATED EXPENDITURE","ENERGY COSTS (ELECTRICITY)","2332","EDF ENERGY CUSTOMERS PLC",31/3/2021 00:00:00,"246180",2.11,"ED0321","EDF ENERGY CUSTOMERS PLC",1/3/2021 00:00:00,31/3/2021 00:00:00,"P12-2021"
,"LEE VALLEY VELOPARK","PREMISES RELATED EXPENDITURE","ENERGY COSTS (ELECTRICITY)","2332","EDF ENERGY CUSTOMERS PLC",31/3/2021 00:00:00,"246181",168.03,"ED0321","EDF ENERGY CUSTOMERS PLC",1/3/2021 00:00:00,31/3/2021 00:00:00,"P12-2021"
,"LEE VALLEY VELOPARK","PREMISES RELATED EXPENDITURE","ENERGY COSTS (ELECTRICITY)","2332","EDF ENERGY CUSTOMERS PLC",31/3/2021 00:00:00,"246182",-286.75,"ED0321","EDF ENERGY CUSTOMERS PLC",1/3/2021 00:00:00,31/3/2021 00:00:00,"P12-2021"
,"LEE VALLEY VELOPARK","PREMISES RELATED EXPENDITURE","ENERGY COSTS (ELECTRICITY)","2332","EDF ENERGY CUSTOMERS PLC",31/3/2021 00:00:00,"246183",-674.35,"ED0321","EDF ENERGY CUSTOMERS PLC",1/3/2021 00:00:00,31/3/2021 00:00:00,"P12-2021"
,"LEE VALLEY VELOPARK","PREMISES RELATED EXPENDITURE","ENERGY COSTS (ELECTRICITY)","2332","EDF ENERGY CUSTOMERS PLC",31/3/2021 00:00:00,"246184",671.65,"ED0321","EDF ENERGY CUSTOMERS PLC",1/3/2021 00:00:00,31/3/2021 00:00:00,"P12-2021"
,"LEE VALLEY VELOPARK","PREMISES RELATED EXPENDITURE","ENERGY COSTS (ELECTRICITY)","2332","EDF ENERGY CUSTOMERS PLC",31/3/2021 00:00:00,"246479",116.7,"ED0321","EDF ENERGY CUSTOMERS PLC",1/3/2021 00:00:00,31/3/2021 00:00:00,"P12-2021"
,"LEE VALLEY VELOPARK","PREMISES RELATED EXPENDITURE","ENERGY COSTS (ELECTRICITY)","2332","EDF ENERGY CUSTOMERS PLC",31/3/2021 00:00:00,"246480",-301.46,"ED0321","EDF ENERGY CUSTOMERS PLC",1/3/2021 00:00:00,31/3/2021 00:00:00,"P12-2021"
,"LEE VALLEY VELOPARK","PREMISES RELATED EXPENDITURE","ENERGY COSTS (ELECTRICITY)","2332","EDF ENERGY CUSTOMERS PLC",31/3/2021 00:00:00,"246480",-30,"ED0321","EDF ENERGY CUSTOMERS PLC",1/3/2021 00:00:00,31/3/2021 00:00:00,"P12-2021"
,"LEE VALLEY VELOPARK","PREMISES RELATED EXPENDITURE","ENERGY COSTS (ELECTRICITY)","2332","KENT COUNTY COUNCIL (KCS)",31/3/2021 00:00:00,"246905",42.04,"KE0007","KENT COUNTY COUNCIL (KCS)",1/3/2021 00:00:00,31/3/2021 00:00:00,"P12-2021"
,"LEE VALLEY VELOPARK","PREMISES RELATED EXPENDITURE","ENERGY COSTS (ELECTRICITY)","2332","KENT COUNTY COUNCIL (KCS)",31/3/2021 00:00:00,"246906",231.7,"KE0007","KENT COUNTY COUNCIL (KCS)",1/3/2021 00:00:00,31/3/2021 00:00:00,"P12-2021"
,"LEE VALLEY VELOPARK","PREMISES RELATED EXPENDITURE","ENERGY COSTS (ELECTRICITY)","2332","NPOWER LIMITED",31/3/2021 00:00:00,"246982",10651.24,"NP0123","NPOWER LIMITED",1/3/2021 00:00:00,31/3/2021 00:00:00,"P12-2021"
,"LV HOCKEY AND TENNIS CENTRE","PREMISES RELATED EXPENDITURE","ENERGY COSTS (ELECTRICITY)","2332","NPOWER LIMITED",31/3/2021 00:00:00,"245858",4452.33,"NP0123","NPOWER LIMITED",1/3/2021 00:00:00,31/3/2021 00:00:00,"P12-2021"
,"LV HOCKEY AND TENNIS CENTRE","PREMISES RELATED EXPENDITURE","ENERGY COSTS (ELECTRICITY)","2332","NPOWER LIMITED",31/3/2021 00:00:00,"246981",4995.64,"NP0123","NPOWER LIMITED",1/3/2021 00:00:00,31/3/2021 00:00:00,"P12-2021"
,"LEE VALLEY RIDING CENTRE","PREMISES RELATED EXPENDITURE","ENERGY COSTS (ELECTRICITY)","2332","NPOWER LIMITED",8/3/2021 00:00:00,"245295",460.26,"NP0123","NPOWER LIMITED",1/3/2021 00:00:00,31/3/2021 00:00:00,"P12-2021"
,"LEE VALLEY RIDING CENTRE","PREMISES RELATED EXPENDITURE","ENERGY COSTS (ELECTRICITY)","2332","NPOWER LIMITED",29/3/2021 00:00:00,"245856",1872.15,"NP0123","NPOWER LIMITED",1/3/2021 00:00:00,31/3/2021 00:00:00,"P12-2021"
,"LEE VALLEY RIDING CENTRE","PREMISES RELATED EXPENDITURE","ENERGY COSTS (ELECTRICITY)","2332","BRITISH GAS BUSINESS",29/3/2021 00:00:00,"246144",118.1,"BR0029","BRITISH GAS BUSINESS",1/3/2021 00:00:00,31/3/2021 00:00:00,"P12-2021"
,"LEE VALLEY RIDING CENTRE","PREMISES RELATED EXPENDITURE","ENERGY COSTS (ELECTRICITY)","2332","EDF ENERGY 1 LIMITED",31/3/2021 00:00:00,"246899",84.31,"ED0077","EDF ENERGY 1 LIMITED",1/3/2021 00:00:00,31/3/2021 00:00:00,"P12-2021"
,"LEE VALLEY ICE CENTRE","PREMISES RELATED EXPENDITURE","ENERGY COSTS (ELECTRICITY)","2332","NPOWER LIMITED",29/3/2021 00:00:00,"245860",12359.85,"NP0123","NPOWER LIMITED",1/3/2021 00:00:00,31/3/2021 00:00:00,"P12-2021"
"P&V","FORMER LV LIDO SITE","PREMISES RELATED EXPENDITURE","ENERGY COSTS (ELECTRICITY)","2332","KENT COUNTY COUNCIL (KCS)",23/3/2021 00:00:00,"245758",31.86,"KE0007","KENT COUNTY COUNCIL (KCS)",1/3/2021 00:00:00,31/3/2021 00:00:00,"P12-2021"
"P&V","FORMER LV LIDO SITE","PREMISES RELATED EXPENDITURE","ENERGY COSTS (ELECTRICITY)","2332","KENT COUNTY COUNCIL (KCS)",31/3/2021 00:00:00,"246970",34.94,"KE0007","KENT COUNTY COUNCIL (KCS)",1/3/2021 00:00:00,31/3/2021 00:00:00,"P12-2021"
,"LV LEISURE CENTRE CAMPSITE","PREMISES RELATED EXPENDITURE","ENERGY COSTS (ELECTRICITY)","2332","NPOWER LIMITED",31/3/2021 00:00:00,"245883",4033.64,"NP0123","NPOWER LIMITED",1/3/2021 00:00:00,31/3/2021 00:00:00,"P12-2021"
,"LV LEISURE CENTRE CAMPSITE","PREMISES RELATED EXPENDITURE","ENERGY COSTS (ELECTRICITY)","2332","NPOWER LIMITED",31/3/2021 00:00:00,"245884",4329.69,"NP0123","NPOWER LIMITED",1/3/2021 00:00:00,31/3/2021 00:00:00,"P12-2021"
,"LV LEISURE CENTRE CAMPSITE","PREMISES RELATED EXPENDITURE","ENERGY COSTS (ELECTRICITY)","2332","NPOWER LIMITED",31/3/2021 00:00:00,"245885",5026.85,"NP0123","NPOWER LIMITED",1/3/2021 00:00:00,31/3/2021 00:00:00,"P12-2021"
,"LV LEISURE CENTRE CAMPSITE","PREMISES RELATED EXPENDITURE","ENERGY COSTS (ELECTRICITY)","2332","NPOWER LIMITED",31/3/2021 00:00:00,"245886",4197.47,"NP0123","NPOWER LIMITED",1/3/2021 00:00:00,31/3/2021 00:00:00,"P12-2021"
,"LV LEISURE CENTRE CAMPSITE","PREMISES RELATED EXPENDITURE","ENERGY COSTS (ELECTRICITY)","2332","NPOWER LIMITED",31/3/2021 00:00:00,"245887",5395.87,"NP0123","NPOWER LIMITED",1/3/2021 00:00:00,31/3/2021 00:00:00,"P12-2021"
,"LV LEISURE CENTRE CAMPSITE","PREMISES RELATED EXPENDITURE","ENERGY COSTS (ELECTRICITY)","2332","NPOWER LIMITED",31/3/2021 00:00:00,"246979",4049.69,"NP0123","NPOWER LIMITED",1/3/2021 00:00:00,31/3/2021 00:00:00,"P12-2021"
,"LEE VALLEY WHITE WATER CENTRE","PREMISES RELATED EXPENDITURE","ENERGY COSTS (ELECTRICITY)","2332","NPOWER LIMITED",29/3/2021 00:00:00,"245861",5756.62,"NP0123","NPOWER LIMITED",1/3/2021 00:00:00,31/3/2021 00:00:00,"P12-2021"
,"LEE VALLEY WHITE WATER CENTRE","PREMISES RELATED EXPENDITURE","ENERGY COSTS (ELECTRICITY)","2332","NPOWER LIMITED",29/3/2021 00:00:00,"245862",149.41,"NP0123","NPOWER LIMITED",1/3/2021 00:00:00,31/3/2021 00:00:00,"P12-2021"
,"LEE VALLEY WHITE WATER CENTRE","PREMISES RELATED EXPENDITURE","ENERGY COSTS (ELECTRICITY)","2332","NPOWER LIMITED",29/3/2021 00:00:00,"245863",7388.75,"NP0123","NPOWER LIMITED",1/3/2021 00:00:00,31/3/2021 00:00:00,"P12-2021"
,"LEE VALLEY WHITE WATER CENTRE","PREMISES RELATED EXPENDITURE","ENERGY COSTS (ELECTRICITY)","2332","NPOWER LIMITED",29/3/2021 00:00:00,"245864",8224.12,"NP0123","NPOWER LIMITED",1/3/2021 00:00:00,31/3/2021 00:00:00,"P12-2021"
,"LEE VALLEY WHITE WATER CENTRE","PREMISES RELATED EXPENDITURE","ENERGY COSTS (ELECTRICITY)","2332","NPOWER LIMITED",29/3/2021 00:00:00,"245865",10155.03,"NP0123","NPOWER LIMITED",1/3/2021 00:00:00,31/3/2021 00:00:00,"P12-2021"
,"LEE VALLEY WHITE WATER CENTRE","PREMISES RELATED EXPENDITURE","ENERGY COSTS (ELECTRICITY)","2332","NPOWER LIMITED",29/3/2021 00:00:00,"245866",9697.43,"NP0123","NPOWER LIMITED",1/3/2021 00:00:00,31/3/2021 00:00:00,"P12-2021"
,"LEE VALLEY WHITE WATER CENTRE","PREMISES RELATED EXPENDITURE","ENERGY COSTS (ELECTRICITY)","2332","NPOWER LIMITED",29/3/2021 00:00:00,"245867",14076.25,"NP0123","NPOWER LIMITED",1/3/2021 00:00:00,31/3/2021 00:00:00,"P12-2021"
,"LEE VALLEY WHITE WATER CENTRE","PREMISES RELATED EXPENDITURE","ENERGY COSTS (ELECTRICITY)","2332","NPOWER LIMITED",29/3/2021 00:00:00,"245868",7742.02,"NP0123","NPOWER LIMITED",1/3/2021 00:00:00,31/3/2021 00:00:00,"P12-2021"
,"LEE VALLEY WHITE WATER CENTRE","PREMISES RELATED EXPENDITURE","ENERGY COSTS (ELECTRICITY)","2332","NPOWER LIMITED",29/3/2021 00:00:00,"245869",7692.52,"NP0123","NPOWER LIMITED",1/3/2021 00:00:00,31/3/2021 00:00:00,"P12-2021"
,"LEE VALLEY WHITE WATER CENTRE","PREMISES RELATED EXPENDITURE","ENERGY COSTS (ELECTRICITY)","2332","NPOWER LIMITED",29/3/2021 00:00:00,"245870",8470.81,"NP0123","NPOWER LIMITED",1/3/2021 00:00:00,31/3/2021 00:00:00,"P12-2021"
,"LEE VALLEY WHITE WATER CENTRE","PREMISES RELATED EXPENDITURE","ENERGY COSTS (ELECTRICITY)","2332","NPOWER LIMITED",29/3/2021 00:00:00,"245871",6963.54,"NP0123","NPOWER LIMITED",1/3/2021 00:00:00,31/3/2021 00:00:00,"P12-2021"
,"LEE VALLEY WHITE WATER CENTRE","PREMISES RELATED EXPENDITURE","ENERGY COSTS (ELECTRICITY)","2332","NPOWER LIMITED",29/3/2021 00:00:00,"245872",9955.13,"NP0123","NPOWER LIMITED",1/3/2021 00:00:00,31/3/2021 00:00:00,"P12-2021"
,"LEE VALLEY WHITE WATER CENTRE","PREMISES RELATED EXPENDITURE","ENERGY COSTS (ELECTRICITY)","2332","NPOWER LIMITED",29/3/2021 00:00:00,"245873",332.14,"NP0123","NPOWER LIMITED",1/3/2021 00:00:00,31/3/2021 00:00:00,"P12-2021"
,"LEE VALLEY WHITE WATER CENTRE","PREMISES RELATED EXPENDITURE","ENERGY COSTS (ELECTRICITY)","2332","NPOWER LIMITED",29/3/2021 00:00:00,"245874",347.65,"NP0123","NPOWER LIMITED",1/3/2021 00:00:00,31/3/2021 00:00:00,"P12-2021"
,"LEE VALLEY WHITE WATER CENTRE","PREMISES RELATED EXPENDITURE","ENERGY COSTS (ELECTRICITY)","2332","NPOWER LIMITED",29/3/2021 00:00:00,"245875",347.65,"NP0123","NPOWER LIMITED",1/3/2021 00:00:00,31/3/2021 00:00:00,"P12-2021"
,"LEE VALLEY WHITE WATER CENTRE","PREMISES RELATED EXPENDITURE","ENERGY COSTS (ELECTRICITY)","2332","NPOWER LIMITED",29/3/2021 00:00:00,"245876",1327.32,"NP0123","NPOWER LIMITED",1/3/2021 00:00:00,31/3/2021 00:00:00,"P12-2021"
,"LEE VALLEY WHITE WATER CENTRE","PREMISES RELATED EXPENDITURE","ENERGY COSTS (ELECTRICITY)","2332","NPOWER LIMITED",29/3/2021 00:00:00,"245877",1332.48,"NP0123","NPOWER LIMITED",1/3/2021 00:00:00,31/3/2021 00:00:00,"P12-2021"
,"LEE VALLEY WHITE WATER CENTRE","PREMISES RELATED EXPENDITURE","ENERGY COSTS (ELECTRICITY)","2332","NPOWER LIMITED",29/3/2021 00:00:00,"245878",5980.64,"NP0123","NPOWER LIMITED",1/3/2021 00:00:00,31/3/2021 00:00:00,"P12-2021"
,"LEE VALLEY WHITE WATER CENTRE","PREMISES RELATED EXPENDITURE","ENERGY COSTS (ELECTRICITY)","2332","NPOWER LIMITED",29/3/2021 00:00:00,"245879",6194.21,"NP0123","NPOWER LIMITED",1/3/2021 00:00:00,31/3/2021 00:00:00,"P12-2021"
,"LEE VALLEY WHITE WATER CENTRE","PREMISES RELATED EXPENDITURE","ENERGY COSTS (ELECTRICITY)","2332","NPOWER LIMITED",29/3/2021 00:00:00,"245880",6654.57,"NP0123","NPOWER LIMITED",1/3/2021 00:00:00,31/3/2021 00:00:00,"P12-2021"
,"LEE VALLEY WHITE WATER CENTRE","PREMISES RELATED EXPENDITURE","ENERGY COSTS (ELECTRICITY)","2332","NPOWER LIMITED",29/3/2021 00:00:00,"245881",6842.63,"NP0123","NPOWER LIMITED",1/3/2021 00:00:00,31/3/2021 00:00:00,"P12-2021"
,"LEE VALLEY WHITE WATER CENTRE","PREMISES RELATED EXPENDITURE","ENERGY COSTS (ELECTRICITY)","2332","NPOWER LIMITED",29/3/2021 00:00:00,"245882",12830.2,"NP0123","NPOWER LIMITED",1/3/2021 00:00:00,31/3/2021 00:00:00,"P12-2021"
,"LEE VALLEY WHITE WATER CENTRE","PREMISES RELATED EXPENDITURE","ENERGY COSTS (ELECTRICITY)","2332","NPOWER LIMITED",31/3/2021 00:00:00,"246972",347.65,"NP0123","NPOWER LIMITED",1/3/2021 00:00:00,31/3/2021 00:00:00,"P12-2021"
,"LEE VALLEY WHITE WATER CENTRE","PREMISES RELATED EXPENDITURE","ENERGY COSTS (ELECTRICITY)","2332","NPOWER LIMITED",31/3/2021 00:00:00,"246973",146.78,"NP0123","NPOWER LIMITED",1/3/2021 00:00:00,31/3/2021 00:00:00,"P12-2021"
,"LEE VALLEY WHITE WATER CENTRE","PREMISES RELATED EXPENDITURE","ENERGY COSTS (ELECTRICITY)","2332","NPOWER LIMITED",31/3/2021 00:00:00,"246974",8021.55,"NP0123","NPOWER LIMITED",1/3/2021 00:00:00,31/3/2021 00:00:00,"P12-2021"
,"LEE VALLEY WHITE WATER CENTRE","PREMISES RELATED EXPENDITURE","ENERGY COSTS (ELECTRICITY)","2332","NPOWER LIMITED",31/3/2021 00:00:00,"246975",10259.08,"NP0123","NPOWER LIMITED",1/3/2021 00:00:00,31/3/2021 00:00:00,"P12-2021"
,"LEE VALLEY WHITE WATER CENTRE","PREMISES RELATED EXPENDITURE","ENERGY COSTS (ELECTRICITY)","2332","NPOWER LIMITED",31/3/2021 00:00:00,"246976",7731.53,"NP0123","NPOWER LIMITED",1/3/2021 00:00:00,31/3/2021 00:00:00,"P12-2021"
,"LEE VALLEY WHITE WATER CENTRE","PREMISES RELATED EXPENDITURE","ENERGY COSTS (ELECTRICITY)","2332","NPOWER LIMITED",31/3/2021 00:00:00,"246977",7764.44,"NP0123","NPOWER LIMITED",1/3/2021 00:00:00,31/3/2021 00:00:00,"P12-2021"
,"LEE VALLEY MARINA SPRINGFIELD","PREMISES RELATED EXPENDITURE","ENERGY COSTS (GAS)","2333","KENT COUNTY COUNCIL (KCS)",22/3/2021 00:00:00,"245576",559.16,"KE0007","KENT COUNTY COUNCIL (KCS)",1/3/2021 00:00:00,31/3/2021 00:00:00,"P12-2021"
,"LEE VALLEY MARINA SPRINGFIELD","PREMISES RELATED EXPENDITURE","ENERGY COSTS (GAS)","2333","KENT COUNTY COUNCIL (KCS)",31/3/2021 00:00:00,"246783",487.2,"KE0007","KENT COUNTY COUNCIL (KCS)",1/3/2021 00:00:00,31/3/2021 00:00:00,"P12-2021"
,"LEE VALLEY MARINA STANSTEAD","PREMISES RELATED EXPENDITURE","ENERGY COSTS (GAS)","2333","KENT COUNTY COUNCIL (KCS)",22/3/2021 00:00:00,"245571",385.24,"KE0007","KENT COUNTY COUNCIL (KCS)",1/3/2021 00:00:00,31/3/2021 00:00:00,"P12-2021"
,"LEE VALLEY MARINA STANSTEAD","PREMISES RELATED EXPENDITURE","ENERGY COSTS (GAS)","2333","KENT COUNTY COUNCIL (KCS)",23/3/2021 00:00:00,"245572",108.53,"KE0007","KENT COUNTY COUNCIL (KCS)",1/3/2021 00:00:00,31/3/2021 00:00:00,"P12-2021"
,"LEE VALLEY MARINA STANSTEAD","PREMISES RELATED EXPENDITURE","ENERGY COSTS (GAS)","2333","KENT COUNTY COUNCIL (KCS)",31/3/2021 00:00:00,"246784",121.24,"KE0007","KENT COUNTY COUNCIL (KCS)",1/3/2021 00:00:00,31/3/2021 00:00:00,"P12-2021"
,"LEE VALLEY MARINA STANSTEAD","PREMISES RELATED EXPENDITURE","ENERGY COSTS (GAS)","2333","KENT COUNTY COUNCIL (KCS)",31/3/2021 00:00:00,"246908",309.16,"KE0007","KENT COUNTY COUNCIL (KCS)",1/3/2021 00:00:00,31/3/2021 00:00:00,"P12-2021"
,"LEE VALLEY WATERWORKS CENTRE","PREMISES RELATED EXPENDITURE","ENERGY COSTS (GAS)","2333","KENT COUNTY COUNCIL (KCS)",23/3/2021 00:00:00,"245574",363.84,"KE0007","KENT COUNTY COUNCIL (KCS)",1/3/2021 00:00:00,31/3/2021 00:00:00,"P12-2021"
,"LEE VALLEY WATERWORKS CENTRE","PREMISES RELATED EXPENDITURE","ENERGY COSTS (GAS)","2333","KENT COUNTY COUNCIL (KCS)",31/3/2021 00:00:00,"246785",381.55,"KE0007","KENT COUNTY COUNCIL (KCS)",1/3/2021 00:00:00,31/3/2021 00:00:00,"P12-2021"
,"LEE VALLEY CAMPSITE","PREMISES RELATED EXPENDITURE","ENERGY COSTS (GAS)","2333","KENT COUNTY COUNCIL (KCS)",24/3/2021 00:00:00,"245604",537.55,"KE0007","KENT COUNTY COUNCIL (KCS)",1/3/2021 00:00:00,31/3/2021 00:00:00,"P12-2021"
,"LEE VALLEY CAMPSITE","PREMISES RELATED EXPENDITURE","ENERGY COSTS (GAS)","2333","KENT COUNTY COUNCIL (KCS)",31/3/2021 00:00:00,"246787",555.17,"KE0007","KENT COUNTY COUNCIL (KCS)",1/3/2021 00:00:00,31/3/2021 00:00:00,"P12-2021"
,"LEE VALLEY CARAVAN PARK","PREMISES RELATED EXPENDITURE","ENERGY COSTS (GAS)","2333","P110954-SERVICE-Avanti Gas",8/3/2021 00:00:00,"244923",324.3,"AV0327","AVANTI GAS LIMITED",1/3/2021 00:00:00,31/3/2021 00:00:00,"P12-2021"
,"LEE VALLEY CARAVAN PARK","PREMISES RELATED EXPENDITURE","ENERGY COSTS (GAS)","2333","P111251-SERVICE-Avanti Gas",23/3/2021 00:00:00,"245731",233.68,"AV0327","AVANTI GAS LIMITED",1/3/2021 00:00:00,31/3/2021 00:00:00,"P12-2021"
,"LEE VALLEY CARAVAN PARK","PREMISES RELATED EXPENDITURE","ENERGY COSTS (GAS)","2333","P111250-SERVICE-Avanti gas",22/3/2021 00:00:00,"245732",7690.8,"AV0327","AVANTI GAS LIMITED",1/3/2021 00:00:00,31/3/2021 00:00:00,"P12-2021"
"P&V","MYDDELTON HOUSE GARDENS","PREMISES RELATED EXPENDITURE","ENERGY COSTS (GAS)","2333","KENT COUNTY COUNCIL (KCS)",8/3/2021 00:00:00,"244669",1011.08,"KE0007","KENT COUNTY COUNCIL (KCS)",1/3/2021 00:00:00,31/3/2021 00:00:00,"P12-2021"
"P&V","MYDDELTON HOUSE GARDENS","PREMISES RELATED EXPENDITURE","ENERGY COSTS (GAS)","2333","KENT COUNTY COUNCIL (KCS)",22/3/2021 00:00:00,"245575",829.07,"KE0007","KENT COUNTY COUNCIL (KCS)",1/3/2021 00:00:00,31/3/2021 00:00:00,"P12-2021"
"P&V","GUNPOWDER PARK","PREMISES RELATED EXPENDITURE","ENERGY COSTS (GAS)","2333","KENT COUNTY COUNCIL (KCS)",29/3/2021 00:00:00,"245570",73.71,"KE0007","KENT COUNTY COUNCIL (KCS)",1/3/2021 00:00:00,31/3/2021 00:00:00,"P12-2021"
"P&V","GUNPOWDER PARK","PREMISES RELATED EXPENDITURE","ENERGY COSTS (GAS)","2333","KENT COUNTY COUNCIL (KCS)",31/3/2021 00:00:00,"246788",63.7,"KE0007","KENT COUNTY COUNCIL (KCS)",1/3/2021 00:00:00,31/3/2021 00:00:00,"P12-2021"
,"LV LEISURE CENTRE CAMPSITE","PREMISES RELATED EXPENDITURE","ENERGY COSTS (GAS)","2333","KENT COUNTY COUNCIL (KCS)",23/3/2021 00:00:00,"245573",2116.46,"KE0007","KENT COUNTY COUNCIL (KCS)",1/3/2021 00:00:00,31/3/2021 00:00:00,"P12-2021"
,"LV LEISURE CENTRE CAMPSITE","PREMISES RELATED EXPENDITURE","ENERGY COSTS (GAS)","2333","KENT COUNTY COUNCIL (KCS)",31/3/2021 00:00:00,"246786",1498.37,"KE0007","KENT COUNTY COUNCIL (KCS)",1/3/2021 00:00:00,31/3/2021 00:00:00,"P12-2021"
"P&V","NORTH AREA RANGERS","PREMISES RELATED EXPENDITURE","RENT (EXTERNAL)","2442","NETWORK RAIL",31/3/2021 00:00:00,"245362",510.31,"RA0005","NETWORK RAIL",1/3/2021 00:00:00,31/3/2021 00:00:00,"P12-2021"
"P&V","NORTH AREA RANGERS","PREMISES RELATED EXPENDITURE","RENT (EXTERNAL)","2442","NETWORK RAIL",31/3/2021 00:00:00,"245363",279.41,"RA0005","NETWORK RAIL",1/3/2021 00:00:00,31/3/2021 00:00:00,"P12-2021"
"P&V","NORTH AREA RANGERS","PREMISES RELATED EXPENDITURE","RENT (EXTERNAL)","2442","NETWORK RAIL",31/3/2021 00:00:00,"245364",100,"RA0005","NETWORK RAIL",1/3/2021 00:00:00,31/3/2021 00:00:00,"P12-2021"
"P&V","NORTH AREA RANGERS","PREMISES RELATED EXPENDITURE","RENT (EXTERNAL)","2442","THAMES WATER UTILITIES LIMITED",23/3/2021 00:00:00,"245832",68.75,"TH0020","THAMES WATER UTILITIES LIMITED-  SAVILLS",1/3/2021 00:00:00,31/3/2021 00:00:00,"P12-2021"
"P&V","RIVER LEE COUNTRY PARK","PREMISES RELATED EXPENDITURE","RENT (EXTERNAL)","2442","CANAL & RIVER TRUST",29/3/2021 00:00:00,"245989",7.5,"BR0036","CANAL & RIVER TRUST",1/3/2021 00:00:00,31/3/2021 00:00:00,"P12-2021"
"CEO","RESIDENTIAL ACCOMMODATION","PREMISES RELATED EXPENDITURE","PROPERTY MANAGEMT/LETTING FEES","2447","P111174-SERVICE-6 Month Management Fee Railway Cottage",16/3/2021 00:00:00,"245154",750,"WA0315","PAUL WALLACE LETTINGS",1/3/2021 00:00:00,31/3/2021 00:00:00,"P12-2021"
"CEO","RESIDENTIAL ACCOMMODATION","PREMISES RELATED EXPENDITURE","PROPERTY MANAGEMT/LETTING FEES","2447","P111411-SERVICE-Holyfield 3 months management fee",31/3/2021 00:00:00,"245711",478.5,"WA0315","PAUL WALLACE LETTINGS",1/3/2021 00:00:00,31/3/2021 00:00:00,"P12-2021"
"CEO","RESIDENTIAL ACCOMMODATION","PREMISES RELATED EXPENDITURE","PROPERTY MANAGEMT/LETTING FEES","2447","P111407-SERVICE-Fees/warranty Pindar Cottage",31/3/2021 00:00:00,"245848",40.8,"CA0165","CASTLES",1/3/2021 00:00:00,31/3/2021 00:00:00,"P12-2021"
"CEO","RESIDENTIAL ACCOMMODATION","PREMISES RELATED EXPENDITURE","PROPERTY MANAGEMT/LETTING FEES","2447","P111407-SERVICE-Fees/warranty Pindar Cottage",31/3/2021 00:00:00,"245850",240,"CA0165","CASTLES",1/3/2021 00:00:00,31/3/2021 00:00:00,"P12-2021"
,"LEE VALLEY MARINA SPRINGFIELD","PREMISES RELATED EXPENDITURE","WATER","2555","CASTLE WATER LIMITED",31/3/2021 00:00:00,"246749",6803.54,"CA0625","CASTLE WATER LIMITED",1/3/2021 00:00:00,31/3/2021 00:00:00,"P12-2021"
,"LEE VALLEY MARINA SPRINGFIELD","PREMISES RELATED EXPENDITURE","WATER","2555","CASTLE WATER LIMITED",31/3/2021 00:00:00,"246749",10461.33,"CA0625","CASTLE WATER LIMITED",1/3/2021 00:00:00,31/3/2021 00:00:00,"P12-2021"
,"LEE VALLEY MARINA STANSTEAD","PREMISES RELATED EXPENDITURE","WATER","2555","CASTLE WATER LIMITED",8/3/2021 00:00:00,"245290",127.79,"CA0625","CASTLE WATER LIMITED",1/3/2021 00:00:00,31/3/2021 00:00:00,"P12-2021"
,"LEE VALLEY MARINA STANSTEAD","PREMISES RELATED EXPENDITURE","WATER","2555","CASTLE WATER LIMITED",8/3/2021 00:00:00,"245290",116.82,"CA0625","CASTLE WATER LIMITED",1/3/2021 00:00:00,31/3/2021 00:00:00,"P12-2021"
,"LEE VALLEY MARINA STANSTEAD","PREMISES RELATED EXPENDITURE","WATER","2555","CASTLE WATER LIMITED",22/3/2021 00:00:00,"245681",152.49,"CA0625","CASTLE WATER LIMITED",1/3/2021 00:00:00,31/3/2021 00:00:00,"P12-2021"
,"LEE VALLEY MARINA STANSTEAD","PREMISES RELATED EXPENDITURE","WATER","2555","CASTLE WATER LIMITED",22/3/2021 00:00:00,"245681",168.48,"CA0625","CASTLE WATER LIMITED",1/3/2021 00:00:00,31/3/2021 00:00:00,"P12-2021"
,"LEE VALLEY MARINA STANSTEAD","PREMISES RELATED EXPENDITURE","WATER","2555","CASTLE WATER LIMITED",22/3/2021 00:00:00,"245682",136.21,"CA0625","CASTLE WATER LIMITED",1/3/2021 00:00:00,31/3/2021 00:00:00,"P12-2021"
,"LEE VALLEY MARINA STANSTEAD","PREMISES RELATED EXPENDITURE","WATER","2555","CASTLE WATER LIMITED",22/3/2021 00:00:00,"245682",124.8,"CA0625","CASTLE WATER LIMITED",1/3/2021 00:00:00,31/3/2021 00:00:00,"P12-2021"
,"LEE VALLEY MARINA STANSTEAD","PREMISES RELATED EXPENDITURE","WATER","2555","CASTLE WATER LIMITED",31/3/2021 00:00:00,"246232",13.74,"CA0625","CASTLE WATER LIMITED",1/3/2021 00:00:00,31/3/2021 00:00:00,"P12-2021"
,"LEE VALLEY MARINA STANSTEAD","PREMISES RELATED EXPENDITURE","WATER","2555","CASTLE WATER LIMITED",31/3/2021 00:00:00,"246232",6.99,"CA0625","CASTLE WATER LIMITED",1/3/2021 00:00:00,31/3/2021 00:00:00,"P12-2021"
,"LEE VALLEY MARINA STANSTEAD","PREMISES RELATED EXPENDITURE","WATER","2555","CASTLE WATER LIMITED",31/3/2021 00:00:00,"246486",129.76,"CA0625","CASTLE WATER LIMITED",1/3/2021 00:00:00,31/3/2021 00:00:00,"P12-2021"
,"LEE VALLEY MARINA STANSTEAD","PREMISES RELATED EXPENDITURE","WATER","2555","CASTLE WATER LIMITED",31/3/2021 00:00:00,"246486",141.97,"CA0625","CASTLE WATER LIMITED",1/3/2021 00:00:00,31/3/2021 00:00:00,"P12-2021"
,"LEE VALLEY WATERWORKS CENTRE","PREMISES RELATED EXPENDITURE","WATER","2555","CASTLE WATER LIMITED",29/3/2021 00:00:00,"245945",1948.89,"CA0625","CASTLE WATER LIMITED",1/3/2021 00:00:00,31/3/2021 00:00:00,"P12-2021"
,"LEE VALLEY CAMPSITE","PREMISES RELATED EXPENDITURE","WATER","2555","CASTLE WATER LIMITED",29/3/2021 00:00:00,"245946",22550.4,"CA0625","CASTLE WATER LIMITED",1/3/2021 00:00:00,31/3/2021 00:00:00,"P12-2021"
,"LEE VALLEY CARAVAN PARK","PREMISES RELATED EXPENDITURE","WATER","2555","P110175-SERVICE-Kingfisher Enviromental",15/3/2021 00:00:00,"245536",339.71,"KI0090","KINGFISHER ENVIRONMENTAL SERVICES LTD",1/3/2021 00:00:00,31/3/2021 00:00:00,"P12-2021"
,"LEE VALLEY CARAVAN PARK","PREMISES RELATED EXPENDITURE","WATER","2555","P110252-SERVICE-Legionella inspection",15/3/2021 00:00:00,"245537",562.5,"KI0090","KINGFISHER ENVIRONMENTAL SERVICES LTD",1/3/2021 00:00:00,31/3/2021 00:00:00,"P12-2021"
,"LEE VALLEY CARAVAN PARK","PREMISES RELATED EXPENDITURE","WATER","2555","CASTLE WATER LIMITED",31/3/2021 00:00:00,"246728",27627.82,"CA0625","CASTLE WATER LIMITED",1/3/2021 00:00:00,31/3/2021 00:00:00,"P12-2021"
,"LEE VALLEY CARAVAN PARK","PREMISES RELATED EXPENDITURE","WATER","2555","CASTLE WATER LIMITED",31/3/2021 00:00:00,"246728",18880.52,"CA0625","CASTLE WATER LIMITED",1/3/2021 00:00:00,31/3/2021 00:00:00,"P12-2021"
"P&V","GUNPOWDER PARK","PREMISES RELATED EXPENDITURE","WATER","2555","CASTLE WATER LIMITED",31/3/2021 00:00:00,"246590",348.24,"CA0625","CASTLE WATER LIMITED",1/3/2021 00:00:00,31/3/2021 00:00:00,"P12-2021"
,"LEE VALLEY VELOPARK","PREMISES RELATED EXPENDITURE","WATER","2555","CASTLE WATER LIMITED",31/3/2021 00:00:00,"246747",9925.62,"CA0625","CASTLE WATER LIMITED",1/3/2021 00:00:00,31/3/2021 00:00:00,"P12-2021"
,"LEE VALLEY VELOPARK","PREMISES RELATED EXPENDITURE","WATER","2555","CASTLE WATER LIMITED",31/3/2021 00:00:00,"246747",2558.33,"CA0625","CASTLE WATER LIMITED",1/3/2021 00:00:00,31/3/2021 00:00:00,"P12-2021"
,"LV HOCKEY AND TENNIS CENTRE","PREMISES RELATED EXPENDITURE","WATER","2555","CASTLE WATER LIMITED",31/3/2021 00:00:00,"246724",7263.03,"CA0625","CASTLE WATER LIMITED",1/3/2021 00:00:00,31/3/2021 00:00:00,"P12-2021"
,"LV HOCKEY AND TENNIS CENTRE","PREMISES RELATED EXPENDITURE","WATER","2555","CASTLE WATER LIMITED",31/3/2021 00:00:00,"246724",12918.53,"CA0625","CASTLE WATER LIMITED",1/3/2021 00:00:00,31/3/2021 00:00:00,"P12-2021"
,"LEE VALLEY RIDING CENTRE","PREMISES RELATED EXPENDITURE","WATER","2555","CASTLE WATER LIMITED",31/3/2021 00:00:00,"246725",3513.72,"CA0625","CASTLE WATER LIMITED",1/3/2021 00:00:00,31/3/2021 00:00:00,"P12-2021"
,"LEE VALLEY RIDING CENTRE","PREMISES RELATED EXPENDITURE","WATER","2555","CASTLE WATER LIMITED",31/3/2021 00:00:00,"246725",3999.38,"CA0625","CASTLE WATER LIMITED",1/3/2021 00:00:00,31/3/2021 00:00:00,"P12-2021"
,"LV LEISURE CENTRE CAMPSITE","PREMISES RELATED EXPENDITURE","WATER","2555","CASTLE WATER LIMITED",31/3/2021 00:00:00,"245947",481.85,"CA0625","CASTLE WATER LIMITED",1/3/2021 00:00:00,31/3/2021 00:00:00,"P12-2021"
,"LV LEISURE CENTRE CAMPSITE","PREMISES RELATED EXPENDITURE","WATER","2555","CASTLE WATER LIMITED",31/3/2021 00:00:00,"246746",867.97,"CA0625","CASTLE WATER LIMITED",1/3/2021 00:00:00,31/3/2021 00:00:00,"P12-2021"
,"LV LEISURE CENTRE CAMPSITE","PREMISES RELATED EXPENDITURE","WATER","2555","CASTLE WATER LIMITED",31/3/2021 00:00:00,"246746",4217.93,"CA0625","CASTLE WATER LIMITED",1/3/2021 00:00:00,31/3/2021 00:00:00,"P12-2021"
,"LV LEISURE CENTRE CAMPSITE","PREMISES RELATED EXPENDITURE","WATER","2555","CASTLE WATER LIMITED",31/3/2021 00:00:00,"246753",512.02,"CA0625","CASTLE WATER LIMITED",1/3/2021 00:00:00,31/3/2021 00:00:00,"P12-2021"
,"LV LEISURE CENTRE CAMPSITE","PREMISES RELATED EXPENDITURE","WATER","2555","CASTLE WATER LIMITED",31/3/2021 00:00:00,"246753",464.82,"CA0625","CASTLE WATER LIMITED",1/3/2021 00:00:00,31/3/2021 00:00:00,"P12-2021"
,"LEE VALLEY ATHLETICS CENTRE","PREMISES RELATED EXPENDITURE","WATER","2555","CASTLE WATER LIMITED",31/3/2021 00:00:00,"246750",1275.36,"CA0625","CASTLE WATER LIMITED",1/3/2021 00:00:00,31/3/2021 00:00:00,"P12-2021"
,"LEE VALLEY ATHLETICS CENTRE","PREMISES RELATED EXPENDITURE","WATER","2555","CASTLE WATER LIMITED",31/3/2021 00:00:00,"246750",1742.14,"CA0625","CASTLE WATER LIMITED",1/3/2021 00:00:00,31/3/2021 00:00:00,"P12-2021"
,"LEE VALLEY WHITE WATER CENTRE","PREMISES RELATED EXPENDITURE","WATER","2555","CASTLE WATER LIMITED",22/3/2021 00:00:00,"245597",801.19,"CA0625","CASTLE WATER LIMITED",1/3/2021 00:00:00,31/3/2021 00:00:00,"P12-2021"
,"LEE VALLEY WHITE WATER CENTRE","PREMISES RELATED EXPENDITURE","WATER","2555","CASTLE WATER LIMITED",22/3/2021 00:00:00,"245597",851.2,"CA0625","CASTLE WATER LIMITED",1/3/2021 00:00:00,31/3/2021 00:00:00,"P12-2021"
,"LEE VALLEY WHITE WATER CENTRE","PREMISES RELATED EXPENDITURE","WATER","2555","CASTLE WATER LIMITED",22/3/2021 00:00:00,"245598",1922.98,"CA0625","CASTLE WATER LIMITED",1/3/2021 00:00:00,31/3/2021 00:00:00,"P12-2021"
,"LEE VALLEY WHITE WATER CENTRE","PREMISES RELATED EXPENDITURE","WATER","2555","CASTLE WATER LIMITED",22/3/2021 00:00:00,"245598",1762.66,"CA0625","CASTLE WATER LIMITED",1/3/2021 00:00:00,31/3/2021 00:00:00,"P12-2021"
,"LEE VALLEY MARINA SPRINGFIELD","PREMISES RELATED EXPENDITURE","CLEANING & DOMESTIC SUPPLIES","2666","P110033-SERVICE-To supply items as requested",10/3/2021 00:00:00,"243973",15.54,"HY0043","HYGIENE SYSTEMS LTD",1/3/2021 00:00:00,31/3/2021 00:00:00,"P12-2021"
,"LEE VALLEY MARINA SPRINGFIELD","PREMISES RELATED EXPENDITURE","CLEANING & DOMESTIC SUPPLIES","2666","P110033-SERVICE-To supply items as requested",10/3/2021 00:00:00,"245305",-15.54,"HY0043","HYGIENE SYSTEMS LTD",1/3/2021 00:00:00,31/3/2021 00:00:00,"P12-2021"
,"LEE VALLEY MARINA SPRINGFIELD","PREMISES RELATED EXPENDITURE","CLEANING & DOMESTIC SUPPLIES","2666","P107262-SERVICE-Sanitary disposal,dust mats,eco shild",22/3/2021 00:00:00,"245804",144.12,"PE0015","PHS GROUP PLC",1/3/2021 00:00:00,31/3/2021 00:00:00,"P12-2021"
,"LEE VALLEY MARINA SPRINGFIELD","PREMISES RELATED EXPENDITURE","CLEANING & DOMESTIC SUPPLIES","2666","P107262-SERVICE-Sanitary disposal,dust mats,eco shild",23/3/2021 00:00:00,"245805",143.29,"PE0015","PHS GROUP PLC",1/3/2021 00:00:00,31/3/2021 00:00:00,"P12-2021"
,"LEE VALLEY MARINA SPRINGFIELD","PREMISES RELATED EXPENDITURE","CLEANING & DOMESTIC SUPPLIES","2666","P107262-SERVICE-Sanitary disposal,dust mats,eco shild",23/3/2021 00:00:00,"245806",143.29,"PE0015","PHS GROUP PLC",1/3/2021 00:00:00,31/3/2021 00:00:00,"P12-2021"
,"LEE VALLEY MARINA SPRINGFIELD","PREMISES RELATED EXPENDITURE","CLEANING & DOMESTIC SUPPLIES","2666","P107262-SERVICE-Sanitary disposal,dust mats,eco shild",23/3/2021 00:00:00,"245807",174.83,"PE0015","PHS GROUP PLC",1/3/2021 00:00:00,31/3/2021 00:00:00,"P12-2021"
,"LEE VALLEY MARINA SPRINGFIELD","PREMISES RELATED EXPENDITURE","CLEANING & DOMESTIC SUPPLIES","2666","P107262-SERVICE-Sanitary disposal,dust mats,eco shild",23/3/2021 00:00:00,"245808",50.7,"PE0015","PHS GROUP PLC",1/3/2021 00:00:00,31/3/2021 00:00:00,"P12-2021"
,"LEE VALLEY MARINA SPRINGFIELD","PREMISES RELATED EXPENDITURE","CLEANING & DOMESTIC SUPPLIES","2666","P111072-SERVICE-To supply items as requested",30/3/2021 00:00:00,"246089",249.86,"HY0043","HYGIENE SYSTEMS LTD",1/3/2021 00:00:00,31/3/2021 00:00:00,"P12-2021"
,"LEE VALLEY MARINA SPRINGFIELD","PREMISES RELATED EXPENDITURE","CLEANING & DOMESTIC SUPPLIES","2666","P111567-SERVICE-March 21 Cleaning",31/3/2021 00:00:00,"246270",892.71,"MA0015","MAYFAIR CLEANING COMPANY LIMITED",1/3/2021 00:00:00,31/3/2021 00:00:00,"P12-2021"
,"LEE VALLEY MARINA STANSTEAD","PREMISES RELATED EXPENDITURE","CLEANING & DOMESTIC SUPPLIES","2666","P110959-SERVICE-PPE for workshop",8/3/2021 00:00:00,"245113",56.1,"TH0008","JKL SOLUTIONS LTD",1/3/2021 00:00:00,31/3/2021 00:00:00,"P12-2021"
,"LEE VALLEY MARINA STANSTEAD","PREMISES RELATED EXPENDITURE","CLEANING & DOMESTIC SUPPLIES","2666","P110959-SERVICE-PPE for workshop",17/3/2021 00:00:00,"245163",96.99,"TH0008","JKL SOLUTIONS LTD",1/3/2021 00:00:00,31/3/2021 00:00:00,"P12-2021"
,"LEE VALLEY MARINA STANSTEAD","PREMISES RELATED EXPENDITURE","CLEANING & DOMESTIC SUPPLIES","2666","P111095-SERVICE-Hand wash,disinfectant and toilet rolls",15/3/2021 00:00:00,"245520",193.62,"TH0008","JKL SOLUTIONS LTD",1/3/2021 00:00:00,31/3/2021 00:00:00,"P12-2021"
,"LEE VALLEY MARINA STANSTEAD","PREMISES RELATED EXPENDITURE","CLEANING & DOMESTIC SUPPLIES","2666","P111095-SERVICE-Hand wash,disinfectant and toilet rolls",30/3/2021 00:00:00,"246033",193.62,"TH0008","JKL SOLUTIONS LTD",1/3/2021 00:00:00,31/3/2021 00:00:00,"P12-2021"
,"LEE VALLEY MARINA STANSTEAD","PREMISES RELATED EXPENDITURE","CLEANING & DOMESTIC SUPPLIES","2666","P111095-SERVICE-Hand wash,disinfectant and toilet rolls",29/3/2021 00:00:00,"246157",-193.62,"TH0008","JKL SOLUTIONS LTD",1/3/2021 00:00:00,31/3/2021 00:00:00,"P12-2021"
,"LEE VALLEY CAMPSITE","PREMISES RELATED EXPENDITURE","CLEANING & DOMESTIC SUPPLIES","2666","P110400-SERVICE-Cleaning products",8/3/2021 00:00:00,"244204",183.92,"HY0043","HYGIENE SYSTEMS LTD",1/3/2021 00:00:00,31/3/2021 00:00:00,"P12-2021"
,"LEE VALLEY CAMPSITE","PREMISES RELATED EXPENDITURE","CLEANING & DOMESTIC SUPPLIES","2666","P110548-SERVICE-Various cleaning products",22/3/2021 00:00:00,"245750",5.13,"HY0043","HYGIENE SYSTEMS LTD",1/3/2021 00:00:00,31/3/2021 00:00:00,"P12-2021"
,"LEE VALLEY CAMPSITE","PREMISES RELATED EXPENDITURE","CLEANING & DOMESTIC SUPPLIES","2666","P111233-SERVICE-Cleaning Supplies",29/3/2021 00:00:00,"246090",36.43,"HY0043","HYGIENE SYSTEMS LTD",1/3/2021 00:00:00,31/3/2021 00:00:00,"P12-2021"
,"LEE VALLEY CARAVAN PARK","PREMISES RELATED EXPENDITURE","CLEANING & DOMESTIC SUPPLIES","2666","P110783-SERVICE-rock salt HSL",8/3/2021 00:00:00,"245103",84.2,"HY0043","HYGIENE SYSTEMS LTD",1/3/2021 00:00:00,31/3/2021 00:00:00,"P12-2021"
,"LEE VALLEY RIDING CENTRE","PREMISES RELATED EXPENDITURE","CLEANING & DOMESTIC SUPPLIES","2666","CLEANING",31/3/2021 00:00:00,"246229",1.63,"FI0001","DIRECTOR OF FINANCE - CASH",1/3/2021 00:00:00,31/3/2021 00:00:00,"P12-2021"
,"LEE VALLEY RIDING CENTRE","PREMISES RELATED EXPENDITURE","CLEANING & DOMESTIC SUPPLIES","2666","CLEANING",31/3/2021 00:00:00,"246229",0.54,"FI0001","DIRECTOR OF FINANCE - CASH",1/3/2021 00:00:00,31/3/2021 00:00:00,"P12-2021"
,"LEE VALLEY ATHLETICS CENTRE","PREMISES RELATED EXPENDITURE","CLEANING & DOMESTIC SUPPLIES","2666","P111187-SERVICE-LVAC CLEANING PRODUCTS",31/3/2021 00:00:00,"246088",165.25,"HY0043","HYGIENE SYSTEMS LTD",1/3/2021 00:00:00,31/3/2021 00:00:00,"P12-2021"
"P&V","LEE VALLEY FARM HOLYFIELDHALL","TRANSPORT RELATED EXPENDITURE","TRANSPORT RUNNING EXPENSES","3333","P107092-SERVICE-Tractor Spares",15/3/2021 00:00:00,"245076",84.75,"OL0001","OLIVER AGRICULTURE LTD",1/3/2021 00:00:00,31/3/2021 00:00:00,"P12-2021"
"P&V","LEE VALLEY FARM HOLYFIELDHALL","TRANSPORT RELATED EXPENDITURE","TRANSPORT RUNNING EXPENSES","3333","P107093-SERVICE-Tractor Spares",15/3/2021 00:00:00,"245077",305.56,"OL0059","OLIVER LANDPOWER LIMITED",1/3/2021 00:00:00,31/3/2021 00:00:00,"P12-2021"
"P&V","LEE VALLEY FARM HOLYFIELDHALL","TRANSPORT RELATED EXPENDITURE","TRANSPORT RUNNING EXPENSES","3333","P111143-SERVICE-PTO Shaft",15/3/2021 00:00:00,"245078",670.05,"OL0059","OLIVER LANDPOWER LIMITED",1/3/2021 00:00:00,31/3/2021 00:00:00,"P12-2021"
"P&V","LEE VALLEY FARM HOLYFIELDHALL","TRANSPORT RELATED EXPENDITURE","TRANSPORT RUNNING EXPENSES","3333","P107083-SERVICE-Workshop Sundries",15/3/2021 00:00:00,"245122",31,"GR0022","GROUP COMPONENTS LIMITED",1/3/2021 00:00:00,31/3/2021 00:00:00,"P12-2021"
"P&V","LEE VALLEY FARM HOLYFIELDHALL","TRANSPORT RELATED EXPENDITURE","TRANSPORT RUNNING EXPENSES","3333","P109152-SERVICE-Various Parts",15/3/2021 00:00:00,"245183",322.45,"RW0257","R. W. CRAWFORD AGRICULTURAL MACHINERY LTD",1/3/2021 00:00:00,31/3/2021 00:00:00,"P12-2021"
"P&V","LEE VALLEY FARM HOLYFIELDHALL","TRANSPORT RELATED EXPENDITURE","TRANSPORT RUNNING EXPENSES","3333","P109806-SERVICE-Steel",15/3/2021 00:00:00,"245291",150,"HA0436","HARRIS FABRICATION LTD",1/3/2021 00:00:00,31/3/2021 00:00:00,"P12-2021"
"P&V","LEE VALLEY FARM HOLYFIELDHALL","TRANSPORT RELATED EXPENDITURE","TRANSPORT RUNNING EXPENSES","3333","P111165-SERVICE-Various",15/3/2021 00:00:00,"245475",652.19,"WO0076","E J WOOLLARD LTD",1/3/2021 00:00:00,31/3/2021 00:00:00,"P12-2021"
"P&V","LEE VALLEY FARM HOLYFIELDHALL","TRANSPORT RELATED EXPENDITURE","TRANSPORT RUNNING EXPENSES","3333","P107093-SERVICE-Tractor Spares",15/3/2021 00:00:00,"245476",2.02,"OL0059","OLIVER LANDPOWER LIMITED",1/3/2021 00:00:00,31/3/2021 00:00:00,"P12-2021"
"P&V","LEE VALLEY FARM HOLYFIELDHALL","TRANSPORT RELATED EXPENDITURE","TRANSPORT RUNNING EXPENSES","3333","P111168-SERVICE-Various",15/3/2021 00:00:00,"245564",45.53,"WO0076","E J WOOLLARD LTD",1/3/2021 00:00:00,31/3/2021 00:00:00,"P12-2021"
"P&V","LEE VALLEY FARM HOLYFIELDHALL","TRANSPORT RELATED EXPENDITURE","TRANSPORT RUNNING EXPENSES","3333","P107087-SERVICE-Hose repairs/sundries",31/3/2021 00:00:00,"245724",39.94,"HU0003","ALLIANCE AUTOMOTIVE UK CV LIMITED T/A",1/3/2021 00:00:00,31/3/2021 00:00:00,"P12-2021"
"P&V","LEE VALLEY FARM HOLYFIELDHALL","TRANSPORT RELATED EXPENDITURE","TRANSPORT RUNNING EXPENSES","3333","P107087-SERVICE-Hose repairs/sundries",31/3/2021 00:00:00,"245725",56.52,"HU0003","ALLIANCE AUTOMOTIVE UK CV LIMITED T/A",1/3/2021 00:00:00,31/3/2021 00:00:00,"P12-2021"
"P&V","LEE VALLEY FARM HOLYFIELDHALL","TRANSPORT RELATED EXPENDITURE","TRANSPORT RUNNING EXPENSES","3333","P111468-SERVICE-Hose Repair/Sundries",31/3/2021 00:00:00,"245726",200.81,"HU0003","ALLIANCE AUTOMOTIVE UK CV LIMITED T/A",1/3/2021 00:00:00,31/3/2021 00:00:00,"P12-2021"
"P&V","LEE VALLEY FARM HOLYFIELDHALL","TRANSPORT RELATED EXPENDITURE","TRANSPORT RUNNING EXPENSES","3333","P109338-SERVICE-Parts",31/3/2021 00:00:00,"245773",129,"SP0034","SPALDINGS (UK) LIMITED",1/3/2021 00:00:00,31/3/2021 00:00:00,"P12-2021"
"P&V","LEE VALLEY FARM HOLYFIELDHALL","TRANSPORT RELATED EXPENDITURE","TRANSPORT RUNNING EXPENSES","3333","P111461-SERVICE-Machinery Spares",31/3/2021 00:00:00,"246245",401.4,"SP0034","SPALDINGS (UK) LIMITED",1/3/2021 00:00:00,31/3/2021 00:00:00,"P12-2021"
"P&V","LEE VALLEY FARM HOLYFIELDHALL","TRANSPORT RELATED EXPENDITURE","TRANSPORT RUNNING EXPENSES","3333","P111289-SERVICE-Red Diesel",31/3/2021 00:00:00,"246258",1598.93,"HA0400","WATSON FUELS",1/3/2021 00:00:00,31/3/2021 00:00:00,"P12-2021"
"P&V","LEE VALLEY FARM HOLYFIELDHALL","TRANSPORT RELATED EXPENDITURE","TRANSPORT RUNNING EXPENSES","3333","P111465-SERVICE-Workshop Sundries",31/3/2021 00:00:00,"246403",45.46,"GR0022","GROUP COMPONENTS LIMITED",1/3/2021 00:00:00,31/3/2021 00:00:00,"P12-2021"
"P&V","LEE VALLEY FARM HOLYFIELDHALL","TRANSPORT RELATED EXPENDITURE","TRANSPORT RUNNING EXPENSES","3333","P111289-SERVICE-Red Diesel",31/3/2021 00:00:00,"246422",532.8,"HA0400","WATSON FUELS",1/3/2021 00:00:00,31/3/2021 00:00:00,"P12-2021"
"P&V","LEE VALLEY FARM HOLYFIELDHALL","TRANSPORT RELATED EXPENDITURE","TRANSPORT RUNNING EXPENSES","3333","P111461-SERVICE-Machinery Spares",31/3/2021 00:00:00,"246444",85,"SP0034","SPALDINGS (UK) LIMITED",1/3/2021 00:00:00,31/3/2021 00:00:00,"P12-2021"
,"LEE VALLEY CAMPSITE","TRANSPORT RELATED EXPENDITURE","TRANSPORT RUNNING EXPENSES","3333","P111091-SERVICE-Vehicle hire",17/3/2021 00:00:00,"245473",609.37,"DE0311","DELXPRESS LTD",1/3/2021 00:00:00,31/3/2021 00:00:00,"P12-2021"
,"LV LEISURE CENTRE GOLF COURSE","TRANSPORT RELATED EXPENDITURE","TRANSPORT RUNNING EXPENSES","3333","P111204-SERVICE-9 day gator charge",31/3/2021 00:00:00,"245713",273.24,"AN0450","ANGLIA MOWERS",1/3/2021 00:00:00,31/3/2021 00:00:00,"P12-2021"
,"LV LEISURE CENTRE GOLF COURSE","TRANSPORT RELATED EXPENDITURE","TRANSPORT RUNNING EXPENSES","3333","P111203-SERVICE-2 week gator hire",23/3/2021 00:00:00,"245714",425,"AN0450","ANGLIA MOWERS",1/3/2021 00:00:00,31/3/2021 00:00:00,"P12-2021"
,"LV LEISURE CENTRE GOLF COURSE","TRANSPORT RELATED EXPENDITURE","TRANSPORT RUNNING EXPENSES","3333","P110881-SERVICE-Utility vehicle",31/3/2021 00:00:00,"246155",5000,"LE0279","REESINK TURFCARE UK LIMITED",1/3/2021 00:00:00,31/3/2021 00:00:00,"P12-2021"
,"LEE VALLEY MARINA STANSTEAD","TRANSPORT RELATED EXPENDITURE","VEHICLE FUEL","3335","ALLSTAR BUSINESS SOLUTIONS LTD",10/3/2021 00:00:00,"245148",42.56,"AR0035","ALLSTAR BUSINESS SOLUTIONS LTD",1/3/2021 00:00:00,31/3/2021 00:00:00,"P12-2021"
,"LEE VALLEY MARINA STANSTEAD","TRANSPORT RELATED EXPENDITURE","VEHICLE FUEL","3335","ALLSTAR BUSINESS SOLUTIONS LTD",31/3/2021 00:00:00,"246420",181.23,"AR0035","ALLSTAR BUSINESS SOLUTIONS LTD",1/3/2021 00:00:00,31/3/2021 00:00:00,"P12-2021"
"P&V","LEE VALLEY FARM HOLYFIELDHALL","TRANSPORT RELATED EXPENDITURE","VEHICLE FUEL","3335","ALLSTAR BUSINESS SOLUTIONS LTD",10/3/2021 00:00:00,"245148",61.02,"AR0035","ALLSTAR BUSINESS SOLUTIONS LTD",1/3/2021 00:00:00,31/3/2021 00:00:00,"P12-2021"
"P&V","LEE VALLEY FARM HOLYFIELDHALL","TRANSPORT RELATED EXPENDITURE","VEHICLE FUEL","3335","ALLSTAR BUSINESS SOLUTIONS LTD",31/3/2021 00:00:00,"246420",68.38,"AR0035","ALLSTAR BUSINESS SOLUTIONS LTD",1/3/2021 00:00:00,31/3/2021 00:00:00,"P12-2021"
,"LEE VALLEY CAMPSITE","TRANSPORT RELATED EXPENDITURE","VEHICLE FUEL","3335","ALLSTAR BUSINESS SOLUTIONS LTD",31/3/2021 00:00:00,"246420",39.64,"AR0035","ALLSTAR BUSINESS SOLUTIONS LTD",1/3/2021 00:00:00,31/3/2021 00:00:00,"P12-2021"
,"LEE VALLEY CARAVAN PARK","TRANSPORT RELATED EXPENDITURE","VEHICLE FUEL","3335","ALLSTAR BUSINESS SOLUTIONS LTD",10/3/2021 00:00:00,"245148",146.15,"AR0035","ALLSTAR BUSINESS SOLUTIONS LTD",1/3/2021 00:00:00,31/3/2021 00:00:00,"P12-2021"
,"LEE VALLEY CARAVAN PARK","TRANSPORT RELATED EXPENDITURE","VEHICLE FUEL","3335","ALLSTAR BUSINESS SOLUTIONS LTD",31/3/2021 00:00:00,"246420",5.1,"AR0035","ALLSTAR BUSINESS SOLUTIONS LTD",1/3/2021 00:00:00,31/3/2021 00:00:00,"P12-2021"
"P&V","MYDDELTON HOUSE GARDENS","TRANSPORT RELATED EXPENDITURE","VEHICLE FUEL","3335","ALLSTAR BUSINESS SOLUTIONS LTD",31/3/2021 00:00:00,"246419",6.34,"AR0035","ALLSTAR BUSINESS SOLUTIONS LTD",1/3/2021 00:00:00,31/3/2021 00:00:00,"P12-2021"
"P&V","NORTH AREA RANGERS","TRANSPORT RELATED EXPENDITURE","VEHICLE FUEL","3335","ALLSTAR BUSINESS SOLUTIONS LTD",10/3/2021 00:00:00,"245148",82.96,"AR0035","ALLSTAR BUSINESS SOLUTIONS LTD",1/3/2021 00:00:00,31/3/2021 00:00:00,"P12-2021"
"P&V","NORTH AREA RANGERS","TRANSPORT RELATED EXPENDITURE","VEHICLE FUEL","3335","ALLSTAR BUSINESS SOLUTIONS LTD",31/3/2021 00:00:00,"246420",93.99,"AR0035","ALLSTAR BUSINESS SOLUTIONS LTD",1/3/2021 00:00:00,31/3/2021 00:00:00,"P12-2021"
"P&V","SOUTH AREA RANGERS","TRANSPORT RELATED EXPENDITURE","VEHICLE FUEL","3335","ALLSTAR BUSINESS SOLUTIONS LTD",10/3/2021 00:00:00,"245148",227.11,"AR0035","ALLSTAR BUSINESS SOLUTIONS LTD",1/3/2021 00:00:00,31/3/2021 00:00:00,"P12-2021"
"P&V","SOUTH AREA RANGERS","TRANSPORT RELATED EXPENDITURE","VEHICLE FUEL","3335","ALLSTAR BUSINESS SOLUTIONS LTD",31/3/2021 00:00:00,"246420",284.94,"AR0035","ALLSTAR BUSINESS SOLUTIONS LTD",1/3/2021 00:00:00,31/3/2021 00:00:00,"P12-2021"
"P&V","GUNPOWDER PARK","TRANSPORT RELATED EXPENDITURE","VEHICLE FUEL","3335","ALLSTAR BUSINESS SOLUTIONS LTD",10/3/2021 00:00:00,"245148",54.05,"AR0035","ALLSTAR BUSINESS SOLUTIONS LTD",1/3/2021 00:00:00,31/3/2021 00:00:00,"P12-2021"
"P&V","RIVER LEE COUNTRY PARK","TRANSPORT RELATED EXPENDITURE","VEHICLE FUEL","3335","ALLSTAR BUSINESS SOLUTIONS LTD",10/3/2021 00:00:00,"245148",278.13,"AR0035","ALLSTAR BUSINESS SOLUTIONS LTD",1/3/2021 00:00:00,31/3/2021 00:00:00,"P12-2021"
"P&V","RIVER LEE COUNTRY PARK","TRANSPORT RELATED EXPENDITURE","VEHICLE FUEL","3335","ALLSTAR BUSINESS SOLUTIONS LTD",10/3/2021 00:00:00,"245148",79.42,"AR0035","ALLSTAR BUSINESS SOLUTIONS LTD",1/3/2021 00:00:00,31/3/2021 00:00:00,"P12-2021"
"P&V","RIVER LEE COUNTRY PARK","TRANSPORT RELATED EXPENDITURE","VEHICLE FUEL","3335","ALLSTAR BUSINESS SOLUTIONS LTD",31/3/2021 00:00:00,"246420",141.69,"AR0035","ALLSTAR BUSINESS SOLUTIONS LTD",1/3/2021 00:00:00,31/3/2021 00:00:00,"P12-2021"
"P&V","RIVER LEE COUNTRY PARK","TRANSPORT RELATED EXPENDITURE","VEHICLE FUEL","3335","ALLSTAR BUSINESS SOLUTIONS LTD",31/3/2021 00:00:00,"246420",469.2,"AR0035","ALLSTAR BUSINESS SOLUTIONS LTD",1/3/2021 00:00:00,31/3/2021 00:00:00,"P12-2021"
,"LEE VALLEY VELOPARK","TRANSPORT RELATED EXPENDITURE","VEHICLE FUEL","3335","ALLSTAR BUSINESS SOLUTIONS LTD",31/3/2021 00:00:00,"246419",9.5,"AR0035","ALLSTAR BUSINESS SOLUTIONS LTD",1/3/2021 00:00:00,31/3/2021 00:00:00,"P12-2021"
,"LV HOCKEY AND TENNIS CENTRE","TRANSPORT RELATED EXPENDITURE","VEHICLE FUEL","3335","ALLSTAR BUSINESS SOLUTIONS LTD",31/3/2021 00:00:00,"246419",9.5,"AR0035","ALLSTAR BUSINESS SOLUTIONS LTD",1/3/2021 00:00:00,31/3/2021 00:00:00,"P12-2021"
,"LEE VALLEY RIDING CENTRE","TRANSPORT RELATED EXPENDITURE","VEHICLE FUEL","3335","FUEL",31/3/2021 00:00:00,"246229",15.42,"FI0001","DIRECTOR OF FINANCE - CASH",1/3/2021 00:00:00,31/3/2021 00:00:00,"P12-2021"
,"LEE VALLEY RIDING CENTRE","TRANSPORT RELATED EXPENDITURE","VEHICLE FUEL","3335","ALLSTAR BUSINESS SOLUTIONS LTD",31/3/2021 00:00:00,"246419",9.5,"AR0035","ALLSTAR BUSINESS SOLUTIONS LTD",1/3/2021 00:00:00,31/3/2021 00:00:00,"P12-2021"
,"LEE VALLEY ICE CENTRE","TRANSPORT RELATED EXPENDITURE","VEHICLE FUEL","3335","ALLSTAR BUSINESS SOLUTIONS LTD",31/3/2021 00:00:00,"246419",9.5,"AR0035","ALLSTAR BUSINESS SOLUTIONS LTD",1/3/2021 00:00:00,31/3/2021 00:00:00,"P12-2021"
"P&V","SOUTH AREA RANGERS","TRANSPORT RELATED EXPENDITURE","VEHICLE REPAIRS & MAINTENANCE","3338","VEHICLE EXPENSE",29/3/2021 00:00:00,"246140",20,"FI0001","DIRECTOR OF FINANCE - CASH",1/3/2021 00:00:00,31/3/2021 00:00:00,"P12-2021"
"P&V","RIVER LEE COUNTRY PARK","TRANSPORT RELATED EXPENDITURE","VEHICLE REPAIRS & MAINTENANCE","3338","P111271-SERVICE-3x Puncture Repairs",29/3/2021 00:00:00,"245974",20,"AD0016","ADVANCE TYRE SERVICE",1/3/2021 00:00:00,31/3/2021 00:00:00,"P12-2021"
"P&V","RIVER LEE COUNTRY PARK","TRANSPORT RELATED EXPENDITURE","VEHICLE REPAIRS & MAINTENANCE","3338","P111271-SERVICE-2x Tyres Fitted & Balanced - GK65 MRO",31/3/2021 00:00:00,"246559",50,"AD0016","ADVANCE TYRE SERVICE",1/3/2021 00:00:00,31/3/2021 00:00:00,"P12-2021"
,"LEE VALLEY RIDING CENTRE","TRANSPORT RELATED EXPENDITURE","VEHICLE REPAIRS & MAINTENANCE","3338","P110970-SERVICE-mule repairs, parts and labour",8/3/2021 00:00:00,"245086",964.02,"AP0245","APS LIMITED",1/3/2021 00:00:00,31/3/2021 00:00:00,"P12-2021"
,"LEE VALLEY RIDING CENTRE","TRANSPORT RELATED EXPENDITURE","VEHICLE REPAIRS & MAINTENANCE","3338","PUNCTURE REPAIR",31/3/2021 00:00:00,"246229",15,"FI0001","DIRECTOR OF FINANCE - CASH",1/3/2021 00:00:00,31/3/2021 00:00:00,"P12-2021"
,"LEE VALLEY RIDING CENTRE","TRANSPORT RELATED EXPENDITURE","VEHICLE REPAIRS & MAINTENANCE","3338","TRAILER",31/3/2021 00:00:00,"246229",23.85,"FI0001","DIRECTOR OF FINANCE - CASH",1/3/2021 00:00:00,31/3/2021 00:00:00,"P12-2021"
,"LEE VALLEY RIDING CENTRE","TRANSPORT RELATED EXPENDITURE","VEHICLE REPAIRS & MAINTENANCE","3338","PUNCTURE REPAIR",31/3/2021 00:00:00,"246229",10,"FI0001","DIRECTOR OF FINANCE - CASH",1/3/2021 00:00:00,31/3/2021 00:00:00,"P12-2021"
"P&V","MYDDELTON HOUSE GARDENS","TRANSPORT RELATED EXPENDITURE","TRAVELLING EXPENSES","3344","DAY TRAVEL CARD",22/3/2021 00:00:00,"245853",18.6,"FI0001","DIRECTOR OF FINANCE - CASH",1/3/2021 00:00:00,31/3/2021 00:00:00,"P12-2021"
,"LEE VALLEY MARINA SPRINGFIELD","SUPPLIES AND SERVICES","EQUIPMENT & MATERIALS","4111","P110334-SERVICE-To supply items as requested",22/3/2021 00:00:00,"245782",68.36,"SA0008","SAFETEC DIRECT LTD",1/3/2021 00:00:00,31/3/2021 00:00:00,"P12-2021"
,"LEE VALLEY MARINA STANSTEAD","SUPPLIES AND SERVICES","EQUIPMENT & MATERIALS","4111","P110959-SERVICE-PPE Workshop",17/3/2021 00:00:00,"245163",5,"TH0008","JKL SOLUTIONS LTD",1/3/2021 00:00:00,31/3/2021 00:00:00,"P12-2021"
,"LEE VALLEY MARINA STANSTEAD","SUPPLIES AND SERVICES","EQUIPMENT & MATERIALS","4111","P111197-SERVICE-drill for workshop",22/3/2021 00:00:00,"245763",108.32,"SC0057","SCREWFIX DIRECT LTD",1/3/2021 00:00:00,31/3/2021 00:00:00,"P12-2021"
,"LEE VALLEY MARINA STANSTEAD","SUPPLIES AND SERVICES","EQUIPMENT & MATERIALS","4111","P111217-SERVICE-repair to fans in toilet",22/3/2021 00:00:00,"245813",91.65,"SC0057","SCREWFIX DIRECT LTD",1/3/2021 00:00:00,31/3/2021 00:00:00,"P12-2021"
,"LEE VALLEY MARINA STANSTEAD","SUPPLIES AND SERVICES","EQUIPMENT & MATERIALS","4111","P110342-SERVICE-5x rags",31/3/2021 00:00:00,"246558",173.45,"IN0012","INITIAL WASHROOM HYGIENE",1/3/2021 00:00:00,31/3/2021 00:00:00,"P12-2021"
,"LEE VALLEY FARM HAYES HILL","SUPPLIES AND SERVICES","EQUIPMENT & MATERIALS","4111","P110903-SERVICE-Virkon s 10kg",31/3/2021 00:00:00,"245115",9.98,"FA0099","FARM & COUNTRY SUPPLIES LTD",1/3/2021 00:00:00,31/3/2021 00:00:00,"P12-2021"
,"LEE VALLEY FARM HAYES HILL","SUPPLIES AND SERVICES","EQUIPMENT & MATERIALS","4111","P110903-SERVICE-eco tuff dustbin & lid",10/3/2021 00:00:00,"245119",14.8,"FA0099","FARM & COUNTRY SUPPLIES LTD",1/3/2021 00:00:00,31/3/2021 00:00:00,"P12-2021"
,"LEE VALLEY FARM HAYES HILL","SUPPLIES AND SERVICES","EQUIPMENT & MATERIALS","4111","P110903-SERVICE-Needles 16g",10/3/2021 00:00:00,"245119",1.9,"FA0099","FARM & COUNTRY SUPPLIES LTD",1/3/2021 00:00:00,31/3/2021 00:00:00,"P12-2021"
,"LEE VALLEY FARM HAYES HILL","SUPPLIES AND SERVICES","EQUIPMENT & MATERIALS","4111","P110903-SERVICE-infra red 175w bult (ruby)",10/3/2021 00:00:00,"245119",45.44,"FA0099","FARM & COUNTRY SUPPLIES LTD",1/3/2021 00:00:00,31/3/2021 00:00:00,"P12-2021"
,"LEE VALLEY FARM HAYES HILL","SUPPLIES AND SERVICES","EQUIPMENT & MATERIALS","4111","P110903-SERVICE-Red rockie 10kg pk 2",10/3/2021 00:00:00,"245119",31.62,"FA0099","FARM & COUNTRY SUPPLIES LTD",1/3/2021 00:00:00,31/3/2021 00:00:00,"P12-2021"
,"LEE VALLEY FARM HAYES HILL","SUPPLIES AND SERVICES","EQUIPMENT & MATERIALS","4111","FARM & COUNTRY SUPPLIES LTD",10/3/2021 00:00:00,"245119",3.16,"FA0099","FARM & COUNTRY SUPPLIES LTD",1/3/2021 00:00:00,31/3/2021 00:00:00,"P12-2021"
,"LEE VALLEY FARM HAYES HILL","SUPPLIES AND SERVICES","EQUIPMENT & MATERIALS","4111","FARM & COUNTRY SUPPLIES LTD",10/3/2021 00:00:00,"245119",28.46,"FA0099","FARM & COUNTRY SUPPLIES LTD",1/3/2021 00:00:00,31/3/2021 00:00:00,"P12-2021"
,"LEE VALLEY FARM HAYES HILL","SUPPLIES AND SERVICES","EQUIPMENT & MATERIALS","4111","FARM & COUNTRY SUPPLIES LTD",10/3/2021 00:00:00,"245119",-31.62,"FA0099","FARM & COUNTRY SUPPLIES LTD",1/3/2021 00:00:00,31/3/2021 00:00:00,"P12-2021"
,"LEE VALLEY FARM HAYES HILL","SUPPLIES AND SERVICES","EQUIPMENT & MATERIALS","4111","P110903-SERVICE-feed buckets",10/3/2021 00:00:00,"245119",5.6,"FA0099","FARM & COUNTRY SUPPLIES LTD",1/3/2021 00:00:00,31/3/2021 00:00:00,"P12-2021"
,"LEE VALLEY FARM HAYES HILL","SUPPLIES AND SERVICES","EQUIPMENT & MATERIALS","4111","P110903-SERVICE-syringes x20",10/3/2021 00:00:00,"245119",4,"FA0099","FARM & COUNTRY SUPPLIES LTD",1/3/2021 00:00:00,31/3/2021 00:00:00,"P12-2021"
,"LEE VALLEY FARM HAYES HILL","SUPPLIES AND SERVICES","EQUIPMENT & MATERIALS","4111","P110903-SERVICE-Virkon s 10kg",10/3/2021 00:00:00,"245119",113.71,"FA0099","FARM & COUNTRY SUPPLIES LTD",1/3/2021 00:00:00,31/3/2021 00:00:00,"P12-2021"
,"LEE VALLEY FARM HAYES HILL","SUPPLIES AND SERVICES","EQUIPMENT & MATERIALS","4111","P111030-SERVICE-Roundup Pro Biactive 5L",31/3/2021 00:00:00,"246465",70.32,"FA0099","FARM & COUNTRY SUPPLIES LTD",1/3/2021 00:00:00,31/3/2021 00:00:00,"P12-2021"
,"LEE VALLEY FARM HAYES HILL","SUPPLIES AND SERVICES","EQUIPMENT & MATERIALS","4111","P111030-SERVICE-brooms and handles",31/3/2021 00:00:00,"246465",95.72,"FA0099","FARM & COUNTRY SUPPLIES LTD",1/3/2021 00:00:00,31/3/2021 00:00:00,"P12-2021"
,"LEE VALLEY CAMPSITE","SUPPLIES AND SERVICES","EQUIPMENT & MATERIALS","4111","P110982-SERVICE-paint supplies",8/3/2021 00:00:00,"244704",57.45,"BQ0164","TRADE UK ACCOUNT",1/3/2021 00:00:00,31/3/2021 00:00:00,"P12-2021"
,"LEE VALLEY CAMPSITE","SUPPLIES AND SERVICES","EQUIPMENT & MATERIALS","4111","P110983-SERVICE-paint supplies and batteries",8/3/2021 00:00:00,"245044",53.04,"BQ0164","TRADE UK ACCOUNT",1/3/2021 00:00:00,31/3/2021 00:00:00,"P12-2021"
,"LEE VALLEY CAMPSITE","SUPPLIES AND SERVICES","EQUIPMENT & MATERIALS","4111","P111351-SERVICE-Paint",31/3/2021 00:00:00,"245920",98.8,"BQ0164","TRADE UK ACCOUNT",1/3/2021 00:00:00,31/3/2021 00:00:00,"P12-2021"
,"LEE VALLEY CAMPSITE","SUPPLIES AND SERVICES","EQUIPMENT & MATERIALS","4111","P111353-SERVICE-Materials",31/3/2021 00:00:00,"245950",128.79,"BQ0164","TRADE UK ACCOUNT",1/3/2021 00:00:00,31/3/2021 00:00:00,"P12-2021"
,"LEE VALLEY CAMPSITE","SUPPLIES AND SERVICES","EQUIPMENT & MATERIALS","4111","P111013-SERVICE-Fencing and Posts",31/3/2021 00:00:00,"246620",555,"JW0004","J & W FENCING LIMITED",1/3/2021 00:00:00,31/3/2021 00:00:00,"P12-2021"
,"LEE VALLEY CAMPSITE","SUPPLIES AND SERVICES","EQUIPMENT & MATERIALS","4111","P111232-SERVICE-Fencing and Posts",31/3/2021 00:00:00,"246621",420,"JW0004","J & W FENCING LIMITED",1/3/2021 00:00:00,31/3/2021 00:00:00,"P12-2021"
,"LEE VALLEY CARAVAN PARK","SUPPLIES AND SERVICES","EQUIPMENT & MATERIALS","4111","P111024-SERVICE-Screwfix",17/3/2021 00:00:00,"245082",11.24,"SC0057","SCREWFIX DIRECT LTD",1/3/2021 00:00:00,31/3/2021 00:00:00,"P12-2021"
,"LEE VALLEY CARAVAN PARK","SUPPLIES AND SERVICES","EQUIPMENT & MATERIALS","4111","P110572-SERVICE-auto barrier replacement rapid head machanism",8/3/2021 00:00:00,"245266",1420,"AU0245","AUTO-MATE SYSTEMS LIMITED",1/3/2021 00:00:00,31/3/2021 00:00:00,"P12-2021"
,"LEE VALLEY CARAVAN PARK","SUPPLIES AND SERVICES","EQUIPMENT & MATERIALS","4111","P111132-SERVICE-replaced meter,bulbs ,fitted new socket.",17/3/2021 00:00:00,"245381",275,"BR0018","BRADSHAW ELECTRICAL LIMITED",1/3/2021 00:00:00,31/3/2021 00:00:00,"P12-2021"
,"LEE VALLEY CARAVAN PARK","SUPPLIES AND SERVICES","EQUIPMENT & MATERIALS","4111","P111118-SERVICE-All trees pollarded on site .",22/3/2021 00:00:00,"245586",3495,"MU0030","P J MUSK TREES",1/3/2021 00:00:00,31/3/2021 00:00:00,"P12-2021"
,"LEE VALLEY CARAVAN PARK","SUPPLIES AND SERVICES","EQUIPMENT & MATERIALS","4111","P111252-SERVICE-Screw Fix",23/3/2021 00:00:00,"245592",81.2,"SC0057","SCREWFIX DIRECT LTD",1/3/2021 00:00:00,31/3/2021 00:00:00,"P12-2021"
,"LEE VALLEY CARAVAN PARK","SUPPLIES AND SERVICES","EQUIPMENT & MATERIALS","4111","P110879-SERVICE-Type one gravel",22/3/2021 00:00:00,"245601",457.2,"LE0012","LEASIDE TIMBER & BUILDERS MERCHANTS LTD",1/3/2021 00:00:00,31/3/2021 00:00:00,"P12-2021"
,"LEE VALLEY CARAVAN PARK","SUPPLIES AND SERVICES","EQUIPMENT & MATERIALS","4111","P109113-SERVICE-Electric testing done on full site",22/3/2021 00:00:00,"245716",80,"BR0018","BRADSHAW ELECTRICAL LIMITED",1/3/2021 00:00:00,31/3/2021 00:00:00,"P12-2021"
,"LEE VALLEY CARAVAN PARK","SUPPLIES AND SERVICES","EQUIPMENT & MATERIALS","4111","P111253-SERVICE-Paint draincover carpet protect",23/3/2021 00:00:00,"245814",37.64,"SC0057","SCREWFIX DIRECT LTD",1/3/2021 00:00:00,31/3/2021 00:00:00,"P12-2021"
,"LEE VALLEY CARAVAN PARK","SUPPLIES AND SERVICES","EQUIPMENT & MATERIALS","4111","P110879-SERVICE-Type one gravel",31/3/2021 00:00:00,"245927",218.5,"LE0012","LEASIDE TIMBER & BUILDERS MERCHANTS LTD",1/3/2021 00:00:00,31/3/2021 00:00:00,"P12-2021"
,"LEE VALLEY CARAVAN PARK","SUPPLIES AND SERVICES","EQUIPMENT & MATERIALS","4111","P111540-SERVICE-PPSnet Dobbsweir & Sewardstone",31/3/2021 00:00:00,"245933",1912.37,"PP0200","PPSNET LIMITED",1/3/2021 00:00:00,31/3/2021 00:00:00,"P12-2021"
,"LEE VALLEY CARAVAN PARK","SUPPLIES AND SERVICES","EQUIPMENT & MATERIALS","4111","TRADE UK ACCOUNT",29/3/2021 00:00:00,"246111",70,"BQ0164","TRADE UK ACCOUNT",1/3/2021 00:00:00,31/3/2021 00:00:00,"P12-2021"
,"LEE VALLEY CARAVAN PARK","SUPPLIES AND SERVICES","EQUIPMENT & MATERIALS","4111","TRADE UK ACCOUNT",29/3/2021 00:00:00,"246111",113.76,"BQ0164","TRADE UK ACCOUNT",1/3/2021 00:00:00,31/3/2021 00:00:00,"P12-2021"
,"LEE VALLEY CARAVAN PARK","SUPPLIES AND SERVICES","EQUIPMENT & MATERIALS","4111","TRADE UK ACCOUNT",29/3/2021 00:00:00,"246111",-183.76,"BQ0164","TRADE UK ACCOUNT",1/3/2021 00:00:00,31/3/2021 00:00:00,"P12-2021"
,"LEE VALLEY CARAVAN PARK","SUPPLIES AND SERVICES","EQUIPMENT & MATERIALS","4111","P111347-SERVICE-B&Q",29/3/2021 00:00:00,"246111",183.76,"BQ0164","TRADE UK ACCOUNT",1/3/2021 00:00:00,31/3/2021 00:00:00,"P12-2021"
,"LEE VALLEY CARAVAN PARK","SUPPLIES AND SERVICES","EQUIPMENT & MATERIALS","4111","P111344-SERVICE-Plants,shrubs,bushes,compost.grass seed",29/3/2021 00:00:00,"246112",174.46,"BQ0164","TRADE UK ACCOUNT",1/3/2021 00:00:00,31/3/2021 00:00:00,"P12-2021"
,"LEE VALLEY CARAVAN PARK","SUPPLIES AND SERVICES","EQUIPMENT & MATERIALS","4111","P111349-SERVICE-B&Q",29/3/2021 00:00:00,"246113",18.11,"BQ0164","TRADE UK ACCOUNT",1/3/2021 00:00:00,31/3/2021 00:00:00,"P12-2021"
,"LEE VALLEY CARAVAN PARK","SUPPLIES AND SERVICES","EQUIPMENT & MATERIALS","4111","P111227-SERVICE-Leasisde Builders MOT AND Shale",29/3/2021 00:00:00,"246123",408.5,"LE0012","LEASIDE TIMBER & BUILDERS MERCHANTS LTD",1/3/2021 00:00:00,31/3/2021 00:00:00,"P12-2021"
,"LEE VALLEY CARAVAN PARK","SUPPLIES AND SERVICES","EQUIPMENT & MATERIALS","4111","P111425-SERVICE-Regulater",31/3/2021 00:00:00,"246164",285,"SO0400","SOUTHERN GREEN SERVICES LIMITED",1/3/2021 00:00:00,31/3/2021 00:00:00,"P12-2021"
,"LEE VALLEY CARAVAN PARK","SUPPLIES AND SERVICES","EQUIPMENT & MATERIALS","4111","P110666-SERVICE-Batons and Poles",31/3/2021 00:00:00,"246615",422.76,"JW0004","J & W FENCING LIMITED",1/3/2021 00:00:00,31/3/2021 00:00:00,"P12-2021"
,"LEE VALLEY CARAVAN PARK","SUPPLIES AND SERVICES","EQUIPMENT & MATERIALS","4111","P110667-SERVICE-wooden poles for sewardstone",31/3/2021 00:00:00,"246616",338.3,"JW0004","J & W FENCING LIMITED",1/3/2021 00:00:00,31/3/2021 00:00:00,"P12-2021"
"P&V","MYDDELTON HOUSE GARDENS","SUPPLIES AND SERVICES","EQUIPMENT & MATERIALS","4111","P111028-SERVICE-Plantpak Seed Tray CHT - Black (DPCHTC) x 1",22/3/2021 00:00:00,"245526",6.12,"FA0149","FARGRO LIMITED",1/3/2021 00:00:00,31/3/2021 00:00:00,"P12-2021"
"P&V","MYDDELTON HOUSE GARDENS","SUPPLIES AND SERVICES","EQUIPMENT & MATERIALS","4111","P111028-SERVICE-Grazon Pro Herbicide 1lt (GRAPRO) x 1",22/3/2021 00:00:00,"245526",63.71,"FA0149","FARGRO LIMITED",1/3/2021 00:00:00,31/3/2021 00:00:00,"P12-2021"
"P&V","MYDDELTON HOUSE GARDENS","SUPPLIES AND SERVICES","EQUIPMENT & MATERIALS","4111","P111028-SERVICE-Gallup Biograde Amenity Herbicide 5lt (GALLB)",22/3/2021 00:00:00,"245526",81.42,"FA0149","FARGRO LIMITED",1/3/2021 00:00:00,31/3/2021 00:00:00,"P12-2021"
"P&V","MYDDELTON HOUSE GARDENS","SUPPLIES AND SERVICES","EQUIPMENT & MATERIALS","4111","P111028-SERVICE-Soparco SM Container Round Form 2lt - Black (",22/3/2021 00:00:00,"245526",140.8,"FA0149","FARGRO LIMITED",1/3/2021 00:00:00,31/3/2021 00:00:00,"P12-2021"
"P&V","MYDDELTON HOUSE GARDENS","SUPPLIES AND SERVICES","EQUIPMENT & MATERIALS","4111","P111028-SERVICE-Soparco SM Container Round Form 1lt - Black (",22/3/2021 00:00:00,"245526",92.4,"FA0149","FARGRO LIMITED",1/3/2021 00:00:00,31/3/2021 00:00:00,"P12-2021"
"P&V","MYDDELTON HOUSE GARDENS","SUPPLIES AND SERVICES","EQUIPMENT & MATERIALS","4111","DIRECTOR OF FINANCE - CASH",29/3/2021 00:00:00,"246141",65,"FI0001","DIRECTOR OF FINANCE - CASH",1/3/2021 00:00:00,31/3/2021 00:00:00,"P12-2021"
"P&V","MYDDELTON HOUSE GARDENS","SUPPLIES AND SERVICES","EQUIPMENT & MATERIALS","4111","P111028-SERVICE-J. Arthur Bowers John Innes Compost no.1 Econ",29/3/2021 00:00:00,"246172",260.4,"FA0149","FARGRO LIMITED",1/3/2021 00:00:00,31/3/2021 00:00:00,"P12-2021"
"P&V","NORTH AREA RANGERS","SUPPLIES AND SERVICES","EQUIPMENT & MATERIALS","4111","P107157-SERVICE-Equipment & Materials as and when required",15/3/2021 00:00:00,"245531",65.46,"JW0004","J & W FENCING LIMITED",1/3/2021 00:00:00,31/3/2021 00:00:00,"P12-2021"
"P&V","NORTH AREA RANGERS","SUPPLIES AND SERVICES","EQUIPMENT & MATERIALS","4111","P111484-SERVICE-Equipment & Materials as and when required",31/3/2021 00:00:00,"246618",44.35,"JW0004","J & W FENCING LIMITED",1/3/2021 00:00:00,31/3/2021 00:00:00,"P12-2021"
"P&V","NORTH AREA RANGERS","SUPPLIES AND SERVICES","EQUIPMENT & MATERIALS","4111","P111485-SERVICE-Equipment & Materials as and when required",31/3/2021 00:00:00,"246624",22.25,"JE0011","SAINT-GOBAIN BUILDING DISTRIBUTION",1/3/2021 00:00:00,31/3/2021 00:00:00,"P12-2021"
"P&V","SOUTH AREA RANGERS","SUPPLIES AND SERVICES","EQUIPMENT & MATERIALS","4111","P111045-SERVICE-1x 5L Stihl Bio Plus Chain Oil",15/3/2021 00:00:00,"245535",22.31,"AP0245","APS LIMITED",1/3/2021 00:00:00,31/3/2021 00:00:00,"P12-2021"
"P&V","SOUTH AREA RANGERS","SUPPLIES AND SERVICES","EQUIPMENT & MATERIALS","4111","P111045-SERVICE-80x Stihl HP Super 2 Stroke (oil green) 100ml",15/3/2021 00:00:00,"245535",76,"AP0245","APS LIMITED",1/3/2021 00:00:00,31/3/2021 00:00:00,"P12-2021"
"P&V","SOUTH AREA RANGERS","SUPPLIES AND SERVICES","EQUIPMENT & MATERIALS","4111","P111112-SERVICE-3x Hammerite Smooth Black 2.5L - 48654",29/3/2021 00:00:00,"245593",27.49,"SC0057","SCREWFIX DIRECT LTD",1/3/2021 00:00:00,31/3/2021 00:00:00,"P12-2021"
"P&V","SOUTH AREA RANGERS","SUPPLIES AND SERVICES","EQUIPMENT & MATERIALS","4111","P111112-SERVICE-5x Bigwipes Yellow 300Pk - 947HF",29/3/2021 00:00:00,"245593",108.29,"SC0057","SCREWFIX DIRECT LTD",1/3/2021 00:00:00,31/3/2021 00:00:00,"P12-2021"
"P&V","SOUTH AREA RANGERS","SUPPLIES AND SERVICES","EQUIPMENT & MATERIALS","4111","P111112-SERVICE-2x Hammerite Smooth Silver 750ml - 85324",29/3/2021 00:00:00,"245593",28.32,"SC0057","SCREWFIX DIRECT LTD",1/3/2021 00:00:00,31/3/2021 00:00:00,"P12-2021"
"P&V","SOUTH AREA RANGERS","SUPPLIES AND SERVICES","EQUIPMENT & MATERIALS","4111","P111112-SERVICE-5x Sandpaper 80-grit 10m Roll - 53288",29/3/2021 00:00:00,"245593",52.04,"SC0057","SCREWFIX DIRECT LTD",1/3/2021 00:00:00,31/3/2021 00:00:00,"P12-2021"
"P&V","SOUTH AREA RANGERS","SUPPLIES AND SERVICES","EQUIPMENT & MATERIALS","4111","P111112-SERVICE-3x Hammerite Smooth Black 2.5L - 48654",23/3/2021 00:00:00,"245594",54.98,"SC0057","SCREWFIX DIRECT LTD",1/3/2021 00:00:00,31/3/2021 00:00:00,"P12-2021"
"P&V","SOUTH AREA RANGERS","SUPPLIES AND SERVICES","EQUIPMENT & MATERIALS","4111","P111116-SERVICE-10x Black Refuse Bags - 746625",29/3/2021 00:00:00,"245733",217.1,"GR0020","GREENHAM TRADING LIMITED",1/3/2021 00:00:00,31/3/2021 00:00:00,"P12-2021"
"P&V","SOUTH AREA RANGERS","SUPPLIES AND SERVICES","EQUIPMENT & MATERIALS","4111","P111116-SERVICE-5x Cleanworks Cleaning Cloths - 539067",23/3/2021 00:00:00,"245765",91.57,"GR0020","GREENHAM TRADING LIMITED",1/3/2021 00:00:00,31/3/2021 00:00:00,"P12-2021"
"P&V","SOUTH AREA RANGERS","SUPPLIES AND SERVICES","EQUIPMENT & MATERIALS","4111","P111116-SERVICE-50x Paint Brush 2"" - 704006",23/3/2021 00:00:00,"245765",57.5,"GR0020","GREENHAM TRADING LIMITED",1/3/2021 00:00:00,31/3/2021 00:00:00,"P12-2021"
"P&V","SOUTH AREA RANGERS","SUPPLIES AND SERVICES","EQUIPMENT & MATERIALS","4111","P111116-SERVICE-50x Paint Brush 1"" - 704002",23/3/2021 00:00:00,"245765",29.5,"GR0020","GREENHAM TRADING LIMITED",1/3/2021 00:00:00,31/3/2021 00:00:00,"P12-2021"
"P&V","SOUTH AREA RANGERS","SUPPLIES AND SERVICES","EQUIPMENT & MATERIALS","4111","P110315-SERVICE-Universal Bit 25pcs - 3663602809425",23/3/2021 00:00:00,"245812",16.67,"BQ0164","TRADE UK ACCOUNT",1/3/2021 00:00:00,31/3/2021 00:00:00,"P12-2021"
"P&V","SOUTH AREA RANGERS","SUPPLIES AND SERVICES","EQUIPMENT & MATERIALS","4111","P110315-SERVICE-Universal Puncture Proof Wheel - 503661300148",23/3/2021 00:00:00,"245812",17.5,"BQ0164","TRADE UK ACCOUNT",1/3/2021 00:00:00,31/3/2021 00:00:00,"P12-2021"
"P&V","SOUTH AREA RANGERS","SUPPLIES AND SERVICES","EQUIPMENT & MATERIALS","4111","P110315-SERVICE-Decking Screws CSKP2 pack 250 - 3663602758051",23/3/2021 00:00:00,"245812",9.25,"BQ0164","TRADE UK ACCOUNT",1/3/2021 00:00:00,31/3/2021 00:00:00,"P12-2021"
"P&V","SOUTH AREA RANGERS","SUPPLIES AND SERVICES","EQUIPMENT & MATERIALS","4111","P110315-SERVICE-Round Wire Nails 4.5x100 5kg - 366360 2742746",23/3/2021 00:00:00,"245812",10,"BQ0164","TRADE UK ACCOUNT",1/3/2021 00:00:00,31/3/2021 00:00:00,"P12-2021"
"P&V","SOUTH AREA RANGERS","SUPPLIES AND SERVICES","EQUIPMENT & MATERIALS","4111","P110315-SERVICE-Chain Dial Short Link 6mm - 3663602921639",23/3/2021 00:00:00,"245812",121.67,"BQ0164","TRADE UK ACCOUNT",1/3/2021 00:00:00,31/3/2021 00:00:00,"P12-2021"
"P&V","SOUTH AREA RANGERS","SUPPLIES AND SERVICES","EQUIPMENT & MATERIALS","4111","P111116-SERVICE-5x Cleanworks Cleaning Cloths - 539067",29/3/2021 00:00:00,"245930",1.18,"GR0020","GREENHAM TRADING LIMITED",1/3/2021 00:00:00,31/3/2021 00:00:00,"P12-2021"
"P&V","SOUTH AREA RANGERS","SUPPLIES AND SERVICES","EQUIPMENT & MATERIALS","4111","P111112-SERVICE-3x Hammerite Smooth Black 2.5L - 48654",29/3/2021 00:00:00,"246114",-21.66,"SC0057","SCREWFIX DIRECT LTD",1/3/2021 00:00:00,31/3/2021 00:00:00,"P12-2021"
"P&V","SOUTH AREA RANGERS","SUPPLIES AND SERVICES","EQUIPMENT & MATERIALS","4111","EQUIP/MAT",29/3/2021 00:00:00,"246140",3.06,"FI0001","DIRECTOR OF FINANCE - CASH",1/3/2021 00:00:00,31/3/2021 00:00:00,"P12-2021"
"P&V","SOUTH AREA RANGERS","SUPPLIES AND SERVICES","EQUIPMENT & MATERIALS","4111","EQUIP/MAT",29/3/2021 00:00:00,"246140",11.28,"FI0001","DIRECTOR OF FINANCE - CASH",1/3/2021 00:00:00,31/3/2021 00:00:00,"P12-2021"
"P&V","SOUTH AREA RANGERS","SUPPLIES AND SERVICES","EQUIPMENT & MATERIALS","4111","EQUIP/MAT",29/3/2021 00:00:00,"246140",1.66,"FI0001","DIRECTOR OF FINANCE - CASH",1/3/2021 00:00:00,31/3/2021 00:00:00,"P12-2021"
"P&V","SOUTH AREA RANGERS","SUPPLIES AND SERVICES","EQUIPMENT & MATERIALS","4111","P111002-SERVICE-1x Brass Plaque - Mizon",31/3/2021 00:00:00,"246154",54.16,"JA0162","JAG'S TROPHIES",1/3/2021 00:00:00,31/3/2021 00:00:00,"P12-2021"
"P&V","SOUTH AREA RANGERS","SUPPLIES AND SERVICES","EQUIPMENT & MATERIALS","4111","P111544-SERVICE-2x Harris Continental Fillers 3 Piece set  (4",31/3/2021 00:00:00,"246209",4.98,"SC0057","SCREWFIX DIRECT LTD",1/3/2021 00:00:00,31/3/2021 00:00:00,"P12-2021"
"P&V","SOUTH AREA RANGERS","SUPPLIES AND SERVICES","EQUIPMENT & MATERIALS","4111","P111300-SERVICE-1x Chainsaw Pruner",31/3/2021 00:00:00,"246224",155.83,"AP0245","APS LIMITED",1/3/2021 00:00:00,31/3/2021 00:00:00,"P12-2021"
"P&V","SOUTH AREA RANGERS","SUPPLIES AND SERVICES","EQUIPMENT & MATERIALS","4111","P111300-SERVICE-1x Sthil Adjustable Hedge Trimmer",31/3/2021 00:00:00,"246224",212.5,"AP0245","APS LIMITED",1/3/2021 00:00:00,31/3/2021 00:00:00,"P12-2021"
"P&V","SOUTH AREA RANGERS","SUPPLIES AND SERVICES","EQUIPMENT & MATERIALS","4111","P111300-SERVICE-1x Stihl Kombi Engine KM131 R",31/3/2021 00:00:00,"246224",378.33,"AP0245","APS LIMITED",1/3/2021 00:00:00,31/3/2021 00:00:00,"P12-2021"
"P&V","SOUTH AREA RANGERS","SUPPLIES AND SERVICES","EQUIPMENT & MATERIALS","4111","P111257-SERVICE-DELIVERY TO ADDRESS BELOW",31/3/2021 00:00:00,"246368",6.95,"AG0349","AGROVISTA UK LIMITED",1/3/2021 00:00:00,31/3/2021 00:00:00,"P12-2021"
"P&V","SOUTH AREA RANGERS","SUPPLIES AND SERVICES","EQUIPMENT & MATERIALS","4111","P111257-SERVICE-1x Depitox 500 Selective Herbicide 5L - 19635",31/3/2021 00:00:00,"246368",29.95,"AG0349","AGROVISTA UK LIMITED",1/3/2021 00:00:00,31/3/2021 00:00:00,"P12-2021"
"P&V","SOUTH AREA RANGERS","SUPPLIES AND SERVICES","EQUIPMENT & MATERIALS","4111","P111258-SERVICE-10x MOT Type 1 aggregate 1 tonne bulk bags",31/3/2021 00:00:00,"246625",440.9,"JE0011","SAINT-GOBAIN BUILDING DISTRIBUTION",1/3/2021 00:00:00,31/3/2021 00:00:00,"P12-2021"
"P&V","ABBEY GARDENS","SUPPLIES AND SERVICES","EQUIPMENT & MATERIALS","4111","P107157-SERVICE-Equipment & Materials as and when required",15/3/2021 00:00:00,"245531",42.83,"JW0004","J & W FENCING LIMITED",1/3/2021 00:00:00,31/3/2021 00:00:00,"P12-2021"
"P&V","ABBEY GARDENS","SUPPLIES AND SERVICES","EQUIPMENT & MATERIALS","4111","P107157-SERVICE-Equipment & Materials as and when required",15/3/2021 00:00:00,"245532",95.85,"JW0004","J & W FENCING LIMITED",1/3/2021 00:00:00,31/3/2021 00:00:00,"P12-2021"
"P&V","ABBEY GARDENS","SUPPLIES AND SERVICES","EQUIPMENT & MATERIALS","4111","P107156-SERVICE-Equipment & Materials as and when required",29/3/2021 00:00:00,"246147",42.08,"JE0011","SAINT-GOBAIN BUILDING DISTRIBUTION",1/3/2021 00:00:00,31/3/2021 00:00:00,"P12-2021"
